Workbook

Sheet Price (hidden)
C2: 30 pax
A3: tripe | B3: price | C3: price child
A7: Alex Cairo | B7: 220 | C7: 110
A8: Cairo | B8: 110 | C8: 55
A9: Cairo Package 1 | B9: 95 | C9: 50
A10: Luxor | B10: 114 | C10: 57
A11: LUXOR 2 | B11: 90 | C11: 45
A12: LUXOR 2 Package 5 | B12: 79 | C12: 40
A13: LUXOR 2 Package 7 | B13: 80 | C13: 40
A14: LUXOR 2 Package 12 | B14: 80 | C14: 40
A15: VIP Luxor | B15: 158 | C15: 79
A16: DANDARA LUXOR | B16: 117 | C16: 59
A17: DANDARA LUXOR Package 2 | B17: 100 | C17: 50
A18: DANDARA LUXOR Package 6 | B18: 95 | C18: 50
A19: DANDARA LUXOR Package 10 | B19: 95 | C19: 50
A20: DANDARA LUXOR Package 15 | B20: 95 | C20: 50
A21: Dandara abydos | B21: 99 | C21: 50
A22: Dandara Deluxe | B22: 125 | C22: 65
A23: Aswan Abu simple 3 stars | B23: 275 | C23: 138
A24: Aswan bu simple 4 stars | B24: 285 | C24: 143
A25: St.Poula&antony | B25: 55 | C25: 33
A26: St.Poula&antony package 8 | B26: 50 | C26: 25
A27: St.Poula&antony package 9 | B27: 50 | C27: 25
A28: Diving | B28: 65 | C28: 65
A29: El gouna | B29: 55 | C29: 28
A30: el gouna bus | B30: 50 | C30: 25
A31: paradies el gana | B31: 50 | C31: 30
A32: Russian Fishing | B32: 47 | C32: 30
A33: Sea Trip | B33: 40 | C33: 20
A34: Sea Trip Package 1 | B34: 30 | C34: 15
A35: Sea Trip Package 2 | B35: 30 | C35: 15
A36: Sea Trip Package 4 | B36: 30 | C36: 15
A37: Sea Trip Package 5 | B37: 30 | C37: 15
A38: Sindbad aqua park | B38: 45 | C38: 30
A39: Snorkling | B39: =30+10 -> 40 | C39: =20 -> 20
A40: Submarine | B40: 58 | C40: 29
A41: submarine + Titank aqua park | B41: 90 | C41: 45
A42: TitanK Aqua Park | B42: 45 | C42: 25
A43: TitanK Aqua Park package 16 | B43: 40 | C43: 20
A44: Jungle Aqua Park | B44: 50 | C44: 25
A45: Aquarium+Jungle Aqus Park | B45: 35 | C45: 17
A46: Aquarium Package 17 | B46: 10 | C46: 5
A47: Utopia | B47: 55 | C47: 28
A48: Tr Utopia | B48: 0 | C48: 0
A49: SGl parasaling | B49: 50 | C49: 25
A50: Trl parasaling | B50: 90 | C50: 25
A51: Royal utopia | B51: 62 | C51: 31
A52: Tr Royal utopia | B52: 0 | C52: 0
A53: Blue Aquarim | B53: 33 | C53: 20
A54: Dbl parasaling | B54: 75 | C54: 25
A55: ROMANCE UTOPIA | B55: 45 | C55: 23
A56: Tr ROMANCE UTOPIA | B56: 0 | C56: 0
A57: Sunny Orange Bay | B57: 60 | C57: 30
A58: Companion parasaling | B58: 25 | C58: 0
A59: CRYSTAL ISLAND | B59: 45 | C59: 23
A60: CRYSTAL ISLAND HRG&mak | B60: 50 | C60: 25
A61: CRYSTAL ISLAND SA&Elg | B61: 55 | C61: 30
A62: VIP SEA TRIPE | B62: 75 | C62: 35
A63: Super Scuba | B63: 58 | C63: 35
A64: Rusalka (Mermaid) | B64: 40 | C64: 20
A65: Rusalka (Mermaid) Package 3 | B65: 30 | C65: 15
A66: Rusalka (Mermaid) Package 6 | B66: 30 | C66: 15
A67: Rusalka (Mermaid) Package 9 | B67: 30 | C67: 15
A68: Rusalka (Mermaid) Package 13 | B68: 30 | C68: 15
A69: Rusalka (Mermaid) Package 16 | B69: 30 | C69: 15
A70: RUSALKA+SAND MUSEUM+JUNGLE AQUAPARK | B70: 70 | C70: 35
A71: Rusalka (Mermaid) + titank aqua park | B71: 70 | C71: 35
A72: TR Rusalka (Mermaid) SA | B72: 0 | C72: 0
A73: TR Rusalka (Mermaid) Ma | B73: 0 | C73: 0
A74: ROYAL DOLPHIN SEA TRIPE | B74: 78 | C74: 39
A75: Natulius | B75: 100 | C75: 50
A76: aowc ( Advanc open water cours) | B76: 320 | C76: 320
A77: owc (open water cours) | B77: 320 | C77: 320
A78: p-submarine and sindbad | B78: 90 | C78: 50
A79: Sea Scope | B79: 50 | C79: 25
A80: TR Sea Scope | B80: 0 | C80: 0
A81: ELITE VIP SEA TRIP | B81: 95 | C81: 48
A82: Romantic sunset sea TRIPE | B82: 52 | C82: 26
A83: Dream Island | B83: 45 | C83: 25
A84: Dolphin House | B84: 50 | C84: 25
A85: Grand Aquarium | B85: 45 | C85: 23
A86: G.Aquarium +Jungle Aqua parak+ city tour | B86: 65 | C86: 20
A87: G.Aquarium + s.city + Jungle Aqua parak | B87: 70 | C87: 25
A88: G.Aquarium +s.city + Dolphin show | B88: 68 | C88: 20
A89: G.Aquarium + Dolphin show | B89: 63 | C89: 18
A91: Venus Spa Turkish Hamam | B91: 35 | C91: 35
A92: Vip1 Venus Spa | B92: 50 | C92: 50
A93: Vip2 Venus Spa | B93: 60 | C93: 60
A94: Moto 1 Hour | B94: 40 | C94: 20
A96: Luxor 2-Package 30 | B96: 90 | C96: 42
A97: Utopia-Package 30 | B97: 43 | C97: 24
A99: Luxor 2-Package 31 | B99: 90 | C99: 45
A100: Moto 2-Package 31 | B100: 36 | C100: 18
A102: Luxor 2-Package 32 | B102: 90 | C102: 45
A103: Sea Trip-Package 32 | B103: 30 | C103: 15
A105: Luxor 2-Package 33 | B105: 90 | C105: 45
A106: Cairo-Package 33 | B106: 102 | C106: 51
A108: Cairo-Package 34 | B108: 105 | C108: 53
A109: Moto 2-Package 34 | B109: 38 | C109: 19
A111: Cairo-Package 35 | B111: 105 | C111: 51
A112: Utopia-Package 35 | B112: 44 | C112: 24
A114: Luxor 2-Package 36 | B114: 90 | C114: 45
A115: Moto 1 Hour-Package 36 | B115: 28 | C115: 14
A125: Dolphina Accompanying | B125: 35 | C125: 20
A126: Dolphina sw 5 min | B126: 60 | C126: 60
A127: Dolphina sw 10 min | B127: 85 | C127: 85
A128: Dolphin therapy | B128: 275 | C128: 275
A129: Dolphin therapy | B129: 165 | C129: 165
A130: Dolphin sw 10 show | B130: 100 | C130: 100
A131: Dolphin sw 15 show | B131: 140 | C131: 140
A132: Dolphin sw 5 show | B132: 70 | C132: 70
A133: Dolphin accompanying person | B133: 35 | C133: 20
A134: Dolphin world show | B134: 40 | C134: 20
A135: Dolphin world show Package 3 | B135: 35 | C135: 18
A136: Dolphin world show(El Gouna) | B136: 45 | C136: 25
A137: Sand city | B137: 21 | C137: 10
A138: Sand City + city tour | B138: 10 | C138: 5
A139: Sand City + Moto 2 | B139: 55 | C139: 22
A140: Sand City + Moto 5 | B140: 70 | C140: 30
A141: UTPOIA ISLAND + SAND MUSEUM | B141: 60 | C141: 30
A142: MYSTERY ROYAL OASIS + SAND MUSEUM | B142: 75 | C142: 35
A143: SEA trip + SAND MUSEUM | B143: 45 | C143: 25
A144: Dolphin world show + SAND MUSEUM | B144: 55 | C144: 27
A145: Natulius + Sand city | B145: 110 | C145: 55
A146: Moto 2 | B146: 45 | C146: 23
A147: Moto 2 package 7 | B147: 35 | C147: 20
A148: Moto 2 package 8 | B148: 35 | C148: 15
A149: Moto 2 package 10 | B149: 35 | C149: 15
A150: Moto 2 package 11 | B150: 35 | C150: 18
A151: Moto 2 package 13 | B151: 35 | C151: 15
A152: Moto 2 package 15 | B152: 35 | C152: 15
A153: Quad Safari | B153: 30 | C153: 15
A154: Badawia | B154: 60 | C154: 30
A155: Sun Rise M2 | B155: 40 | C155: 20
A156: Super badawia - spieder | B156: 0 | C156: 0
A157: Super badawia | B157: 60 | C157: 35
A158: Super badawia Package 1 | B158: 55 | C158: 30
A159: Super badawia Package 2 | B159: 55 | C159: 30
A160: Super badawia Package 4 | B160: 55 | C160: 30
A161: M2.sun set | B161: 40 | C161: 20
A162: Mystery Royal Oasis PENDING | B162: 60 | C162: 30
A163: city tour with aquarium | B163: 10 | C163: 5
A164: lool show | B164: 25 | C164: 15
A165: lool show package 6 | B165: 20 | C165: 10
A166: lool show package 8 | B166: 25 | C166: 15
A167: lool show package 12 | B167: 18 | C167: 10
A168: lool show package 14 | B168: 20 | C168: 10
A169: City tour with lunch | B169: 20 | C169: 10
A170: City tour with dinner | B170: 30 | C170: 15
A171: fast trak | B171: 55 | C171: 55
A172: cairo by plane | B172: 285 | C172: 250
A173: Jorusalim | B173: 0 | C173: 0
A174: Aspendos Turkish Bath | B174: 35 | C174: 35
A175: Vip1 Aspendos | B175: 50 | C175: 50
A176: Vip2 Aspendos | B176: 65 | C176: 65
A177: Sultan Turkhish Bath&P1 | B177: 35 | C177: 17
A178: Sultan p1 package 7 | B178: 30 | C178: 0
A179: Sultan p1 package 9 | B179: 30 | C179: 0
A180: Sultan p1 package 10 | B180: 30 | C180: 0
A181: Sultan p1 package 11 | B181: 30 | C181: 0
A182: Sultan p1 package 14 | B182: 35 | C182: 0
A183: Sultan Turkhish Bath&P2 | B183: 50 | C183: 25
A184: Sultan Turkhish Bath&P3 | B184: 60 | C184: 30
A185: Sultan Vip Program | B185: 400 | C185: 80
A186: CITY TOUR | B186: 10 | C186: 5
A188: private Boat Diving | B188: 725
A189: private cairo by plane | B189: 730
A190: Private Boat Fishing | B190: 500
A191: Private utopia | B191: 730
A192: private el gouna | B192: 780
A193: Profissinal fishing | B193: 580
A194: private alex cairo | B194: 1150
A195: private Super badwaya | B195: 310
A196: Private Aswen o.n | B196: 1400
A197: private moto 2 | B197: 205
A198: private badawaya | B198: 295
A199: private paradise | B199: 690
A200: Private Luxor | B200: 630
A201: Private Cairo | B201: 665
A202: private Dandara | B202: 650
A203: private City Tour | B203: 165
A204: Private St.paul@Antony | B204: 370
A205: priavte super scouba | B205: 770
A206: LITTLE BUDDAH DISCO | B206: 0 | C206: 0
A207: Party Pyramisa Sahl Hashesh | B207: 0 | C207: 0
A218: Marsa alam
A219: Intro Diving | B219: 115 | C219: 115
A220: Intro Diving package
A221: Diving Beach | B221: 90 | C221: 90
A222: M2.sun set dbl | B222: 75 | C222: 75
A223: M2.sun set sgl | B223: 65 | C223: 65
A224: Moto 2 Sgl | B224: 65 | C224: 65
A225: Moto 2 Dbl | B225: 75 | C225: 75
A226: CORAL GARDEN | B226: 70 | C226: 35
A227: CORAL GARDEN Package
A228: DANDARA LUXOR | B228: 120 | C228: 60
A229: Satayh Daily Snorkling Trip | B229: 100 | C229: 50
A230: Satayh Daily Snorkling Trip package
A231: SNORKELING ON DIVING BOAT | B231: 65 | C231: 30
A232: SUPER SAFARI | B232: 80 | C232: 40
... 40 more rows

Sheet Data
A1: Excursion | C1: Excursion date | D1: ADL (group) | E1: CHD (group) | F1: Hotel town | G1: Total sum | H1: Note | I1: Transfer | J1: Real Price $
A2: MOTO2 | B2: =IFERROR(VLOOKUP(A2,Sheet2!$B$2:$C$18,2,0),"") -> Moto 2 | C2: 2018-08-01 | D2: 2 | E2: 0 | F2: HURGADA | G2: 80 | I2: =IFERROR(VALUE(IF(ISERROR(MATCH(A2,Sources!$B:$B,0)),IF(ISERROR(MATCH(F2,Sources!$C:$C,0)),"",5*D2+3*E2),IF(AND(NOT(ISERROR(MATCH(A2,Sources!$D:$D,0))),NOT(ISERROR(MATCH(F2,Sources!$E:$E,0)))),5*D2+3*E2,""))&IF(AND(ISERROR(MATCH(A2,Sources!$F:$F,0)),NOT(ISERROR(MATCH(F2,Sources!$G:$G,0)))),5*D2+3*E2,"")),"") ->  | J2: =IF(I2="",G2,(G2-I2)) -> 80
A3: MOTO2 | B3: =IFERROR(VLOOKUP(A3,Sheet2!$B$2:$C$18,2,0),"") -> Moto 2 | C3: 2018-08-01 | D3: 2 | E3: 0 | F3: HURGADA | G3: 80 | I3: =IFERROR(VALUE(IF(ISERROR(MATCH(A3,Sources!$B:$B,0)),IF(ISERROR(MATCH(F3,Sources!$C:$C,0)),"",5*D3+3*E3),IF(AND(NOT(ISERROR(MATCH(A3,Sources!$D:$D,0))),NOT(ISERROR(MATCH(F3,Sources!$E:$E,0)))),5*D3+3*E3,""))&IF(AND(ISERROR(MATCH(A3,Sources!$F:$F,0)),NOT(ISERROR(MATCH(F3,Sources!$G:$G,0)))),5*D3+3*E3,"")),"") ->  | J3: =IF(I3="",G3,(G3-I3)) -> 80
A4: MOTO 1 HOUR | B4: =IFERROR(VLOOKUP(A4,Sheet2!$B$2:$C$18,2,0),"") -> Moto 1 Hour | C4: 2018-08-01 | D4: 1 | E4: 1 | F4: HURGADA | G4: 80 | I4: =IFERROR(VALUE(IF(ISERROR(MATCH(A4,Sources!$B:$B,0)),IF(ISERROR(MATCH(F4,Sources!$C:$C,0)),"",5*D4+3*E4),IF(AND(NOT(ISERROR(MATCH(A4,Sources!$D:$D,0))),NOT(ISERROR(MATCH(F4,Sources!$E:$E,0)))),5*D4+3*E4,""))&IF(AND(ISERROR(MATCH(A4,Sources!$F:$F,0)),NOT(ISERROR(MATCH(F4,Sources!$G:$G,0)))),5*D4+3*E4,"")),"") ->  | J4: 80
A5: OVER DAY LUXORQUEEN VALLY | B5: =IFERROR(VLOOKUP(A5,Sheet2!$B$2:$C$18,2,0),"") -> LUXOR 2 | C5: 2018-08-01 | D5: 1 | E5: 0 | F5: HURGADA | G5: 88 | I5: =IFERROR(VALUE(IF(ISERROR(MATCH(A5,Sources!$B:$B,0)),IF(ISERROR(MATCH(F5,Sources!$C:$C,0)),"",5*D5+3*E5),IF(AND(NOT(ISERROR(MATCH(A5,Sources!$D:$D,0))),NOT(ISERROR(MATCH(F5,Sources!$E:$E,0)))),5*D5+3*E5,""))&IF(AND(ISERROR(MATCH(A5,Sources!$F:$F,0)),NOT(ISERROR(MATCH(F5,Sources!$G:$G,0)))),5*D5+3*E5,"")),"") ->  | J5: 88
A6: OVER DAY LUXORQUEEN VALLY | B6: =IFERROR(VLOOKUP(A6,Sheet2!$B$2:$C$18,2,0),"") -> LUXOR 2 | C6: 2018-08-01 | D6: 3 | E6: 0 | F6: HURGADA | G6: 264 | H6: belarus | I6: =IFERROR(VALUE(IF(ISERROR(MATCH(A6,Sources!$B:$B,0)),IF(ISERROR(MATCH(F6,Sources!$C:$C,0)),"",5*D6+3*E6),IF(AND(NOT(ISERROR(MATCH(A6,Sources!$D:$D,0))),NOT(ISERROR(MATCH(F6,Sources!$E:$E,0)))),5*D6+3*E6,""))&IF(AND(ISERROR(MATCH(A6,Sources!$F:$F,0)),NOT(ISERROR(MATCH(F6,Sources!$G:$G,0)))),5*D6+3*E6,"")),"") ->  | J6: 264
A7: OVER DAY LUXORQUEEN VALLY | B7: =IFERROR(VLOOKUP(A7,Sheet2!$B$2:$C$18,2,0),"") -> LUXOR 2 | C7: 2018-08-01 | D7: 2 | E7: 1 | F7: HURGADA | G7: 220 | H7: ukraine | I7: =IFERROR(VALUE(IF(ISERROR(MATCH(A7,Sources!$B:$B,0)),IF(ISERROR(MATCH(F7,Sources!$C:$C,0)),"",5*D7+3*E7),IF(AND(NOT(ISERROR(MATCH(A7,Sources!$D:$D,0))),NOT(ISERROR(MATCH(F7,Sources!$E:$E,0)))),5*D7+3*E7,""))&IF(AND(ISERROR(MATCH(A7,Sources!$F:$F,0)),NOT(ISERROR(MATCH(F7,Sources!$G:$G,0)))),5*D7+3*E7,"")),"") ->  | J7: 220
A8: OVER DAY LUXORQUEEN VALLY | B8: =IFERROR(VLOOKUP(A8,Sheet2!$B$2:$C$18,2,0),"") -> LUXOR 2 | C8: 2018-08-01 | D8: 2 | E8: 0 | F8: HURGADA | G8: 176 | H8: UKRAINE | I8: =IFERROR(VALUE(IF(ISERROR(MATCH(A8,Sources!$B:$B,0)),IF(ISERROR(MATCH(F8,Sources!$C:$C,0)),"",5*D8+3*E8),IF(AND(NOT(ISERROR(MATCH(A8,Sources!$D:$D,0))),NOT(ISERROR(MATCH(F8,Sources!$E:$E,0)))),5*D8+3*E8,""))&IF(AND(ISERROR(MATCH(A8,Sources!$F:$F,0)),NOT(ISERROR(MATCH(F8,Sources!$G:$G,0)))),5*D8+3*E8,"")),"") ->  | J8: 176
A9: OVER DAY LUXORQUEEN VALLY | B9: =IFERROR(VLOOKUP(A9,Sheet2!$B$2:$C$18,2,0),"") -> LUXOR 2 | C9: 2018-08-01 | D9: 2 | E9: 0 | F9: HURGADA | G9: 176 | H9: BELARUS | I9: =IFERROR(VALUE(IF(ISERROR(MATCH(A9,Sources!$B:$B,0)),IF(ISERROR(MATCH(F9,Sources!$C:$C,0)),"",5*D9+3*E9),IF(AND(NOT(ISERROR(MATCH(A9,Sources!$D:$D,0))),NOT(ISERROR(MATCH(F9,Sources!$E:$E,0)))),5*D9+3*E9,""))&IF(AND(ISERROR(MATCH(A9,Sources!$F:$F,0)),NOT(ISERROR(MATCH(F9,Sources!$G:$G,0)))),5*D9+3*E9,"")),"") ->  | J9: 176
A10: OVER DAY LUXORQUEEN VALLY | B10: =IFERROR(VLOOKUP(A10,Sheet2!$B$2:$C$18,2,0),"") -> LUXOR 2 | C10: 2018-08-01 | D10: 1 | E10: 1 | F10: MAKADI BAY | G10: 132 | I10: =IFERROR(VALUE(IF(ISERROR(MATCH(A10,Sources!$B:$B,0)),IF(ISERROR(MATCH(F10,Sources!$C:$C,0)),"",5*D10+3*E10),IF(AND(NOT(ISERROR(MATCH(A10,Sources!$D:$D,0))),NOT(ISERROR(MATCH(F10,Sources!$E:$E,0)))),5*D10+3*E10,""))&IF(AND(ISERROR(MATCH(A10,Sources!$F:$F,0)),NOT(ISERROR(MATCH(F10,Sources!$G:$G,0)))),5*D10+3*E10,"")),"") ->  | J10: 132
A11: RUSALKA ( MERMAID ) | B11: =IFERROR(VLOOKUP(A11,Sheet2!$B$2:$C$18,2,0),"") -> Rusalka (Mermaid) | C11: 2018-08-02 | D11: 1 | E11: 0 | F11: HURGADA | G11: 35 | I11: =IFERROR(VALUE(IF(ISERROR(MATCH(A11,Sources!$B:$B,0)),IF(ISERROR(MATCH(F11,Sources!$C:$C,0)),"",5*D11+3*E11),IF(AND(NOT(ISERROR(MATCH(A11,Sources!$D:$D,0))),NOT(ISERROR(MATCH(F11,Sources!$E:$E,0)))),5*D11+3*E11,""))&IF(AND(ISERROR(MATCH(A11,Sources!$F:$F,0)),NOT(ISERROR(MATCH(F11,Sources!$G:$G,0)))),5*D11+3*E11,"")),"") ->  | J11: 35
A12: UTOPIA ISLAND | B12: =IFERROR(VLOOKUP(A12,Sheet2!$B$2:$C$18,2,0),"") -> Utopia | C12: 2018-08-02 | D12: 1 | E12: 2 | F12: HURGADA | G12: 96 | I12: =IFERROR(VALUE(IF(ISERROR(MATCH(A12,Sources!$B:$B,0)),IF(ISERROR(MATCH(F12,Sources!$C:$C,0)),"",5*D12+3*E12),IF(AND(NOT(ISERROR(MATCH(A12,Sources!$D:$D,0))),NOT(ISERROR(MATCH(F12,Sources!$E:$E,0)))),5*D12+3*E12,""))&IF(AND(ISERROR(MATCH(A12,Sources!$F:$F,0)),NOT(ISERROR(MATCH(F12,Sources!$G:$G,0)))),5*D12+3*E12,"")),"") ->  | J12: 96
A13: UTOPIA ISLAND | B13: =IFERROR(VLOOKUP(A13,Sheet2!$B$2:$C$18,2,0),"") -> Utopia | C13: 2018-08-02 | D13: 2 | E13: 1 | F13: HURGADA | G13: 120 | I13: =IFERROR(VALUE(IF(ISERROR(MATCH(A13,Sources!$B:$B,0)),IF(ISERROR(MATCH(F13,Sources!$C:$C,0)),"",5*D13+3*E13),IF(AND(NOT(ISERROR(MATCH(A13,Sources!$D:$D,0))),NOT(ISERROR(MATCH(F13,Sources!$E:$E,0)))),5*D13+3*E13,""))&IF(AND(ISERROR(MATCH(A13,Sources!$F:$F,0)),NOT(ISERROR(MATCH(F13,Sources!$G:$G,0)))),5*D13+3*E13,"")),"") ->  | J13: 120
A14: UTOPIA ISLAND | B14: =IFERROR(VLOOKUP(A14,Sheet2!$B$2:$C$18,2,0),"") -> Utopia | C14: 2018-08-02 | D14: 7 | E14: 2 | F14: SAFAGA | G14: 384 | I14: =IFERROR(VALUE(IF(ISERROR(MATCH(A14,Sources!$B:$B,0)),IF(ISERROR(MATCH(F14,Sources!$C:$C,0)),"",5*D14+3*E14),IF(AND(NOT(ISERROR(MATCH(A14,Sources!$D:$D,0))),NOT(ISERROR(MATCH(F14,Sources!$E:$E,0)))),5*D14+3*E14,""))&IF(AND(ISERROR(MATCH(A14,Sources!$F:$F,0)),NOT(ISERROR(MATCH(F14,Sources!$G:$G,0)))),5*D14+3*E14,"")),"") ->  | J14: 384
A15: UTOPIA ISLAND | B15: =IFERROR(VLOOKUP(A15,Sheet2!$B$2:$C$18,2,0),"") -> Utopia | C15: 2018-08-02 | D15: 3 | E15: 0 | F15: MAKADI BAY | G15: 144 | I15: =IFERROR(VALUE(IF(ISERROR(MATCH(A15,Sources!$B:$B,0)),IF(ISERROR(MATCH(F15,Sources!$C:$C,0)),"",5*D15+3*E15),IF(AND(NOT(ISERROR(MATCH(A15,Sources!$D:$D,0))),NOT(ISERROR(MATCH(F15,Sources!$E:$E,0)))),5*D15+3*E15,""))&IF(AND(ISERROR(MATCH(A15,Sources!$F:$F,0)),NOT(ISERROR(MATCH(F15,Sources!$G:$G,0)))),5*D15+3*E15,"")),"") ->  | J15: 144
A16: UTOPIA ISLAND | B16: =IFERROR(VLOOKUP(A16,Sheet2!$B$2:$C$18,2,0),"") -> Utopia | C16: 2018-08-02 | D16: 2 | E16: 0 | F16: MAKADI BAY | G16: 96 | I16: =IFERROR(VALUE(IF(ISERROR(MATCH(A16,Sources!$B:$B,0)),IF(ISERROR(MATCH(F16,Sources!$C:$C,0)),"",5*D16+3*E16),IF(AND(NOT(ISERROR(MATCH(A16,Sources!$D:$D,0))),NOT(ISERROR(MATCH(F16,Sources!$E:$E,0)))),5*D16+3*E16,""))&IF(AND(ISERROR(MATCH(A16,Sources!$F:$F,0)),NOT(ISERROR(MATCH(F16,Sources!$G:$G,0)))),5*D16+3*E16,"")),"") ->  | J16: 96
A17: UTOPIA ISLAND | B17: =IFERROR(VLOOKUP(A17,Sheet2!$B$2:$C$18,2,0),"") -> Utopia | C17: 2018-08-02 | D17: 1 | E17: 1 | F17: MAKADI BAY | G17: 72 | I17: =IFERROR(VALUE(IF(ISERROR(MATCH(A17,Sources!$B:$B,0)),IF(ISERROR(MATCH(F17,Sources!$C:$C,0)),"",5*D17+3*E17),IF(AND(NOT(ISERROR(MATCH(A17,Sources!$D:$D,0))),NOT(ISERROR(MATCH(F17,Sources!$E:$E,0)))),5*D17+3*E17,""))&IF(AND(ISERROR(MATCH(A17,Sources!$F:$F,0)),NOT(ISERROR(MATCH(F17,Sources!$G:$G,0)))),5*D17+3*E17,"")),"") ->  | J17: 72
A18: UTOPIA ISLAND | B18: =IFERROR(VLOOKUP(A18,Sheet2!$B$2:$C$18,2,0),"") -> Utopia | C18: 2018-08-02 | D18: 3 | E18: 0 | F18: MAKADI BAY | G18: 144 | I18: =IFERROR(VALUE(IF(ISERROR(MATCH(A18,Sources!$B:$B,0)),IF(ISERROR(MATCH(F18,Sources!$C:$C,0)),"",5*D18+3*E18),IF(AND(NOT(ISERROR(MATCH(A18,Sources!$D:$D,0))),NOT(ISERROR(MATCH(F18,Sources!$E:$E,0)))),5*D18+3*E18,""))&IF(AND(ISERROR(MATCH(A18,Sources!$F:$F,0)),NOT(ISERROR(MATCH(F18,Sources!$G:$G,0)))),5*D18+3*E18,"")),"") ->  | J18: 144
A19: UTOPIA ISLAND | B19: =IFERROR(VLOOKUP(A19,Sheet2!$B$2:$C$18,2,0),"") -> Utopia | C19: 2018-08-02 | D19: 2 | E19: 1 | F19: HURGADA | G19: 120 | I19: =IFERROR(VALUE(IF(ISERROR(MATCH(A19,Sources!$B:$B,0)),IF(ISERROR(MATCH(F19,Sources!$C:$C,0)),"",5*D19+3*E19),IF(AND(NOT(ISERROR(MATCH(A19,Sources!$D:$D,0))),NOT(ISERROR(MATCH(F19,Sources!$E:$E,0)))),5*D19+3*E19,""))&IF(AND(ISERROR(MATCH(A19,Sources!$F:$F,0)),NOT(ISERROR(MATCH(F19,Sources!$G:$G,0)))),5*D19+3*E19,"")),"") ->  | J19: 120
A20: UTOPIA ISLAND | B20: =IFERROR(VLOOKUP(A20,Sheet2!$B$2:$C$18,2,0),"") -> Utopia | C20: 2018-08-02 | D20: 2 | E20: 0 | F20: HURGADA | G20: 96 | I20: =IFERROR(VALUE(IF(ISERROR(MATCH(A20,Sources!$B:$B,0)),IF(ISERROR(MATCH(F20,Sources!$C:$C,0)),"",5*D20+3*E20),IF(AND(NOT(ISERROR(MATCH(A20,Sources!$D:$D,0))),NOT(ISERROR(MATCH(F20,Sources!$E:$E,0)))),5*D20+3*E20,""))&IF(AND(ISERROR(MATCH(A20,Sources!$F:$F,0)),NOT(ISERROR(MATCH(F20,Sources!$G:$G,0)))),5*D20+3*E20,"")),"") ->  | J20: 96
A21: UTOPIA ISLAND | B21: =IFERROR(VLOOKUP(A21,Sheet2!$B$2:$C$18,2,0),"") -> Utopia | C21: 2018-08-02 | D21: 2 | E21: 0 | F21: HURGADA | G21: 96 | I21: =IFERROR(VALUE(IF(ISERROR(MATCH(A21,Sources!$B:$B,0)),IF(ISERROR(MATCH(F21,Sources!$C:$C,0)),"",5*D21+3*E21),IF(AND(NOT(ISERROR(MATCH(A21,Sources!$D:$D,0))),NOT(ISERROR(MATCH(F21,Sources!$E:$E,0)))),5*D21+3*E21,""))&IF(AND(ISERROR(MATCH(A21,Sources!$F:$F,0)),NOT(ISERROR(MATCH(F21,Sources!$G:$G,0)))),5*D21+3*E21,"")),"") ->  | J21: 96
A22: UTOPIA ISLAND | B22: =IFERROR(VLOOKUP(A22,Sheet2!$B$2:$C$18,2,0),"") -> Utopia | C22: 2018-08-02 | D22: 2 | E22: 0 | F22: HURGADA | G22: 96 | I22: =IFERROR(VALUE(IF(ISERROR(MATCH(A22,Sources!$B:$B,0)),IF(ISERROR(MATCH(F22,Sources!$C:$C,0)),"",5*D22+3*E22),IF(AND(NOT(ISERROR(MATCH(A22,Sources!$D:$D,0))),NOT(ISERROR(MATCH(F22,Sources!$E:$E,0)))),5*D22+3*E22,""))&IF(AND(ISERROR(MATCH(A22,Sources!$F:$F,0)),NOT(ISERROR(MATCH(F22,Sources!$G:$G,0)))),5*D22+3*E22,"")),"") ->  | J22: 96
A23: UTOPIA ISLAND | B23: =IFERROR(VLOOKUP(A23,Sheet2!$B$2:$C$18,2,0),"") -> Utopia | C23: 2018-08-02 | D23: 2 | E23: 0 | F23: HURGADA | G23: 96 | I23: =IFERROR(VALUE(IF(ISERROR(MATCH(A23,Sources!$B:$B,0)),IF(ISERROR(MATCH(F23,Sources!$C:$C,0)),"",5*D23+3*E23),IF(AND(NOT(ISERROR(MATCH(A23,Sources!$D:$D,0))),NOT(ISERROR(MATCH(F23,Sources!$E:$E,0)))),5*D23+3*E23,""))&IF(AND(ISERROR(MATCH(A23,Sources!$F:$F,0)),NOT(ISERROR(MATCH(F23,Sources!$G:$G,0)))),5*D23+3*E23,"")),"") ->  | J23: 96
A24: UTOPIA ISLAND | B24: =IFERROR(VLOOKUP(A24,Sheet2!$B$2:$C$18,2,0),"") -> Utopia | C24: 2018-08-02 | D24: 1 | E24: 0 | F24: HURGADA | G24: 48 | I24: =IFERROR(VALUE(IF(ISERROR(MATCH(A24,Sources!$B:$B,0)),IF(ISERROR(MATCH(F24,Sources!$C:$C,0)),"",5*D24+3*E24),IF(AND(NOT(ISERROR(MATCH(A24,Sources!$D:$D,0))),NOT(ISERROR(MATCH(F24,Sources!$E:$E,0)))),5*D24+3*E24,""))&IF(AND(ISERROR(MATCH(A24,Sources!$F:$F,0)),NOT(ISERROR(MATCH(F24,Sources!$G:$G,0)))),5*D24+3*E24,"")),"") ->  | J24: 48
A25: UTOPIA ISLAND | B25: =IFERROR(VLOOKUP(A25,Sheet2!$B$2:$C$18,2,0),"") -> Utopia | C25: 2018-08-02 | D25: 2 | E25: 0 | F25: HURGADA | G25: 96 | I25: =IFERROR(VALUE(IF(ISERROR(MATCH(A25,Sources!$B:$B,0)),IF(ISERROR(MATCH(F25,Sources!$C:$C,0)),"",5*D25+3*E25),IF(AND(NOT(ISERROR(MATCH(A25,Sources!$D:$D,0))),NOT(ISERROR(MATCH(F25,Sources!$E:$E,0)))),5*D25+3*E25,""))&IF(AND(ISERROR(MATCH(A25,Sources!$F:$F,0)),NOT(ISERROR(MATCH(F25,Sources!$G:$G,0)))),5*D25+3*E25,"")),"") ->  | J25: 96
A26: UTOPIA ISLAND | B26: =IFERROR(VLOOKUP(A26,Sheet2!$B$2:$C$18,2,0),"") -> Utopia | C26: 2018-08-02 | D26: 2 | E26: 1 | F26: HURGADA | G26: 120 | I26: =IFERROR(VALUE(IF(ISERROR(MATCH(A26,Sources!$B:$B,0)),IF(ISERROR(MATCH(F26,Sources!$C:$C,0)),"",5*D26+3*E26),IF(AND(NOT(ISERROR(MATCH(A26,Sources!$D:$D,0))),NOT(ISERROR(MATCH(F26,Sources!$E:$E,0)))),5*D26+3*E26,""))&IF(AND(ISERROR(MATCH(A26,Sources!$F:$F,0)),NOT(ISERROR(MATCH(F26,Sources!$G:$G,0)))),5*D26+3*E26,"")),"") ->  | J26: 120
A27: SEA TRIP | B27: =IFERROR(VLOOKUP(A27,Sheet2!$B$2:$C$18,2,0),"") -> Sea Trip | C27: 2018-08-02 | D27: 2 | E27: 0 | F27: HURGADA | G27: 80 | I27: =IFERROR(VALUE(IF(ISERROR(MATCH(A27,Sources!$B:$B,0)),IF(ISERROR(MATCH(F27,Sources!$C:$C,0)),"",5*D27+3*E27),IF(AND(NOT(ISERROR(MATCH(A27,Sources!$D:$D,0))),NOT(ISERROR(MATCH(F27,Sources!$E:$E,0)))),5*D27+3*E27,""))&IF(AND(ISERROR(MATCH(A27,Sources!$F:$F,0)),NOT(ISERROR(MATCH(F27,Sources!$G:$G,0)))),5*D27+3*E27,"")),"") ->  | J27: 80
A28: UTOPIA ISLAND | B28: =IFERROR(VLOOKUP(A28,Sheet2!$B$2:$C$18,2,0),"") -> Utopia | C28: 2018-08-02 | D28: 1 | E28: 1 | F28: HURGADA | G28: 72 | I28: =IFERROR(VALUE(IF(ISERROR(MATCH(A28,Sources!$B:$B,0)),IF(ISERROR(MATCH(F28,Sources!$C:$C,0)),"",5*D28+3*E28),IF(AND(NOT(ISERROR(MATCH(A28,Sources!$D:$D,0))),NOT(ISERROR(MATCH(F28,Sources!$E:$E,0)))),5*D28+3*E28,""))&IF(AND(ISERROR(MATCH(A28,Sources!$F:$F,0)),NOT(ISERROR(MATCH(F28,Sources!$G:$G,0)))),5*D28+3*E28,"")),"") ->  | J28: 72
A29: UTOPIA ISLAND | B29: =IFERROR(VLOOKUP(A29,Sheet2!$B$2:$C$18,2,0),"") -> Utopia | C29: 2018-08-02 | D29: 2 | E29: 0 | F29: HURGADA | G29: 96 | I29: =IFERROR(VALUE(IF(ISERROR(MATCH(A29,Sources!$B:$B,0)),IF(ISERROR(MATCH(F29,Sources!$C:$C,0)),"",5*D29+3*E29),IF(AND(NOT(ISERROR(MATCH(A29,Sources!$D:$D,0))),NOT(ISERROR(MATCH(F29,Sources!$E:$E,0)))),5*D29+3*E29,""))&IF(AND(ISERROR(MATCH(A29,Sources!$F:$F,0)),NOT(ISERROR(MATCH(F29,Sources!$G:$G,0)))),5*D29+3*E29,"")),"") ->  | J29: 96
A30: UTOPIA ISLAND | B30: =IFERROR(VLOOKUP(A30,Sheet2!$B$2:$C$18,2,0),"") -> Utopia | C30: 2018-08-02 | D30: 1 | E30: 0 | F30: HURGADA | G30: 48 | I30: =IFERROR(VALUE(IF(ISERROR(MATCH(A30,Sources!$B:$B,0)),IF(ISERROR(MATCH(F30,Sources!$C:$C,0)),"",5*D30+3*E30),IF(AND(NOT(ISERROR(MATCH(A30,Sources!$D:$D,0))),NOT(ISERROR(MATCH(F30,Sources!$E:$E,0)))),5*D30+3*E30,""))&IF(AND(ISERROR(MATCH(A30,Sources!$F:$F,0)),NOT(ISERROR(MATCH(F30,Sources!$G:$G,0)))),5*D30+3*E30,"")),"") ->  | J30: 48
A31: MOTO2 | B31: =IFERROR(VLOOKUP(A31,Sheet2!$B$2:$C$18,2,0),"") -> Moto 2 | C31: 2018-08-03 | D31: 2 | E31: 1 | F31: HURGADA | G31: 100 | I31: =IFERROR(VALUE(IF(ISERROR(MATCH(A31,Sources!$B:$B,0)),IF(ISERROR(MATCH(F31,Sources!$C:$C,0)),"",5*D31+3*E31),IF(AND(NOT(ISERROR(MATCH(A31,Sources!$D:$D,0))),NOT(ISERROR(MATCH(F31,Sources!$E:$E,0)))),5*D31+3*E31,""))&IF(AND(ISERROR(MATCH(A31,Sources!$F:$F,0)),NOT(ISERROR(MATCH(F31,Sources!$G:$G,0)))),5*D31+3*E31,"")),"") ->  | J31: 100
A32: MOTO2 | B32: =IFERROR(VLOOKUP(A32,Sheet2!$B$2:$C$18,2,0),"") -> Moto 2 | C32: 2018-08-03 | D32: 2 | E32: 0 | F32: HURGADA | G32: 80 | I32: =IFERROR(VALUE(IF(ISERROR(MATCH(A32,Sources!$B:$B,0)),IF(ISERROR(MATCH(F32,Sources!$C:$C,0)),"",5*D32+3*E32),IF(AND(NOT(ISERROR(MATCH(A32,Sources!$D:$D,0))),NOT(ISERROR(MATCH(F32,Sources!$E:$E,0)))),5*D32+3*E32,""))&IF(AND(ISERROR(MATCH(A32,Sources!$F:$F,0)),NOT(ISERROR(MATCH(F32,Sources!$G:$G,0)))),5*D32+3*E32,"")),"") ->  | J32: 80
A33: MOTO2 | B33: =IFERROR(VLOOKUP(A33,Sheet2!$B$2:$C$18,2,0),"") -> Moto 2 | C33: 2018-08-03 | D33: 1 | E33: 1 | F33: HURGADA | G33: 60 | I33: =IFERROR(VALUE(IF(ISERROR(MATCH(A33,Sources!$B:$B,0)),IF(ISERROR(MATCH(F33,Sources!$C:$C,0)),"",5*D33+3*E33),IF(AND(NOT(ISERROR(MATCH(A33,Sources!$D:$D,0))),NOT(ISERROR(MATCH(F33,Sources!$E:$E,0)))),5*D33+3*E33,""))&IF(AND(ISERROR(MATCH(A33,Sources!$F:$F,0)),NOT(ISERROR(MATCH(F33,Sources!$G:$G,0)))),5*D33+3*E33,"")),"") ->  | J33: 60
A34: MOTO2 | B34: =IFERROR(VLOOKUP(A34,Sheet2!$B$2:$C$18,2,0),"") -> Moto 2 | C34: 2018-08-03 | D34: 1 | E34: 1 | F34: HURGADA | G34: 60 | I34: =IFERROR(VALUE(IF(ISERROR(MATCH(A34,Sources!$B:$B,0)),IF(ISERROR(MATCH(F34,Sources!$C:$C,0)),"",5*D34+3*E34),IF(AND(NOT(ISERROR(MATCH(A34,Sources!$D:$D,0))),NOT(ISERROR(MATCH(F34,Sources!$E:$E,0)))),5*D34+3*E34,""))&IF(AND(ISERROR(MATCH(A34,Sources!$F:$F,0)),NOT(ISERROR(MATCH(F34,Sources!$G:$G,0)))),5*D34+3*E34,"")),"") ->  | J34: 60
A35: MOTO2 | B35: =IFERROR(VLOOKUP(A35,Sheet2!$B$2:$C$18,2,0),"") -> Moto 2 | C35: 2018-08-04 | D35: 2 | E35: 0 | F35: MAKADI BAY | G35: 100 | I35: =IFERROR(VALUE(IF(ISERROR(MATCH(A35,Sources!$B:$B,0)),IF(ISERROR(MATCH(F35,Sources!$C:$C,0)),"",5*D35+3*E35),IF(AND(NOT(ISERROR(MATCH(A35,Sources!$D:$D,0))),NOT(ISERROR(MATCH(F35,Sources!$E:$E,0)))),5*D35+3*E35,""))&IF(AND(ISERROR(MATCH(A35,Sources!$F:$F,0)),NOT(ISERROR(MATCH(F35,Sources!$G:$G,0)))),5*D35+3*E35,"")),"") -> 10 | J35: 90
A36: GRAND AQUARIUM | B36: =IFERROR(VLOOKUP(A36,Sheet2!$B$2:$C$18,2,0),"") -> Grand Aquarium | C36: 2018-08-04 | D36: 2 | E36: 1 | F36: MAKADI BAY | G36: 133 | I36: =IFERROR(VALUE(IF(ISERROR(MATCH(A36,Sources!$B:$B,0)),IF(ISERROR(MATCH(F36,Sources!$C:$C,0)),"",5*D36+3*E36),IF(AND(NOT(ISERROR(MATCH(A36,Sources!$D:$D,0))),NOT(ISERROR(MATCH(F36,Sources!$E:$E,0)))),5*D36+3*E36,""))&IF(AND(ISERROR(MATCH(A36,Sources!$F:$F,0)),NOT(ISERROR(MATCH(F36,Sources!$G:$G,0)))),5*D36+3*E36,"")),"") -> 13 | J36: 120
A37: GRAND AQUARIUM | B37: =IFERROR(VLOOKUP(A37,Sheet2!$B$2:$C$18,2,0),"") -> Grand Aquarium | C37: 2018-08-04 | D37: 1 | E37: 1 | F37: HURGADA | G37: 53 | I37: =IFERROR(VALUE(IF(ISERROR(MATCH(A37,Sources!$B:$B,0)),IF(ISERROR(MATCH(F37,Sources!$C:$C,0)),"",5*D37+3*E37),IF(AND(NOT(ISERROR(MATCH(A37,Sources!$D:$D,0))),NOT(ISERROR(MATCH(F37,Sources!$E:$E,0)))),5*D37+3*E37,""))&IF(AND(ISERROR(MATCH(A37,Sources!$F:$F,0)),NOT(ISERROR(MATCH(F37,Sources!$G:$G,0)))),5*D37+3*E37,"")),"") ->  | J37: 53
A38: MOTO2 | B38: =IFERROR(VLOOKUP(A38,Sheet2!$B$2:$C$18,2,0),"") -> Moto 2 | C38: 2018-08-04 | D38: 2 | E38: 0 | F38: HURGADA | G38: 90 | I38: =IFERROR(VALUE(IF(ISERROR(MATCH(A38,Sources!$B:$B,0)),IF(ISERROR(MATCH(F38,Sources!$C:$C,0)),"",5*D38+3*E38),IF(AND(NOT(ISERROR(MATCH(A38,Sources!$D:$D,0))),NOT(ISERROR(MATCH(F38,Sources!$E:$E,0)))),5*D38+3*E38,""))&IF(AND(ISERROR(MATCH(A38,Sources!$F:$F,0)),NOT(ISERROR(MATCH(F38,Sources!$G:$G,0)))),5*D38+3*E38,"")),"") ->  | J38: 90
A39: MOTO2 | B39: =IFERROR(VLOOKUP(A39,Sheet2!$B$2:$C$18,2,0),"") -> Moto 2 | C39: 2018-08-04 | D39: 2 | E39: 0 | F39: HURGADA | G39: 90 | I39: =IFERROR(VALUE(IF(ISERROR(MATCH(A39,Sources!$B:$B,0)),IF(ISERROR(MATCH(F39,Sources!$C:$C,0)),"",5*D39+3*E39),IF(AND(NOT(ISERROR(MATCH(A39,Sources!$D:$D,0))),NOT(ISERROR(MATCH(F39,Sources!$E:$E,0)))),5*D39+3*E39,""))&IF(AND(ISERROR(MATCH(A39,Sources!$F:$F,0)),NOT(ISERROR(MATCH(F39,Sources!$G:$G,0)))),5*D39+3*E39,"")),"") ->  | J39: 90
A40: GRAND AQUARIUM | B40: =IFERROR(VLOOKUP(A40,Sheet2!$B$2:$C$18,2,0),"") -> Grand Aquarium | C40: 2018-08-04 | D40: 2 | E40: 0 | F40: HURGADA | G40: 80 | I40: =IFERROR(VALUE(IF(ISERROR(MATCH(A40,Sources!$B:$B,0)),IF(ISERROR(MATCH(F40,Sources!$C:$C,0)),"",5*D40+3*E40),IF(AND(NOT(ISERROR(MATCH(A40,Sources!$D:$D,0))),NOT(ISERROR(MATCH(F40,Sources!$E:$E,0)))),5*D40+3*E40,""))&IF(AND(ISERROR(MATCH(A40,Sources!$F:$F,0)),NOT(ISERROR(MATCH(F40,Sources!$G:$G,0)))),5*D40+3*E40,"")),"") ->  | J40: 80
A41: MOTO2 | B41: =IFERROR(VLOOKUP(A41,Sheet2!$B$2:$C$18,2,0),"") -> Moto 2 | C41: 2018-08-04 | D41: 3 | E41: 0 | F41: MAKADI BAY | G41: 135 | I41: =IFERROR(VALUE(IF(ISERROR(MATCH(A41,Sources!$B:$B,0)),IF(ISERROR(MATCH(F41,Sources!$C:$C,0)),"",5*D41+3*E41),IF(AND(NOT(ISERROR(MATCH(A41,Sources!$D:$D,0))),NOT(ISERROR(MATCH(F41,Sources!$E:$E,0)))),5*D41+3*E41,""))&IF(AND(ISERROR(MATCH(A41,Sources!$F:$F,0)),NOT(ISERROR(MATCH(F41,Sources!$G:$G,0)))),5*D41+3*E41,"")),"") -> 15 | J41: 120
A42: GRAND AQUARIUM | B42: =IFERROR(VLOOKUP(A42,Sheet2!$B$2:$C$18,2,0),"") -> Grand Aquarium | C42: 2018-08-04 | D42: 2 | E42: 1 | F42: HURGADA | G42: 87 | I42: =IFERROR(VALUE(IF(ISERROR(MATCH(A42,Sources!$B:$B,0)),IF(ISERROR(MATCH(F42,Sources!$C:$C,0)),"",5*D42+3*E42),IF(AND(NOT(ISERROR(MATCH(A42,Sources!$D:$D,0))),NOT(ISERROR(MATCH(F42,Sources!$E:$E,0)))),5*D42+3*E42,""))&IF(AND(ISERROR(MATCH(A42,Sources!$F:$F,0)),NOT(ISERROR(MATCH(F42,Sources!$G:$G,0)))),5*D42+3*E42,"")),"") ->  | J42: 87
A43: GRAND AQUARIUM | B43: =IFERROR(VLOOKUP(A43,Sheet2!$B$2:$C$18,2,0),"") -> Grand Aquarium | C43: 2018-08-04 | D43: 2 | E43: 0 | F43: HURGADA | G43: 70 | I43: =IFERROR(VALUE(IF(ISERROR(MATCH(A43,Sources!$B:$B,0)),IF(ISERROR(MATCH(F43,Sources!$C:$C,0)),"",5*D43+3*E43),IF(AND(NOT(ISERROR(MATCH(A43,Sources!$D:$D,0))),NOT(ISERROR(MATCH(F43,Sources!$E:$E,0)))),5*D43+3*E43,""))&IF(AND(ISERROR(MATCH(A43,Sources!$F:$F,0)),NOT(ISERROR(MATCH(F43,Sources!$G:$G,0)))),5*D43+3*E43,"")),"") ->  | J43: 70
A44: MOTO2 | B44: =IFERROR(VLOOKUP(A44,Sheet2!$B$2:$C$18,2,0),"") -> Moto 2 | C44: 2018-08-04 | D44: 2 | E44: 0 | F44: HURGADA | G44: 80 | I44: =IFERROR(VALUE(IF(ISERROR(MATCH(A44,Sources!$B:$B,0)),IF(ISERROR(MATCH(F44,Sources!$C:$C,0)),"",5*D44+3*E44),IF(AND(NOT(ISERROR(MATCH(A44,Sources!$D:$D,0))),NOT(ISERROR(MATCH(F44,Sources!$E:$E,0)))),5*D44+3*E44,""))&IF(AND(ISERROR(MATCH(A44,Sources!$F:$F,0)),NOT(ISERROR(MATCH(F44,Sources!$G:$G,0)))),5*D44+3*E44,"")),"") ->  | J44: 80
A45: MOTO2 | B45: =IFERROR(VLOOKUP(A45,Sheet2!$B$2:$C$18,2,0),"") -> Moto 2 | C45: 2018-08-04 | D45: 2 | E45: 0 | F45: HURGADA | G45: 80 | I45: =IFERROR(VALUE(IF(ISERROR(MATCH(A45,Sources!$B:$B,0)),IF(ISERROR(MATCH(F45,Sources!$C:$C,0)),"",5*D45+3*E45),IF(AND(NOT(ISERROR(MATCH(A45,Sources!$D:$D,0))),NOT(ISERROR(MATCH(F45,Sources!$E:$E,0)))),5*D45+3*E45,""))&IF(AND(ISERROR(MATCH(A45,Sources!$F:$F,0)),NOT(ISERROR(MATCH(F45,Sources!$G:$G,0)))),5*D45+3*E45,"")),"") ->  | J45: 80
A46: GRAND AQUARIUM | B46: =IFERROR(VLOOKUP(A46,Sheet2!$B$2:$C$18,2,0),"") -> Grand Aquarium | C46: 2018-08-04 | D46: 2 | E46: 1 | F46: HURGADA | G46: 87 | I46: =IFERROR(VALUE(IF(ISERROR(MATCH(A46,Sources!$B:$B,0)),IF(ISERROR(MATCH(F46,Sources!$C:$C,0)),"",5*D46+3*E46),IF(AND(NOT(ISERROR(MATCH(A46,Sources!$D:$D,0))),NOT(ISERROR(MATCH(F46,Sources!$E:$E,0)))),5*D46+3*E46,""))&IF(AND(ISERROR(MATCH(A46,Sources!$F:$F,0)),NOT(ISERROR(MATCH(F46,Sources!$G:$G,0)))),5*D46+3*E46,"")),"") ->  | J46: 87
A47: GRAND AQUARIUM | B47: =IFERROR(VLOOKUP(A47,Sheet2!$B$2:$C$18,2,0),"") -> Grand Aquarium | C47: 2018-08-04 | D47: 1 | E47: 1 | F47: HURGADA | G47: 52 | I47: =IFERROR(VALUE(IF(ISERROR(MATCH(A47,Sources!$B:$B,0)),IF(ISERROR(MATCH(F47,Sources!$C:$C,0)),"",5*D47+3*E47),IF(AND(NOT(ISERROR(MATCH(A47,Sources!$D:$D,0))),NOT(ISERROR(MATCH(F47,Sources!$E:$E,0)))),5*D47+3*E47,""))&IF(AND(ISERROR(MATCH(A47,Sources!$F:$F,0)),NOT(ISERROR(MATCH(F47,Sources!$G:$G,0)))),5*D47+3*E47,"")),"") ->  | J47: 52
A48: GRAND AQUARIUM | B48: =IFERROR(VLOOKUP(A48,Sheet2!$B$2:$C$18,2,0),"") -> Grand Aquarium | C48: 2018-08-04 | D48: 2 | E48: 0 | F48: HURGADA | G48: 80 | I48: =IFERROR(VALUE(IF(ISERROR(MATCH(A48,Sources!$B:$B,0)),IF(ISERROR(MATCH(F48,Sources!$C:$C,0)),"",5*D48+3*E48),IF(AND(NOT(ISERROR(MATCH(A48,Sources!$D:$D,0))),NOT(ISERROR(MATCH(F48,Sources!$E:$E,0)))),5*D48+3*E48,""))&IF(AND(ISERROR(MATCH(A48,Sources!$F:$F,0)),NOT(ISERROR(MATCH(F48,Sources!$G:$G,0)))),5*D48+3*E48,"")),"") ->  | J48: 80
A49: MOTO 1 HOUR | B49: =IFERROR(VLOOKUP(A49,Sheet2!$B$2:$C$18,2,0),"") -> Moto 1 Hour | C49: 2018-08-04 | D49: 1 | E49: 0 | F49: HURGADA | G49: 40 | I49: =IFERROR(VALUE(IF(ISERROR(MATCH(A49,Sources!$B:$B,0)),IF(ISERROR(MATCH(F49,Sources!$C:$C,0)),"",5*D49+3*E49),IF(AND(NOT(ISERROR(MATCH(A49,Sources!$D:$D,0))),NOT(ISERROR(MATCH(F49,Sources!$E:$E,0)))),5*D49+3*E49,""))&IF(AND(ISERROR(MATCH(A49,Sources!$F:$F,0)),NOT(ISERROR(MATCH(F49,Sources!$G:$G,0)))),5*D49+3*E49,"")),"") ->  | J49: 40
A50: GRAND AQUARIUM | B50: =IFERROR(VLOOKUP(A50,Sheet2!$B$2:$C$18,2,0),"") -> Grand Aquarium | C50: 2018-08-04 | D50: 2 | E50: 0 | F50: HURGADA | G50: 80 | I50: =IFERROR(VALUE(IF(ISERROR(MATCH(A50,Sources!$B:$B,0)),IF(ISERROR(MATCH(F50,Sources!$C:$C,0)),"",5*D50+3*E50),IF(AND(NOT(ISERROR(MATCH(A50,Sources!$D:$D,0))),NOT(ISERROR(MATCH(F50,Sources!$E:$E,0)))),5*D50+3*E50,""))&IF(AND(ISERROR(MATCH(A50,Sources!$F:$F,0)),NOT(ISERROR(MATCH(F50,Sources!$G:$G,0)))),5*D50+3*E50,"")),"") ->  | J50: 80
A51: UTOPIA ISLAND | B51: =IFERROR(VLOOKUP(A51,Sheet2!$B$2:$C$18,2,0),"") -> Utopia | C51: 2018-08-05 | D51: 1 | E51: 0 | F51: HURGADA | G51: 55 | I51: =IFERROR(VALUE(IF(ISERROR(MATCH(A51,Sources!$B:$B,0)),IF(ISERROR(MATCH(F51,Sources!$C:$C,0)),"",5*D51+3*E51),IF(AND(NOT(ISERROR(MATCH(A51,Sources!$D:$D,0))),NOT(ISERROR(MATCH(F51,Sources!$E:$E,0)))),5*D51+3*E51,""))&IF(AND(ISERROR(MATCH(A51,Sources!$F:$F,0)),NOT(ISERROR(MATCH(F51,Sources!$G:$G,0)))),5*D51+3*E51,"")),"") ->  | J51: 55
A52: UTOPIA ISLAND | B52: =IFERROR(VLOOKUP(A52,Sheet2!$B$2:$C$18,2,0),"") -> Utopia | C52: 2018-08-05 | D52: 2 | E52: 1 | F52: HURGADA | G52: 138 | I52: =IFERROR(VALUE(IF(ISERROR(MATCH(A52,Sources!$B:$B,0)),IF(ISERROR(MATCH(F52,Sources!$C:$C,0)),"",5*D52+3*E52),IF(AND(NOT(ISERROR(MATCH(A52,Sources!$D:$D,0))),NOT(ISERROR(MATCH(F52,Sources!$E:$E,0)))),5*D52+3*E52,""))&IF(AND(ISERROR(MATCH(A52,Sources!$F:$F,0)),NOT(ISERROR(MATCH(F52,Sources!$G:$G,0)))),5*D52+3*E52,"")),"") ->  | J52: 138
A53: UTOPIA ISLAND | B53: =IFERROR(VLOOKUP(A53,Sheet2!$B$2:$C$18,2,0),"") -> Utopia | C53: 2018-08-05 | D53: 2 | E53: 0 | F53: HURGADA | G53: 110 | I53: =IFERROR(VALUE(IF(ISERROR(MATCH(A53,Sources!$B:$B,0)),IF(ISERROR(MATCH(F53,Sources!$C:$C,0)),"",5*D53+3*E53),IF(AND(NOT(ISERROR(MATCH(A53,Sources!$D:$D,0))),NOT(ISERROR(MATCH(F53,Sources!$E:$E,0)))),5*D53+3*E53,""))&IF(AND(ISERROR(MATCH(A53,Sources!$F:$F,0)),NOT(ISERROR(MATCH(F53,Sources!$G:$G,0)))),5*D53+3*E53,"")),"") ->  | J53: 110
A54: UTOPIA ISLAND | B54: =IFERROR(VLOOKUP(A54,Sheet2!$B$2:$C$18,2,0),"") -> Utopia | C54: 2018-08-05 | D54: 2 | E54: 0 | F54: HURGADA | G54: 110 | I54: =IFERROR(VALUE(IF(ISERROR(MATCH(A54,Sources!$B:$B,0)),IF(ISERROR(MATCH(F54,Sources!$C:$C,0)),"",5*D54+3*E54),IF(AND(NOT(ISERROR(MATCH(A54,Sources!$D:$D,0))),NOT(ISERROR(MATCH(F54,Sources!$E:$E,0)))),5*D54+3*E54,""))&IF(AND(ISERROR(MATCH(A54,Sources!$F:$F,0)),NOT(ISERROR(MATCH(F54,Sources!$G:$G,0)))),5*D54+3*E54,"")),"") ->  | J54: 110
A55: UTOPIA ISLAND | B55: =IFERROR(VLOOKUP(A55,Sheet2!$B$2:$C$18,2,0),"") -> Utopia | C55: 2018-08-05 | D55: 2 | E55: 0 | F55: HURGADA | G55: 110 | I55: =IFERROR(VALUE(IF(ISERROR(MATCH(A55,Sources!$B:$B,0)),IF(ISERROR(MATCH(F55,Sources!$C:$C,0)),"",5*D55+3*E55),IF(AND(NOT(ISERROR(MATCH(A55,Sources!$D:$D,0))),NOT(ISERROR(MATCH(F55,Sources!$E:$E,0)))),5*D55+3*E55,""))&IF(AND(ISERROR(MATCH(A55,Sources!$F:$F,0)),NOT(ISERROR(MATCH(F55,Sources!$G:$G,0)))),5*D55+3*E55,"")),"") ->  | J55: 110
A56: UTOPIA ISLAND | B56: =IFERROR(VLOOKUP(A56,Sheet2!$B$2:$C$18,2,0),"") -> Utopia | C56: 2018-08-05 | D56: 2 | E56: 0 | F56: HURGADA | G56: 110 | I56: =IFERROR(VALUE(IF(ISERROR(MATCH(A56,Sources!$B:$B,0)),IF(ISERROR(MATCH(F56,Sources!$C:$C,0)),"",5*D56+3*E56),IF(AND(NOT(ISERROR(MATCH(A56,Sources!$D:$D,0))),NOT(ISERROR(MATCH(F56,Sources!$E:$E,0)))),5*D56+3*E56,""))&IF(AND(ISERROR(MATCH(A56,Sources!$F:$F,0)),NOT(ISERROR(MATCH(F56,Sources!$G:$G,0)))),5*D56+3*E56,"")),"") ->  | J56: 110
A57: UTOPIA ISLAND | B57: =IFERROR(VLOOKUP(A57,Sheet2!$B$2:$C$18,2,0),"") -> Utopia | C57: 2018-08-05 | D57: 2 | E57: 1 | F57: MAKADI BAY | G57: 138 | I57: =IFERROR(VALUE(IF(ISERROR(MATCH(A57,Sources!$B:$B,0)),IF(ISERROR(MATCH(F57,Sources!$C:$C,0)),"",5*D57+3*E57),IF(AND(NOT(ISERROR(MATCH(A57,Sources!$D:$D,0))),NOT(ISERROR(MATCH(F57,Sources!$E:$E,0)))),5*D57+3*E57,""))&IF(AND(ISERROR(MATCH(A57,Sources!$F:$F,0)),NOT(ISERROR(MATCH(F57,Sources!$G:$G,0)))),5*D57+3*E57,"")),"") ->  | J57: 138
A58: UTOPIA ISLAND | B58: =IFERROR(VLOOKUP(A58,Sheet2!$B$2:$C$18,2,0),"") -> Utopia | C58: 2018-08-05 | D58: 2 | E58: 1 | F58: MAKADI BAY | G58: 138 | I58: =IFERROR(VALUE(IF(ISERROR(MATCH(A58,Sources!$B:$B,0)),IF(ISERROR(MATCH(F58,Sources!$C:$C,0)),"",5*D58+3*E58),IF(AND(NOT(ISERROR(MATCH(A58,Sources!$D:$D,0))),NOT(ISERROR(MATCH(F58,Sources!$E:$E,0)))),5*D58+3*E58,""))&IF(AND(ISERROR(MATCH(A58,Sources!$F:$F,0)),NOT(ISERROR(MATCH(F58,Sources!$G:$G,0)))),5*D58+3*E58,"")),"") ->  | J58: 138
A59: UTOPIA ISLAND | B59: =IFERROR(VLOOKUP(A59,Sheet2!$B$2:$C$18,2,0),"") -> Utopia | C59: 2018-08-05 | D59: 2 | E59: 1 | F59: MAKADI BAY | G59: 138 | I59: =IFERROR(VALUE(IF(ISERROR(MATCH(A59,Sources!$B:$B,0)),IF(ISERROR(MATCH(F59,Sources!$C:$C,0)),"",5*D59+3*E59),IF(AND(NOT(ISERROR(MATCH(A59,Sources!$D:$D,0))),NOT(ISERROR(MATCH(F59,Sources!$E:$E,0)))),5*D59+3*E59,""))&IF(AND(ISERROR(MATCH(A59,Sources!$F:$F,0)),NOT(ISERROR(MATCH(F59,Sources!$G:$G,0)))),5*D59+3*E59,"")),"") ->  | J59: 138
A60: UTOPIA ISLAND | B60: =IFERROR(VLOOKUP(A60,Sheet2!$B$2:$C$18,2,0),"") -> Utopia | C60: 2018-08-05 | D60: 2 | E60: 0 | F60: MAKADI BAY | G60: 110 | I60: =IFERROR(VALUE(IF(ISERROR(MATCH(A60,Sources!$B:$B,0)),IF(ISERROR(MATCH(F60,Sources!$C:$C,0)),"",5*D60+3*E60),IF(AND(NOT(ISERROR(MATCH(A60,Sources!$D:$D,0))),NOT(ISERROR(MATCH(F60,Sources!$E:$E,0)))),5*D60+3*E60,""))&IF(AND(ISERROR(MATCH(A60,Sources!$F:$F,0)),NOT(ISERROR(MATCH(F60,Sources!$G:$G,0)))),5*D60+3*E60,"")),"") ->  | J60: 110
A61: UTOPIA ISLAND | B61: =IFERROR(VLOOKUP(A61,Sheet2!$B$2:$C$18,2,0),"") -> Utopia | C61: 2018-08-05 | D61: 2 | E61: 0 | F61: MAKADI BAY | G61: 110 | I61: =IFERROR(VALUE(IF(ISERROR(MATCH(A61,Sources!$B:$B,0)),IF(ISERROR(MATCH(F61,Sources!$C:$C,0)),"",5*D61+3*E61),IF(AND(NOT(ISERROR(MATCH(A61,Sources!$D:$D,0))),NOT(ISERROR(MATCH(F61,Sources!$E:$E,0)))),5*D61+3*E61,""))&IF(AND(ISERROR(MATCH(A61,Sources!$F:$F,0)),NOT(ISERROR(MATCH(F61,Sources!$G:$G,0)))),5*D61+3*E61,"")),"") ->  | J61: 110
A62: UTOPIA ISLAND | B62: =IFERROR(VLOOKUP(A62,Sheet2!$B$2:$C$18,2,0),"") -> Utopia | C62: 2018-08-05 | D62: 2 | E62: 2 | F62: MAKADI BAY | G62: 166 | I62: =IFERROR(VALUE(IF(ISERROR(MATCH(A62,Sources!$B:$B,0)),IF(ISERROR(MATCH(F62,Sources!$C:$C,0)),"",5*D62+3*E62),IF(AND(NOT(ISERROR(MATCH(A62,Sources!$D:$D,0))),NOT(ISERROR(MATCH(F62,Sources!$E:$E,0)))),5*D62+3*E62,""))&IF(AND(ISERROR(MATCH(A62,Sources!$F:$F,0)),NOT(ISERROR(MATCH(F62,Sources!$G:$G,0)))),5*D62+3*E62,"")),"") ->  | J62: 166
A63: UTOPIA ISLAND | B63: =IFERROR(VLOOKUP(A63,Sheet2!$B$2:$C$18,2,0),"") -> Utopia | C63: 2018-08-05 | D63: 2 | E63: 0 | F63: MAKADI BAY | G63: 110 | I63: =IFERROR(VALUE(IF(ISERROR(MATCH(A63,Sources!$B:$B,0)),IF(ISERROR(MATCH(F63,Sources!$C:$C,0)),"",5*D63+3*E63),IF(AND(NOT(ISERROR(MATCH(A63,Sources!$D:$D,0))),NOT(ISERROR(MATCH(F63,Sources!$E:$E,0)))),5*D63+3*E63,""))&IF(AND(ISERROR(MATCH(A63,Sources!$F:$F,0)),NOT(ISERROR(MATCH(F63,Sources!$G:$G,0)))),5*D63+3*E63,"")),"") ->  | J63: 110
A64: UTOPIA ISLAND | B64: =IFERROR(VLOOKUP(A64,Sheet2!$B$2:$C$18,2,0),"") -> Utopia | C64: 2018-08-05 | D64: 2 | E64: 1 | F64: MAKADI BAY | G64: 138 | I64: =IFERROR(VALUE(IF(ISERROR(MATCH(A64,Sources!$B:$B,0)),IF(ISERROR(MATCH(F64,Sources!$C:$C,0)),"",5*D64+3*E64),IF(AND(NOT(ISERROR(MATCH(A64,Sources!$D:$D,0))),NOT(ISERROR(MATCH(F64,Sources!$E:$E,0)))),5*D64+3*E64,""))&IF(AND(ISERROR(MATCH(A64,Sources!$F:$F,0)),NOT(ISERROR(MATCH(F64,Sources!$G:$G,0)))),5*D64+3*E64,"")),"") ->  | J64: 138
A65: UTOPIA ISLAND | B65: =IFERROR(VLOOKUP(A65,Sheet2!$B$2:$C$18,2,0),"") -> Utopia | C65: 2018-08-05 | D65: 2 | E65: 0 | F65: MAKADI BAY | G65: 110 | I65: =IFERROR(VALUE(IF(ISERROR(MATCH(A65,Sources!$B:$B,0)),IF(ISERROR(MATCH(F65,Sources!$C:$C,0)),"",5*D65+3*E65),IF(AND(NOT(ISERROR(MATCH(A65,Sources!$D:$D,0))),NOT(ISERROR(MATCH(F65,Sources!$E:$E,0)))),5*D65+3*E65,""))&IF(AND(ISERROR(MATCH(A65,Sources!$F:$F,0)),NOT(ISERROR(MATCH(F65,Sources!$G:$G,0)))),5*D65+3*E65,"")),"") ->  | J65: 110
A66: UTOPIA ISLAND | B66: =IFERROR(VLOOKUP(A66,Sheet2!$B$2:$C$18,2,0),"") -> Utopia | C66: 2018-08-05 | D66: 2 | E66: 0 | F66: MAKADI BAY | G66: 110 | I66: =IFERROR(VALUE(IF(ISERROR(MATCH(A66,Sources!$B:$B,0)),IF(ISERROR(MATCH(F66,Sources!$C:$C,0)),"",5*D66+3*E66),IF(AND(NOT(ISERROR(MATCH(A66,Sources!$D:$D,0))),NOT(ISERROR(MATCH(F66,Sources!$E:$E,0)))),5*D66+3*E66,""))&IF(AND(ISERROR(MATCH(A66,Sources!$F:$F,0)),NOT(ISERROR(MATCH(F66,Sources!$G:$G,0)))),5*D66+3*E66,"")),"") ->  | J66: 110
A67: UTOPIA ISLAND | B67: =IFERROR(VLOOKUP(A67,Sheet2!$B$2:$C$18,2,0),"") -> Utopia | C67: 2018-08-05 | D67: 2 | E67: 0 | F67: MAKADI BAY | G67: 110 | I67: =IFERROR(VALUE(IF(ISERROR(MATCH(A67,Sources!$B:$B,0)),IF(ISERROR(MATCH(F67,Sources!$C:$C,0)),"",5*D67+3*E67),IF(AND(NOT(ISERROR(MATCH(A67,Sources!$D:$D,0))),NOT(ISERROR(MATCH(F67,Sources!$E:$E,0)))),5*D67+3*E67,""))&IF(AND(ISERROR(MATCH(A67,Sources!$F:$F,0)),NOT(ISERROR(MATCH(F67,Sources!$G:$G,0)))),5*D67+3*E67,"")),"") ->  | J67: =IF(I67="",G67,(G67-I67)) -> 110
A68: UTOPIA ISLAND | B68: =IFERROR(VLOOKUP(A68,Sheet2!$B$2:$C$18,2,0),"") -> Utopia | C68: 2018-08-05 | D68: 2 | E68: 0 | F68: MAKADI BAY | G68: 110 | I68: =IFERROR(VALUE(IF(ISERROR(MATCH(A68,Sources!$B:$B,0)),IF(ISERROR(MATCH(F68,Sources!$C:$C,0)),"",5*D68+3*E68),IF(AND(NOT(ISERROR(MATCH(A68,Sources!$D:$D,0))),NOT(ISERROR(MATCH(F68,Sources!$E:$E,0)))),5*D68+3*E68,""))&IF(AND(ISERROR(MATCH(A68,Sources!$F:$F,0)),NOT(ISERROR(MATCH(F68,Sources!$G:$G,0)))),5*D68+3*E68,"")),"") ->  | J68: 110
A69: UTOPIA ISLAND | B69: =IFERROR(VLOOKUP(A69,Sheet2!$B$2:$C$18,2,0),"") -> Utopia | C69: 2018-08-05 | D69: 4 | E69: 3 | F69: MAKADI BAY | G69: 304 | I69: =IFERROR(VALUE(IF(ISERROR(MATCH(A69,Sources!$B:$B,0)),IF(ISERROR(MATCH(F69,Sources!$C:$C,0)),"",5*D69+3*E69),IF(AND(NOT(ISERROR(MATCH(A69,Sources!$D:$D,0))),NOT(ISERROR(MATCH(F69,Sources!$E:$E,0)))),5*D69+3*E69,""))&IF(AND(ISERROR(MATCH(A69,Sources!$F:$F,0)),NOT(ISERROR(MATCH(F69,Sources!$G:$G,0)))),5*D69+3*E69,"")),"") ->  | J69: 304
A70: DOLPHIN WORLD SHOW | B70: =IFERROR(VLOOKUP(A70,Sheet2!$B$2:$C$18,2,0),"") -> Dolphin world show | C70: 2018-08-05 | D70: 2 | E70: 0 | F70: MAKADI BAY | G70: 80 | I70: =IFERROR(VALUE(IF(ISERROR(MATCH(A70,Sources!$B:$B,0)),IF(ISERROR(MATCH(F70,Sources!$C:$C,0)),"",5*D70+3*E70),IF(AND(NOT(ISERROR(MATCH(A70,Sources!$D:$D,0))),NOT(ISERROR(MATCH(F70,Sources!$E:$E,0)))),5*D70+3*E70,""))&IF(AND(ISERROR(MATCH(A70,Sources!$F:$F,0)),NOT(ISERROR(MATCH(F70,Sources!$G:$G,0)))),5*D70+3*E70,"")),"") ->  | J70: 80
A71: UTOPIA ISLAND | B71: =IFERROR(VLOOKUP(A71,Sheet2!$B$2:$C$18,2,0),"") -> Utopia | C71: 2018-08-05 | D71: 1 | E71: 0 | F71: HURGADA | G71: 55 | I71: =IFERROR(VALUE(IF(ISERROR(MATCH(A71,Sources!$B:$B,0)),IF(ISERROR(MATCH(F71,Sources!$C:$C,0)),"",5*D71+3*E71),IF(AND(NOT(ISERROR(MATCH(A71,Sources!$D:$D,0))),NOT(ISERROR(MATCH(F71,Sources!$E:$E,0)))),5*D71+3*E71,""))&IF(AND(ISERROR(MATCH(A71,Sources!$F:$F,0)),NOT(ISERROR(MATCH(F71,Sources!$G:$G,0)))),5*D71+3*E71,"")),"") ->  | J71: 55
A72: UTOPIA ISLAND | B72: =IFERROR(VLOOKUP(A72,Sheet2!$B$2:$C$18,2,0),"") -> Utopia | C72: 2018-08-05 | D72: 1 | E72: 1 | F72: HURGADA | G72: 83 | I72: =IFERROR(VALUE(IF(ISERROR(MATCH(A72,Sources!$B:$B,0)),IF(ISERROR(MATCH(F72,Sources!$C:$C,0)),"",5*D72+3*E72),IF(AND(NOT(ISERROR(MATCH(A72,Sources!$D:$D,0))),NOT(ISERROR(MATCH(F72,Sources!$E:$E,0)))),5*D72+3*E72,""))&IF(AND(ISERROR(MATCH(A72,Sources!$F:$F,0)),NOT(ISERROR(MATCH(F72,Sources!$G:$G,0)))),5*D72+3*E72,"")),"") ->  | J72: 83
A73: UTOPIA ISLAND | B73: =IFERROR(VLOOKUP(A73,Sheet2!$B$2:$C$18,2,0),"") -> Utopia | C73: 2018-08-05 | D73: 2 | E73: 1 | F73: HURGADA | G73: 138 | I73: =IFERROR(VALUE(IF(ISERROR(MATCH(A73,Sources!$B:$B,0)),IF(ISERROR(MATCH(F73,Sources!$C:$C,0)),"",5*D73+3*E73),IF(AND(NOT(ISERROR(MATCH(A73,Sources!$D:$D,0))),NOT(ISERROR(MATCH(F73,Sources!$E:$E,0)))),5*D73+3*E73,""))&IF(AND(ISERROR(MATCH(A73,Sources!$F:$F,0)),NOT(ISERROR(MATCH(F73,Sources!$G:$G,0)))),5*D73+3*E73,"")),"") ->  | J73: 138
A74: UTOPIA ISLAND | B74: =IFERROR(VLOOKUP(A74,Sheet2!$B$2:$C$18,2,0),"") -> Utopia | C74: 2018-08-05 | D74: 2 | E74: 0 | F74: HURGADA | G74: 110 | I74: =IFERROR(VALUE(IF(ISERROR(MATCH(A74,Sources!$B:$B,0)),IF(ISERROR(MATCH(F74,Sources!$C:$C,0)),"",5*D74+3*E74),IF(AND(NOT(ISERROR(MATCH(A74,Sources!$D:$D,0))),NOT(ISERROR(MATCH(F74,Sources!$E:$E,0)))),5*D74+3*E74,""))&IF(AND(ISERROR(MATCH(A74,Sources!$F:$F,0)),NOT(ISERROR(MATCH(F74,Sources!$G:$G,0)))),5*D74+3*E74,"")),"") ->  | J74: 110
A75: UTOPIA ISLAND | B75: =IFERROR(VLOOKUP(A75,Sheet2!$B$2:$C$18,2,0),"") -> Utopia | C75: 2018-08-05 | D75: 2 | E75: 0 | F75: HURGADA | G75: 110 | I75: =IFERROR(VALUE(IF(ISERROR(MATCH(A75,Sources!$B:$B,0)),IF(ISERROR(MATCH(F75,Sources!$C:$C,0)),"",5*D75+3*E75),IF(AND(NOT(ISERROR(MATCH(A75,Sources!$D:$D,0))),NOT(ISERROR(MATCH(F75,Sources!$E:$E,0)))),5*D75+3*E75,""))&IF(AND(ISERROR(MATCH(A75,Sources!$F:$F,0)),NOT(ISERROR(MATCH(F75,Sources!$G:$G,0)))),5*D75+3*E75,"")),"") ->  | J75: 110
A76: RUSALKA ( MERMAID ) | B76: =IFERROR(VLOOKUP(A76,Sheet2!$B$2:$C$18,2,0),"") -> Rusalka (Mermaid) | C76: 2018-08-06 | D76: 2 | E76: 0 | F76: HURGADA | G76: 80 | I76: =IFERROR(VALUE(IF(ISERROR(MATCH(A76,Sources!$B:$B,0)),IF(ISERROR(MATCH(F76,Sources!$C:$C,0)),"",5*D76+3*E76),IF(AND(NOT(ISERROR(MATCH(A76,Sources!$D:$D,0))),NOT(ISERROR(MATCH(F76,Sources!$E:$E,0)))),5*D76+3*E76,""))&IF(AND(ISERROR(MATCH(A76,Sources!$F:$F,0)),NOT(ISERROR(MATCH(F76,Sources!$G:$G,0)))),5*D76+3*E76,"")),"") ->  | J76: 80
A77: RUSALKA ( MERMAID ) | B77: =IFERROR(VLOOKUP(A77,Sheet2!$B$2:$C$18,2,0),"") -> Rusalka (Mermaid) | C77: 2018-08-06 | D77: 2 | E77: 0 | F77: HURGADA | G77: 80 | I77: =IFERROR(VALUE(IF(ISERROR(MATCH(A77,Sources!$B:$B,0)),IF(ISERROR(MATCH(F77,Sources!$C:$C,0)),"",5*D77+3*E77),IF(AND(NOT(ISERROR(MATCH(A77,Sources!$D:$D,0))),NOT(ISERROR(MATCH(F77,Sources!$E:$E,0)))),5*D77+3*E77,""))&IF(AND(ISERROR(MATCH(A77,Sources!$F:$F,0)),NOT(ISERROR(MATCH(F77,Sources!$G:$G,0)))),5*D77+3*E77,"")),"") ->  | J77: 80
A78: MOTO2 | B78: =IFERROR(VLOOKUP(A78,Sheet2!$B$2:$C$18,2,0),"") -> Moto 2 | C78: 2018-08-06 | D78: 2 | E78: 0 | F78: HURGADA | G78: 90 | I78: =IFERROR(VALUE(IF(ISERROR(MATCH(A78,Sources!$B:$B,0)),IF(ISERROR(MATCH(F78,Sources!$C:$C,0)),"",5*D78+3*E78),IF(AND(NOT(ISERROR(MATCH(A78,Sources!$D:$D,0))),NOT(ISERROR(MATCH(F78,Sources!$E:$E,0)))),5*D78+3*E78,""))&IF(AND(ISERROR(MATCH(A78,Sources!$F:$F,0)),NOT(ISERROR(MATCH(F78,Sources!$G:$G,0)))),5*D78+3*E78,"")),"") ->  | J78: 90
A79: UTOPIA ISLAND | B79: =IFERROR(VLOOKUP(A79,Sheet2!$B$2:$C$18,2,0),"") -> Utopia | C79: 2018-08-07 | D79: 2 | E79: 1 | F79: HURGADA | G79: 138 | I79: =IFERROR(VALUE(IF(ISERROR(MATCH(A79,Sources!$B:$B,0)),IF(ISERROR(MATCH(F79,Sources!$C:$C,0)),"",5*D79+3*E79),IF(AND(NOT(ISERROR(MATCH(A79,Sources!$D:$D,0))),NOT(ISERROR(MATCH(F79,Sources!$E:$E,0)))),5*D79+3*E79,""))&IF(AND(ISERROR(MATCH(A79,Sources!$F:$F,0)),NOT(ISERROR(MATCH(F79,Sources!$G:$G,0)))),5*D79+3*E79,"")),"") ->  | J79: 138
A80: OVER DAY LUXORQUEEN VALLY | B80: =IFERROR(VLOOKUP(A80,Sheet2!$B$2:$C$18,2,0),"") -> LUXOR 2 | C80: 2018-08-07 | D80: 2 | E80: 0 | F80: HURGADA | G80: 180 | H80: ukraine | I80: =IFERROR(VALUE(IF(ISERROR(MATCH(A80,Sources!$B:$B,0)),IF(ISERROR(MATCH(F80,Sources!$C:$C,0)),"",5*D80+3*E80),IF(AND(NOT(ISERROR(MATCH(A80,Sources!$D:$D,0))),NOT(ISERROR(MATCH(F80,Sources!$E:$E,0)))),5*D80+3*E80,""))&IF(AND(ISERROR(MATCH(A80,Sources!$F:$F,0)),NOT(ISERROR(MATCH(F80,Sources!$G:$G,0)))),5*D80+3*E80,"")),"") ->  | J80: 180
A81: UTOPIA ISLAND | B81: =IFERROR(VLOOKUP(A81,Sheet2!$B$2:$C$18,2,0),"") -> Utopia | C81: 2018-08-07 | D81: 1 | E81: 0 | F81: HURGADA | G81: 48 | I81: =IFERROR(VALUE(IF(ISERROR(MATCH(A81,Sources!$B:$B,0)),IF(ISERROR(MATCH(F81,Sources!$C:$C,0)),"",5*D81+3*E81),IF(AND(NOT(ISERROR(MATCH(A81,Sources!$D:$D,0))),NOT(ISERROR(MATCH(F81,Sources!$E:$E,0)))),5*D81+3*E81,""))&IF(AND(ISERROR(MATCH(A81,Sources!$F:$F,0)),NOT(ISERROR(MATCH(F81,Sources!$G:$G,0)))),5*D81+3*E81,"")),"") ->  | J81: 48
A82: DOLPHIN WORLD SHOW | B82: =IFERROR(VLOOKUP(A82,Sheet2!$B$2:$C$18,2,0),"") -> Dolphin world show | C82: 2018-08-07 | D82: 2 | E82: 1 | F82: MAKADI BAY | G82: 100 | I82: =IFERROR(VALUE(IF(ISERROR(MATCH(A82,Sources!$B:$B,0)),IF(ISERROR(MATCH(F82,Sources!$C:$C,0)),"",5*D82+3*E82),IF(AND(NOT(ISERROR(MATCH(A82,Sources!$D:$D,0))),NOT(ISERROR(MATCH(F82,Sources!$E:$E,0)))),5*D82+3*E82,""))&IF(AND(ISERROR(MATCH(A82,Sources!$F:$F,0)),NOT(ISERROR(MATCH(F82,Sources!$G:$G,0)))),5*D82+3*E82,"")),"") ->  | J82: 100
A83: CAIRO OVERDAY | B83: =IFERROR(VLOOKUP(A83,Sheet2!$B$2:$C$18,2,0),"") -> Cairo | C83: 2018-08-07 | D83: 2 | E83: 1 | F83: MAKADI BAY | G83: 288 | I83: =IFERROR(VALUE(IF(ISERROR(MATCH(A83,Sources!$B:$B,0)),IF(ISERROR(MATCH(F83,Sources!$C:$C,0)),"",5*D83+3*E83),IF(AND(NOT(ISERROR(MATCH(A83,Sources!$D:$D,0))),NOT(ISERROR(MATCH(F83,Sources!$E:$E,0)))),5*D83+3*E83,""))&IF(AND(ISERROR(MATCH(A83,Sources!$F:$F,0)),NOT(ISERROR(MATCH(F83,Sources!$G:$G,0)))),5*D83+3*E83,"")),"") -> 13 | J83: 275
A84: RUSALKA ( MERMAID ) | B84: =IFERROR(VLOOKUP(A84,Sheet2!$B$2:$C$18,2,0),"") -> Rusalka (Mermaid) | C84: 2018-08-07 | D84: 2 | E84: 0 | F84: MAKADI BAY | G84: 80 | I84: =IFERROR(VALUE(IF(ISERROR(MATCH(A84,Sources!$B:$B,0)),IF(ISERROR(MATCH(F84,Sources!$C:$C,0)),"",5*D84+3*E84),IF(AND(NOT(ISERROR(MATCH(A84,Sources!$D:$D,0))),NOT(ISERROR(MATCH(F84,Sources!$E:$E,0)))),5*D84+3*E84,""))&IF(AND(ISERROR(MATCH(A84,Sources!$F:$F,0)),NOT(ISERROR(MATCH(F84,Sources!$G:$G,0)))),5*D84+3*E84,"")),"") ->  | J84: 80
A85: UTOPIA ISLAND | B85: =IFERROR(VLOOKUP(A85,Sheet2!$B$2:$C$18,2,0),"") -> Utopia | C85: 2018-08-07 | D85: 2 | E85: 0 | F85: MAKADI BAY | G85: 110 | I85: =IFERROR(VALUE(IF(ISERROR(MATCH(A85,Sources!$B:$B,0)),IF(ISERROR(MATCH(F85,Sources!$C:$C,0)),"",5*D85+3*E85),IF(AND(NOT(ISERROR(MATCH(A85,Sources!$D:$D,0))),NOT(ISERROR(MATCH(F85,Sources!$E:$E,0)))),5*D85+3*E85,""))&IF(AND(ISERROR(MATCH(A85,Sources!$F:$F,0)),NOT(ISERROR(MATCH(F85,Sources!$G:$G,0)))),5*D85+3*E85,"")),"") ->  | J85: 110
A86: UTOPIA ISLAND | B86: =IFERROR(VLOOKUP(A86,Sheet2!$B$2:$C$18,2,0),"") -> Utopia | C86: 2018-08-07 | D86: 3 | E86: 0 | F86: MAKADI BAY | G86: 165 | I86: =IFERROR(VALUE(IF(ISERROR(MATCH(A86,Sources!$B:$B,0)),IF(ISERROR(MATCH(F86,Sources!$C:$C,0)),"",5*D86+3*E86),IF(AND(NOT(ISERROR(MATCH(A86,Sources!$D:$D,0))),NOT(ISERROR(MATCH(F86,Sources!$E:$E,0)))),5*D86+3*E86,""))&IF(AND(ISERROR(MATCH(A86,Sources!$F:$F,0)),NOT(ISERROR(MATCH(F86,Sources!$G:$G,0)))),5*D86+3*E86,"")),"") ->  | J86: 165
A87: OVER DAY LUXORQUEEN VALLY | B87: =IFERROR(VLOOKUP(A87,Sheet2!$B$2:$C$18,2,0),"") -> LUXOR 2 | C87: 2018-08-07 | D87: 2 | E87: 0 | F87: HURGADA | G87: 180 | H87: ukraine | I87: =IFERROR(VALUE(IF(ISERROR(MATCH(A87,Sources!$B:$B,0)),IF(ISERROR(MATCH(F87,Sources!$C:$C,0)),"",5*D87+3*E87),IF(AND(NOT(ISERROR(MATCH(A87,Sources!$D:$D,0))),NOT(ISERROR(MATCH(F87,Sources!$E:$E,0)))),5*D87+3*E87,""))&IF(AND(ISERROR(MATCH(A87,Sources!$F:$F,0)),NOT(ISERROR(MATCH(F87,Sources!$G:$G,0)))),5*D87+3*E87,"")),"") ->  | J87: 180
A88: UTOPIA ISLAND | B88: =IFERROR(VLOOKUP(A88,Sheet2!$B$2:$C$18,2,0),"") -> Utopia | C88: 2018-08-07 | D88: 3 | E88: 0 | F88: HURGADA | G88: 165 | I88: =IFERROR(VALUE(IF(ISERROR(MATCH(A88,Sources!$B:$B,0)),IF(ISERROR(MATCH(F88,Sources!$C:$C,0)),"",5*D88+3*E88),IF(AND(NOT(ISERROR(MATCH(A88,Sources!$D:$D,0))),NOT(ISERROR(MATCH(F88,Sources!$E:$E,0)))),5*D88+3*E88,""))&IF(AND(ISERROR(MATCH(A88,Sources!$F:$F,0)),NOT(ISERROR(MATCH(F88,Sources!$G:$G,0)))),5*D88+3*E88,"")),"") ->  | J88: 165
A89: UTOPIA ISLAND | B89: =IFERROR(VLOOKUP(A89,Sheet2!$B$2:$C$18,2,0),"") -> Utopia | C89: 2018-08-07 | D89: 2 | E89: 0 | F89: HURGADA | G89: 110 | I89: =IFERROR(VALUE(IF(ISERROR(MATCH(A89,Sources!$B:$B,0)),IF(ISERROR(MATCH(F89,Sources!$C:$C,0)),"",5*D89+3*E89),IF(AND(NOT(ISERROR(MATCH(A89,Sources!$D:$D,0))),NOT(ISERROR(MATCH(F89,Sources!$E:$E,0)))),5*D89+3*E89,""))&IF(AND(ISERROR(MATCH(A89,Sources!$F:$F,0)),NOT(ISERROR(MATCH(F89,Sources!$G:$G,0)))),5*D89+3*E89,"")),"") ->  | J89: 110
A90: UTOPIA ISLAND | B90: =IFERROR(VLOOKUP(A90,Sheet2!$B$2:$C$18,2,0),"") -> Utopia | C90: 2018-08-07 | D90: 2 | E90: 0 | F90: HURGADA | G90: 110 | I90: =IFERROR(VALUE(IF(ISERROR(MATCH(A90,Sources!$B:$B,0)),IF(ISERROR(MATCH(F90,Sources!$C:$C,0)),"",5*D90+3*E90),IF(AND(NOT(ISERROR(MATCH(A90,Sources!$D:$D,0))),NOT(ISERROR(MATCH(F90,Sources!$E:$E,0)))),5*D90+3*E90,""))&IF(AND(ISERROR(MATCH(A90,Sources!$F:$F,0)),NOT(ISERROR(MATCH(F90,Sources!$G:$G,0)))),5*D90+3*E90,"")),"") ->  | J90: 110
A91: UTOPIA ISLAND | B91: =IFERROR(VLOOKUP(A91,Sheet2!$B$2:$C$18,2,0),"") -> Utopia | C91: 2018-08-07 | D91: 2 | E91: 0 | F91: HURGADA | G91: 110 | I91: =IFERROR(VALUE(IF(ISERROR(MATCH(A91,Sources!$B:$B,0)),IF(ISERROR(MATCH(F91,Sources!$C:$C,0)),"",5*D91+3*E91),IF(AND(NOT(ISERROR(MATCH(A91,Sources!$D:$D,0))),NOT(ISERROR(MATCH(F91,Sources!$E:$E,0)))),5*D91+3*E91,""))&IF(AND(ISERROR(MATCH(A91,Sources!$F:$F,0)),NOT(ISERROR(MATCH(F91,Sources!$G:$G,0)))),5*D91+3*E91,"")),"") ->  | J91: 110
A92: GRAND AQUARIUM | B92: =IFERROR(VLOOKUP(A92,Sheet2!$B$2:$C$18,2,0),"") -> Grand Aquarium | C92: 2018-08-07 | D92: 2 | E92: 0 | F92: MAKADI BAY | G92: 90 | I92: =IFERROR(VALUE(IF(ISERROR(MATCH(A92,Sources!$B:$B,0)),IF(ISERROR(MATCH(F92,Sources!$C:$C,0)),"",5*D92+3*E92),IF(AND(NOT(ISERROR(MATCH(A92,Sources!$D:$D,0))),NOT(ISERROR(MATCH(F92,Sources!$E:$E,0)))),5*D92+3*E92,""))&IF(AND(ISERROR(MATCH(A92,Sources!$F:$F,0)),NOT(ISERROR(MATCH(F92,Sources!$G:$G,0)))),5*D92+3*E92,"")),"") -> 10 | J92: 80
A93: OVER DAY LUXORQUEEN VALLY | B93: =IFERROR(VLOOKUP(A93,Sheet2!$B$2:$C$18,2,0),"") -> LUXOR 2 | C93: 2018-08-07 | D93: 2 | E93: 0 | F93: MAKADI BAY | G93: 180 | I93: =IFERROR(VALUE(IF(ISERROR(MATCH(A93,Sources!$B:$B,0)),IF(ISERROR(MATCH(F93,Sources!$C:$C,0)),"",5*D93+3*E93),IF(AND(NOT(ISERROR(MATCH(A93,Sources!$D:$D,0))),NOT(ISERROR(MATCH(F93,Sources!$E:$E,0)))),5*D93+3*E93,""))&IF(AND(ISERROR(MATCH(A93,Sources!$F:$F,0)),NOT(ISERROR(MATCH(F93,Sources!$G:$G,0)))),5*D93+3*E93,"")),"") ->  | J93: 180
A94: GRAND AQUARIUM | B94: =IFERROR(VLOOKUP(A94,Sheet2!$B$2:$C$18,2,0),"") -> Grand Aquarium | C94: 2018-08-07 | D94: 2 | E94: 1 | F94: SAHL HASHEESH | G94: 100 | I94: =IFERROR(VALUE(IF(ISERROR(MATCH(A94,Sources!$B:$B,0)),IF(ISERROR(MATCH(F94,Sources!$C:$C,0)),"",5*D94+3*E94),IF(AND(NOT(ISERROR(MATCH(A94,Sources!$D:$D,0))),NOT(ISERROR(MATCH(F94,Sources!$E:$E,0)))),5*D94+3*E94,""))&IF(AND(ISERROR(MATCH(A94,Sources!$F:$F,0)),NOT(ISERROR(MATCH(F94,Sources!$G:$G,0)))),5*D94+3*E94,"")),"") ->  | J94: 100
A95: GRAND AQUARIUM | B95: =IFERROR(VLOOKUP(A95,Sheet2!$B$2:$C$18,2,0),"") -> Grand Aquarium | C95: 2018-08-07 | D95: 2 | E95: 0 | F95: HURGADA | G95: 80 | I95: =IFERROR(VALUE(IF(ISERROR(MATCH(A95,Sources!$B:$B,0)),IF(ISERROR(MATCH(F95,Sources!$C:$C,0)),"",5*D95+3*E95),IF(AND(NOT(ISERROR(MATCH(A95,Sources!$D:$D,0))),NOT(ISERROR(MATCH(F95,Sources!$E:$E,0)))),5*D95+3*E95,""))&IF(AND(ISERROR(MATCH(A95,Sources!$F:$F,0)),NOT(ISERROR(MATCH(F95,Sources!$G:$G,0)))),5*D95+3*E95,"")),"") ->  | J95: 80
A96: UTOPIA ISLAND | B96: =IFERROR(VLOOKUP(A96,Sheet2!$B$2:$C$18,2,0),"") -> Utopia | C96: 2018-08-07 | D96: 1 | E96: 1 | F96: HURGADA | G96: 83 | I96: =IFERROR(VALUE(IF(ISERROR(MATCH(A96,Sources!$B:$B,0)),IF(ISERROR(MATCH(F96,Sources!$C:$C,0)),"",5*D96+3*E96),IF(AND(NOT(ISERROR(MATCH(A96,Sources!$D:$D,0))),NOT(ISERROR(MATCH(F96,Sources!$E:$E,0)))),5*D96+3*E96,""))&IF(AND(ISERROR(MATCH(A96,Sources!$F:$F,0)),NOT(ISERROR(MATCH(F96,Sources!$G:$G,0)))),5*D96+3*E96,"")),"") ->  | J96: 83
A97: UTOPIA ISLAND | B97: =IFERROR(VLOOKUP(A97,Sheet2!$B$2:$C$18,2,0),"") -> Utopia | C97: 2018-08-07 | D97: 2 | E97: 0 | F97: HURGADA | G97: 110 | I97: =IFERROR(VALUE(IF(ISERROR(MATCH(A97,Sources!$B:$B,0)),IF(ISERROR(MATCH(F97,Sources!$C:$C,0)),"",5*D97+3*E97),IF(AND(NOT(ISERROR(MATCH(A97,Sources!$D:$D,0))),NOT(ISERROR(MATCH(F97,Sources!$E:$E,0)))),5*D97+3*E97,""))&IF(AND(ISERROR(MATCH(A97,Sources!$F:$F,0)),NOT(ISERROR(MATCH(F97,Sources!$G:$G,0)))),5*D97+3*E97,"")),"") ->  | J97: 110
A98: UTOPIA ISLAND | B98: =IFERROR(VLOOKUP(A98,Sheet2!$B$2:$C$18,2,0),"") -> Utopia | C98: 2018-08-07 | D98: 2 | E98: 0 | F98: HURGADA | G98: 110 | I98: =IFERROR(VALUE(IF(ISERROR(MATCH(A98,Sources!$B:$B,0)),IF(ISERROR(MATCH(F98,Sources!$C:$C,0)),"",5*D98+3*E98),IF(AND(NOT(ISERROR(MATCH(A98,Sources!$D:$D,0))),NOT(ISERROR(MATCH(F98,Sources!$E:$E,0)))),5*D98+3*E98,""))&IF(AND(ISERROR(MATCH(A98,Sources!$F:$F,0)),NOT(ISERROR(MATCH(F98,Sources!$G:$G,0)))),5*D98+3*E98,"")),"") ->  | J98: 110
A99: UTOPIA ISLAND | B99: =IFERROR(VLOOKUP(A99,Sheet2!$B$2:$C$18,2,0),"") -> Utopia | C99: 2018-08-07 | D99: 1 | E99: 0 | F99: HURGADA | G99: 55 | I99: =IFERROR(VALUE(IF(ISERROR(MATCH(A99,Sources!$B:$B,0)),IF(ISERROR(MATCH(F99,Sources!$C:$C,0)),"",5*D99+3*E99),IF(AND(NOT(ISERROR(MATCH(A99,Sources!$D:$D,0))),NOT(ISERROR(MATCH(F99,Sources!$E:$E,0)))),5*D99+3*E99,""))&IF(AND(ISERROR(MATCH(A99,Sources!$F:$F,0)),NOT(ISERROR(MATCH(F99,Sources!$G:$G,0)))),5*D99+3*E99,"")),"") ->  | J99: 55
A100: CAIRO OVERDAY | B100: =IFERROR(VLOOKUP(A100,Sheet2!$B$2:$C$18,2,0),"") -> Cairo | C100: 2018-08-07 | D100: 2 | E100: 0 | F100: HURGADA | G100: 220 | I100: =IFERROR(VALUE(IF(ISERROR(MATCH(A100,Sources!$B:$B,0)),IF(ISERROR(MATCH(F100,Sources!$C:$C,0)),"",5*D100+3*E100),IF(AND(NOT(ISERROR(MATCH(A100,Sources!$D:$D,0))),NOT(ISERROR(MATCH(F100,Sources!$E:$E,0)))),5*D100+3*E100,""))&IF(AND(ISERROR(MATCH(A100,Sources!$F:$F,0)),NOT(ISERROR(MATCH(F100,Sources!$G:$G,0)))),5*D100+3*E100,"")),"") ->  | J100: 220
A101: GRAND AQUARIUM | B101: =IFERROR(VLOOKUP(A101,Sheet2!$B$2:$C$18,2,0),"") -> Grand Aquarium | C101: 2018-08-07 | D101: 2 | E101: 0 | F101: HURGADA | G101: 80 | I101: =IFERROR(VALUE(IF(ISERROR(MATCH(A101,Sources!$B:$B,0)),IF(ISERROR(MATCH(F101,Sources!$C:$C,0)),"",5*D101+3*E101),IF(AND(NOT(ISERROR(MATCH(A101,Sources!$D:$D,0))),NOT(ISERROR(MATCH(F101,Sources!$E:$E,0)))),5*D101+3*E101,""))&IF(AND(ISERROR(MATCH(A101,Sources!$F:$F,0)),NOT(ISERROR(MATCH(F101,Sources!$G:$G,0)))),5*D101+3*E101,"")),"") ->  | J101: 80
A102: OVER DAY LUXORQUEEN VALLY | B102: =IFERROR(VLOOKUP(A102,Sheet2!$B$2:$C$18,2,0),"") -> LUXOR 2 | C102: 2018-08-07 | D102: 2 | E102: 0 | F102: HURGADA | G102: 180 | I102: =IFERROR(VALUE(IF(ISERROR(MATCH(A102,Sources!$B:$B,0)),IF(ISERROR(MATCH(F102,Sources!$C:$C,0)),"",5*D102+3*E102),IF(AND(NOT(ISERROR(MATCH(A102,Sources!$D:$D,0))),NOT(ISERROR(MATCH(F102,Sources!$E:$E,0)))),5*D102+3*E102,""))&IF(AND(ISERROR(MATCH(A102,Sources!$F:$F,0)),NOT(ISERROR(MATCH(F102,Sources!$G:$G,0)))),5*D102+3*E102,"")),"") ->  | J102: 180
A103: UTOPIA ISLAND | B103: =IFERROR(VLOOKUP(A103,Sheet2!$B$2:$C$18,2,0),"") -> Utopia | C103: 2018-08-07 | D103: 1 | E103: 1 | F103: MAKADI BAY | G103: 72 | I103: =IFERROR(VALUE(IF(ISERROR(MATCH(A103,Sources!$B:$B,0)),IF(ISERROR(MATCH(F103,Sources!$C:$C,0)),"",5*D103+3*E103),IF(AND(NOT(ISERROR(MATCH(A103,Sources!$D:$D,0))),NOT(ISERROR(MATCH(F103,Sources!$E:$E,0)))),5*D103+3*E103,""))&IF(AND(ISERROR(MATCH(A103,Sources!$F:$F,0)),NOT(ISERROR(MATCH(F103,Sources!$G:$G,0)))),5*D103+3*E103,"")),"") ->  | J103: 72
A104: CAIRO OVERDAY | B104: =IFERROR(VLOOKUP(A104,Sheet2!$B$2:$C$18,2,0),"") -> Cairo | C104: 2018-08-07 | D104: 2 | E104: 0 | F104: MAKADI BAY | G104: 230 | I104: =IFERROR(VALUE(IF(ISERROR(MATCH(A104,Sources!$B:$B,0)),IF(ISERROR(MATCH(F104,Sources!$C:$C,0)),"",5*D104+3*E104),IF(AND(NOT(ISERROR(MATCH(A104,Sources!$D:$D,0))),NOT(ISERROR(MATCH(F104,Sources!$E:$E,0)))),5*D104+3*E104,""))&IF(AND(ISERROR(MATCH(A104,Sources!$F:$F,0)),NOT(ISERROR(MATCH(F104,Sources!$G:$G,0)))),5*D104+3*E104,"")),"") -> 10 | J104: 220
A105: OVER DAY LUXORQUEEN VALLY | B105: =IFERROR(VLOOKUP(A105,Sheet2!$B$2:$C$18,2,0),"") -> LUXOR 2 | C105: 2018-08-07 | D105: 1 | E105: 0 | F105: HURGADA | G105: 90 | I105: =IFERROR(VALUE(IF(ISERROR(MATCH(A105,Sources!$B:$B,0)),IF(ISERROR(MATCH(F105,Sources!$C:$C,0)),"",5*D105+3*E105),IF(AND(NOT(ISERROR(MATCH(A105,Sources!$D:$D,0))),NOT(ISERROR(MATCH(F105,Sources!$E:$E,0)))),5*D105+3*E105,""))&IF(AND(ISERROR(MATCH(A105,Sources!$F:$F,0)),NOT(ISERROR(MATCH(F105,Sources!$G:$G,0)))),5*D105+3*E105,"")),"") ->  | J105: 90
A106: UTOPIA ISLAND | B106: =IFERROR(VLOOKUP(A106,Sheet2!$B$2:$C$18,2,0),"") -> Utopia | C106: 2018-08-07 | D106: 2 | E106: 1 | F106: HURGADA | G106: 138 | I106: =IFERROR(VALUE(IF(ISERROR(MATCH(A106,Sources!$B:$B,0)),IF(ISERROR(MATCH(F106,Sources!$C:$C,0)),"",5*D106+3*E106),IF(AND(NOT(ISERROR(MATCH(A106,Sources!$D:$D,0))),NOT(ISERROR(MATCH(F106,Sources!$E:$E,0)))),5*D106+3*E106,""))&IF(AND(ISERROR(MATCH(A106,Sources!$F:$F,0)),NOT(ISERROR(MATCH(F106,Sources!$G:$G,0)))),5*D106+3*E106,"")),"") ->  | J106: 138
A107: CAIRO OVERDAY | B107: =IFERROR(VLOOKUP(A107,Sheet2!$B$2:$C$18,2,0),"") -> Cairo | C107: 2018-08-07 | D107: 1 | E107: 1 | F107: MAKADI BAY | G107: 175 | I107: =IFERROR(VALUE(IF(ISERROR(MATCH(A107,Sources!$B:$B,0)),IF(ISERROR(MATCH(F107,Sources!$C:$C,0)),"",5*D107+3*E107),IF(AND(NOT(ISERROR(MATCH(A107,Sources!$D:$D,0))),NOT(ISERROR(MATCH(F107,Sources!$E:$E,0)))),5*D107+3*E107,""))&IF(AND(ISERROR(MATCH(A107,Sources!$F:$F,0)),NOT(ISERROR(MATCH(F107,Sources!$G:$G,0)))),5*D107+3*E107,"")),"") -> 8 | J107: 167
A108: OVER DAY LUXORQUEEN VALLY | B108: =IFERROR(VLOOKUP(A108,Sheet2!$B$2:$C$18,2,0),"") -> LUXOR 2 | C108: 2018-08-07 | D108: 2 | E108: 0 | F108: HURGADA | G108: 180 | I108: =IFERROR(VALUE(IF(ISERROR(MATCH(A108,Sources!$B:$B,0)),IF(ISERROR(MATCH(F108,Sources!$C:$C,0)),"",5*D108+3*E108),IF(AND(NOT(ISERROR(MATCH(A108,Sources!$D:$D,0))),NOT(ISERROR(MATCH(F108,Sources!$E:$E,0)))),5*D108+3*E108,""))&IF(AND(ISERROR(MATCH(A108,Sources!$F:$F,0)),NOT(ISERROR(MATCH(F108,Sources!$G:$G,0)))),5*D108+3*E108,"")),"") ->  | J108: 180
A109: RUSALKA ( MERMAID ) | B109: =IFERROR(VLOOKUP(A109,Sheet2!$B$2:$C$18,2,0),"") -> Rusalka (Mermaid) | C109: 2018-08-07 | D109: 2 | E109: 0 | F109: MAKADI BAY | G109: 80 | I109: =IFERROR(VALUE(IF(ISERROR(MATCH(A109,Sources!$B:$B,0)),IF(ISERROR(MATCH(F109,Sources!$C:$C,0)),"",5*D109+3*E109),IF(AND(NOT(ISERROR(MATCH(A109,Sources!$D:$D,0))),NOT(ISERROR(MATCH(F109,Sources!$E:$E,0)))),5*D109+3*E109,""))&IF(AND(ISERROR(MATCH(A109,Sources!$F:$F,0)),NOT(ISERROR(MATCH(F109,Sources!$G:$G,0)))),5*D109+3*E109,"")),"") ->  | J109: 80
A110: MOTO2 | B110: =IFERROR(VLOOKUP(A110,Sheet2!$B$2:$C$18,2,0),"") -> Moto 2 | C110: 2018-08-08 | D110: 2 | E110: 0 | F110: MAKADI BAY | G110: 100 | I110: =IFERROR(VALUE(IF(ISERROR(MATCH(A110,Sources!$B:$B,0)),IF(ISERROR(MATCH(F110,Sources!$C:$C,0)),"",5*D110+3*E110),IF(AND(NOT(ISERROR(MATCH(A110,Sources!$D:$D,0))),NOT(ISERROR(MATCH(F110,Sources!$E:$E,0)))),5*D110+3*E110,""))&IF(AND(ISERROR(MATCH(A110,Sources!$F:$F,0)),NOT(ISERROR(MATCH(F110,Sources!$G:$G,0)))),5*D110+3*E110,"")),"") -> 10 | J110: 90
A111: MOTO2 | B111: =IFERROR(VLOOKUP(A111,Sheet2!$B$2:$C$18,2,0),"") -> Moto 2 | C111: 2018-08-08 | D111: 2 | E111: 0 | F111: MAKADI BAY | G111: 100 | I111: =IFERROR(VALUE(IF(ISERROR(MATCH(A111,Sources!$B:$B,0)),IF(ISERROR(MATCH(F111,Sources!$C:$C,0)),"",5*D111+3*E111),IF(AND(NOT(ISERROR(MATCH(A111,Sources!$D:$D,0))),NOT(ISERROR(MATCH(F111,Sources!$E:$E,0)))),5*D111+3*E111,""))&IF(AND(ISERROR(MATCH(A111,Sources!$F:$F,0)),NOT(ISERROR(MATCH(F111,Sources!$G:$G,0)))),5*D111+3*E111,"")),"") -> 10 | J111: 90
A112: MOTO2 | B112: =IFERROR(VLOOKUP(A112,Sheet2!$B$2:$C$18,2,0),"") -> Moto 2 | C112: 2018-08-08 | D112: 2 | E112: 0 | F112: MAKADI BAY | G112: 100 | I112: =IFERROR(VALUE(IF(ISERROR(MATCH(A112,Sources!$B:$B,0)),IF(ISERROR(MATCH(F112,Sources!$C:$C,0)),"",5*D112+3*E112),IF(AND(NOT(ISERROR(MATCH(A112,Sources!$D:$D,0))),NOT(ISERROR(MATCH(F112,Sources!$E:$E,0)))),5*D112+3*E112,""))&IF(AND(ISERROR(MATCH(A112,Sources!$F:$F,0)),NOT(ISERROR(MATCH(F112,Sources!$G:$G,0)))),5*D112+3*E112,"")),"") -> 10 | J112: 90
A113: INTRO DIVING | B113: =IFERROR(VLOOKUP(A113,Sheet2!$B$2:$C$18,2,0),"") -> Diving | C113: 2018-08-08 | D113: 1 | E113: 0 | F113: MAKADI BAY | G113: 70 | I113: =IFERROR(VALUE(IF(ISERROR(MATCH(A113,Sources!$B:$B,0)),IF(ISERROR(MATCH(F113,Sources!$C:$C,0)),"",5*D113+3*E113),IF(AND(NOT(ISERROR(MATCH(A113,Sources!$D:$D,0))),NOT(ISERROR(MATCH(F113,Sources!$E:$E,0)))),5*D113+3*E113,""))&IF(AND(ISERROR(MATCH(A113,Sources!$F:$F,0)),NOT(ISERROR(MATCH(F113,Sources!$G:$G,0)))),5*D113+3*E113,"")),"") -> 5 | J113: 65
A114: MOTO2 | B114: =IFERROR(VLOOKUP(A114,Sheet2!$B$2:$C$18,2,0),"") -> Moto 2 | C114: 2018-08-08 | D114: 2 | E114: 0 | F114: HURGADA | G114: 90 | I114: =IFERROR(VALUE(IF(ISERROR(MATCH(A114,Sources!$B:$B,0)),IF(ISERROR(MATCH(F114,Sources!$C:$C,0)),"",5*D114+3*E114),IF(AND(NOT(ISERROR(MATCH(A114,Sources!$D:$D,0))),NOT(ISERROR(MATCH(F114,Sources!$E:$E,0)))),5*D114+3*E114,""))&IF(AND(ISERROR(MATCH(A114,Sources!$F:$F,0)),NOT(ISERROR(MATCH(F114,Sources!$G:$G,0)))),5*D114+3*E114,"")),"") ->  | J114: 90
A115: MOTO2 | B115: =IFERROR(VLOOKUP(A115,Sheet2!$B$2:$C$18,2,0),"") -> Moto 2 | C115: 2018-08-08 | D115: 2 | E115: 0 | F115: HURGADA | G115: 90 | I115: =IFERROR(VALUE(IF(ISERROR(MATCH(A115,Sources!$B:$B,0)),IF(ISERROR(MATCH(F115,Sources!$C:$C,0)),"",5*D115+3*E115),IF(AND(NOT(ISERROR(MATCH(A115,Sources!$D:$D,0))),NOT(ISERROR(MATCH(F115,Sources!$E:$E,0)))),5*D115+3*E115,""))&IF(AND(ISERROR(MATCH(A115,Sources!$F:$F,0)),NOT(ISERROR(MATCH(F115,Sources!$G:$G,0)))),5*D115+3*E115,"")),"") ->  | J115: 90
A116: INTRO DIVING | B116: =IFERROR(VLOOKUP(A116,Sheet2!$B$2:$C$18,2,0),"") -> Diving | C116: 2018-08-08 | D116: 1 | E116: 0 | F116: MAKADI BAY | G116: 70 | I116: =IFERROR(VALUE(IF(ISERROR(MATCH(A116,Sources!$B:$B,0)),IF(ISERROR(MATCH(F116,Sources!$C:$C,0)),"",5*D116+3*E116),IF(AND(NOT(ISERROR(MATCH(A116,Sources!$D:$D,0))),NOT(ISERROR(MATCH(F116,Sources!$E:$E,0)))),5*D116+3*E116,""))&IF(AND(ISERROR(MATCH(A116,Sources!$F:$F,0)),NOT(ISERROR(MATCH(F116,Sources!$G:$G,0)))),5*D116+3*E116,"")),"") -> 5 | J116: 65
A117: INTRO DIVING | B117: =IFERROR(VLOOKUP(A117,Sheet2!$B$2:$C$18,2,0),"") -> Diving | C117: 2018-08-08 | D117: 2 | E117: 0 | F117: HURGADA | G117: 130 | I117: =IFERROR(VALUE(IF(ISERROR(MATCH(A117,Sources!$B:$B,0)),IF(ISERROR(MATCH(F117,Sources!$C:$C,0)),"",5*D117+3*E117),IF(AND(NOT(ISERROR(MATCH(A117,Sources!$D:$D,0))),NOT(ISERROR(MATCH(F117,Sources!$E:$E,0)))),5*D117+3*E117,""))&IF(AND(ISERROR(MATCH(A117,Sources!$F:$F,0)),NOT(ISERROR(MATCH(F117,Sources!$G:$G,0)))),5*D117+3*E117,"")),"") ->  | J117: 130
A118: MOTO2 | B118: =IFERROR(VLOOKUP(A118,Sheet2!$B$2:$C$18,2,0),"") -> Moto 2 | C118: 2018-08-08 | D118: 1 | E118: 0 | F118: HURGADA | G118: 45 | I118: =IFERROR(VALUE(IF(ISERROR(MATCH(A118,Sources!$B:$B,0)),IF(ISERROR(MATCH(F118,Sources!$C:$C,0)),"",5*D118+3*E118),IF(AND(NOT(ISERROR(MATCH(A118,Sources!$D:$D,0))),NOT(ISERROR(MATCH(F118,Sources!$E:$E,0)))),5*D118+3*E118,""))&IF(AND(ISERROR(MATCH(A118,Sources!$F:$F,0)),NOT(ISERROR(MATCH(F118,Sources!$G:$G,0)))),5*D118+3*E118,"")),"") ->  | J118: 45
A119: MOTO2 | B119: =IFERROR(VLOOKUP(A119,Sheet2!$B$2:$C$18,2,0),"") -> Moto 2 | C119: 2018-08-08 | D119: 2 | E119: 0 | F119: MAKADI BAY | G119: 100 | I119: =IFERROR(VALUE(IF(ISERROR(MATCH(A119,Sources!$B:$B,0)),IF(ISERROR(MATCH(F119,Sources!$C:$C,0)),"",5*D119+3*E119),IF(AND(NOT(ISERROR(MATCH(A119,Sources!$D:$D,0))),NOT(ISERROR(MATCH(F119,Sources!$E:$E,0)))),5*D119+3*E119,""))&IF(AND(ISERROR(MATCH(A119,Sources!$F:$F,0)),NOT(ISERROR(MATCH(F119,Sources!$G:$G,0)))),5*D119+3*E119,"")),"") -> 10 | J119: 90
A120: ASPENDOS TURKISH BATH | B120: Aspendos Turkish Bath | C120: 2018-08-08 | D120: 1 | E120: 0 | F120: MAKADI BAY | G120: 40 | I120: =IFERROR(VALUE(IF(ISERROR(MATCH(A120,Sources!$B:$B,0)),IF(ISERROR(MATCH(F120,Sources!$C:$C,0)),"",5*D120+3*E120),IF(AND(NOT(ISERROR(MATCH(A120,Sources!$D:$D,0))),NOT(ISERROR(MATCH(F120,Sources!$E:$E,0)))),5*D120+3*E120,""))&IF(AND(ISERROR(MATCH(A120,Sources!$F:$F,0)),NOT(ISERROR(MATCH(F120,Sources!$G:$G,0)))),5*D120+3*E120,"")),"") -> 5 | J120: 35
A121: UTOPIA ISLAND | B121: =IFERROR(VLOOKUP(A121,Sheet2!$B$2:$C$18,2,0),"") -> Utopia | C121: 2018-08-09 | D121: 2 | E121: 0 | F121: MAKADI BAY | G121: 110 | I121: =IFERROR(VALUE(IF(ISERROR(MATCH(A121,Sources!$B:$B,0)),IF(ISERROR(MATCH(F121,Sources!$C:$C,0)),"",5*D121+3*E121),IF(AND(NOT(ISERROR(MATCH(A121,Sources!$D:$D,0))),NOT(ISERROR(MATCH(F121,Sources!$E:$E,0)))),5*D121+3*E121,""))&IF(AND(ISERROR(MATCH(A121,Sources!$F:$F,0)),NOT(ISERROR(MATCH(F121,Sources!$G:$G,0)))),5*D121+3*E121,"")),"") ->  | J121: 110
A122: UTOPIA ISLAND | B122: =IFERROR(VLOOKUP(A122,Sheet2!$B$2:$C$18,2,0),"") -> Utopia | C122: 2018-08-09 | D122: 2 | E122: 0 | F122: MAKADI BAY | G122: 110 | I122: =IFERROR(VALUE(IF(ISERROR(MATCH(A122,Sources!$B:$B,0)),IF(ISERROR(MATCH(F122,Sources!$C:$C,0)),"",5*D122+3*E122),IF(AND(NOT(ISERROR(MATCH(A122,Sources!$D:$D,0))),NOT(ISERROR(MATCH(F122,Sources!$E:$E,0)))),5*D122+3*E122,""))&IF(AND(ISERROR(MATCH(A122,Sources!$F:$F,0)),NOT(ISERROR(MATCH(F122,Sources!$G:$G,0)))),5*D122+3*E122,"")),"") ->  | J122: 110
A123: UTOPIA ISLAND | B123: =IFERROR(VLOOKUP(A123,Sheet2!$B$2:$C$18,2,0),"") -> Utopia | C123: 2018-08-09 | D123: 4 | E123: 0 | F123: HURGADA | G123: 220 | I123: =IFERROR(VALUE(IF(ISERROR(MATCH(A123,Sources!$B:$B,0)),IF(ISERROR(MATCH(F123,Sources!$C:$C,0)),"",5*D123+3*E123),IF(AND(NOT(ISERROR(MATCH(A123,Sources!$D:$D,0))),NOT(ISERROR(MATCH(F123,Sources!$E:$E,0)))),5*D123+3*E123,""))&IF(AND(ISERROR(MATCH(A123,Sources!$F:$F,0)),NOT(ISERROR(MATCH(F123,Sources!$G:$G,0)))),5*D123+3*E123,"")),"") ->  | J123: 220
A124: UTOPIA ISLAND | B124: =IFERROR(VLOOKUP(A124,Sheet2!$B$2:$C$18,2,0),"") -> Utopia | C124: 2018-08-09 | D124: 2 | E124: 0 | F124: HURGADA | G124: 110 | I124: =IFERROR(VALUE(IF(ISERROR(MATCH(A124,Sources!$B:$B,0)),IF(ISERROR(MATCH(F124,Sources!$C:$C,0)),"",5*D124+3*E124),IF(AND(NOT(ISERROR(MATCH(A124,Sources!$D:$D,0))),NOT(ISERROR(MATCH(F124,Sources!$E:$E,0)))),5*D124+3*E124,""))&IF(AND(ISERROR(MATCH(A124,Sources!$F:$F,0)),NOT(ISERROR(MATCH(F124,Sources!$G:$G,0)))),5*D124+3*E124,"")),"") ->  | J124: 110
A125: UTOPIA ISLAND | B125: =IFERROR(VLOOKUP(A125,Sheet2!$B$2:$C$18,2,0),"") -> Utopia | C125: 2018-08-09 | D125: 2 | E125: 0 | F125: HURGADA | G125: 110 | I125: =IFERROR(VALUE(IF(ISERROR(MATCH(A125,Sources!$B:$B,0)),IF(ISERROR(MATCH(F125,Sources!$C:$C,0)),"",5*D125+3*E125),IF(AND(NOT(ISERROR(MATCH(A125,Sources!$D:$D,0))),NOT(ISERROR(MATCH(F125,Sources!$E:$E,0)))),5*D125+3*E125,""))&IF(AND(ISERROR(MATCH(A125,Sources!$F:$F,0)),NOT(ISERROR(MATCH(F125,Sources!$G:$G,0)))),5*D125+3*E125,"")),"") ->  | J125: 110
A126: UTOPIA ISLAND | B126: =IFERROR(VLOOKUP(A126,Sheet2!$B$2:$C$18,2,0),"") -> Utopia | C126: 2018-08-09 | D126: 2 | E126: 0 | F126: HURGADA | G126: 110 | I126: =IFERROR(VALUE(IF(ISERROR(MATCH(A126,Sources!$B:$B,0)),IF(ISERROR(MATCH(F126,Sources!$C:$C,0)),"",5*D126+3*E126),IF(AND(NOT(ISERROR(MATCH(A126,Sources!$D:$D,0))),NOT(ISERROR(MATCH(F126,Sources!$E:$E,0)))),5*D126+3*E126,""))&IF(AND(ISERROR(MATCH(A126,Sources!$F:$F,0)),NOT(ISERROR(MATCH(F126,Sources!$G:$G,0)))),5*D126+3*E126,"")),"") ->  | J126: 110
A127: UTOPIA ISLAND | B127: =IFERROR(VLOOKUP(A127,Sheet2!$B$2:$C$18,2,0),"") -> Utopia | C127: 2018-08-09 | D127: 2 | E127: 0 | F127: HURGADA | G127: 110 | I127: =IFERROR(VALUE(IF(ISERROR(MATCH(A127,Sources!$B:$B,0)),IF(ISERROR(MATCH(F127,Sources!$C:$C,0)),"",5*D127+3*E127),IF(AND(NOT(ISERROR(MATCH(A127,Sources!$D:$D,0))),NOT(ISERROR(MATCH(F127,Sources!$E:$E,0)))),5*D127+3*E127,""))&IF(AND(ISERROR(MATCH(A127,Sources!$F:$F,0)),NOT(ISERROR(MATCH(F127,Sources!$G:$G,0)))),5*D127+3*E127,"")),"") ->  | J127: 110
A128: UTOPIA ISLAND | B128: =IFERROR(VLOOKUP(A128,Sheet2!$B$2:$C$18,2,0),"") -> Utopia | C128: 2018-08-09 | D128: 2 | E128: 0 | F128: HURGADA | G128: 110 | I128: =IFERROR(VALUE(IF(ISERROR(MATCH(A128,Sources!$B:$B,0)),IF(ISERROR(MATCH(F128,Sources!$C:$C,0)),"",5*D128+3*E128),IF(AND(NOT(ISERROR(MATCH(A128,Sources!$D:$D,0))),NOT(ISERROR(MATCH(F128,Sources!$E:$E,0)))),5*D128+3*E128,""))&IF(AND(ISERROR(MATCH(A128,Sources!$F:$F,0)),NOT(ISERROR(MATCH(F128,Sources!$G:$G,0)))),5*D128+3*E128,"")),"") ->  | J128: 110
A129: UTOPIA ISLAND | B129: =IFERROR(VLOOKUP(A129,Sheet2!$B$2:$C$18,2,0),"") -> Utopia | C129: 2018-08-09 | D129: 2 | E129: 0 | F129: MAKADI BAY | G129: 110 | I129: =IFERROR(VALUE(IF(ISERROR(MATCH(A129,Sources!$B:$B,0)),IF(ISERROR(MATCH(F129,Sources!$C:$C,0)),"",5*D129+3*E129),IF(AND(NOT(ISERROR(MATCH(A129,Sources!$D:$D,0))),NOT(ISERROR(MATCH(F129,Sources!$E:$E,0)))),5*D129+3*E129,""))&IF(AND(ISERROR(MATCH(A129,Sources!$F:$F,0)),NOT(ISERROR(MATCH(F129,Sources!$G:$G,0)))),5*D129+3*E129,"")),"") ->  | J129: 110
A130: UTOPIA ISLAND | B130: =IFERROR(VLOOKUP(A130,Sheet2!$B$2:$C$18,2,0),"") -> Utopia | C130: 2018-08-09 | D130: 2 | E130: 0 | F130: MAKADI BAY | G130: 110 | I130: =IFERROR(VALUE(IF(ISERROR(MATCH(A130,Sources!$B:$B,0)),IF(ISERROR(MATCH(F130,Sources!$C:$C,0)),"",5*D130+3*E130),IF(AND(NOT(ISERROR(MATCH(A130,Sources!$D:$D,0))),NOT(ISERROR(MATCH(F130,Sources!$E:$E,0)))),5*D130+3*E130,""))&IF(AND(ISERROR(MATCH(A130,Sources!$F:$F,0)),NOT(ISERROR(MATCH(F130,Sources!$G:$G,0)))),5*D130+3*E130,"")),"") ->  | J130: 110
A131: UTOPIA ISLAND | B131: =IFERROR(VLOOKUP(A131,Sheet2!$B$2:$C$18,2,0),"") -> Utopia | C131: 2018-08-09 | D131: 1 | E131: 0 | F131: MAKADI BAY | G131: 55 | I131: =IFERROR(VALUE(IF(ISERROR(MATCH(A131,Sources!$B:$B,0)),IF(ISERROR(MATCH(F131,Sources!$C:$C,0)),"",5*D131+3*E131),IF(AND(NOT(ISERROR(MATCH(A131,Sources!$D:$D,0))),NOT(ISERROR(MATCH(F131,Sources!$E:$E,0)))),5*D131+3*E131,""))&IF(AND(ISERROR(MATCH(A131,Sources!$F:$F,0)),NOT(ISERROR(MATCH(F131,Sources!$G:$G,0)))),5*D131+3*E131,"")),"") ->  | J131: =IF(I131="",G131,(G131-I131)) -> 55
A132: UTOPIA ISLAND | B132: =IFERROR(VLOOKUP(A132,Sheet2!$B$2:$C$18,2,0),"") -> Utopia | C132: 2018-08-09 | D132: 2 | E132: 1 | F132: MAKADI BAY | G132: 138 | I132: =IFERROR(VALUE(IF(ISERROR(MATCH(A132,Sources!$B:$B,0)),IF(ISERROR(MATCH(F132,Sources!$C:$C,0)),"",5*D132+3*E132),IF(AND(NOT(ISERROR(MATCH(A132,Sources!$D:$D,0))),NOT(ISERROR(MATCH(F132,Sources!$E:$E,0)))),5*D132+3*E132,""))&IF(AND(ISERROR(MATCH(A132,Sources!$F:$F,0)),NOT(ISERROR(MATCH(F132,Sources!$G:$G,0)))),5*D132+3*E132,"")),"") ->  | J132: 138
A133: UTOPIA ISLAND | B133: =IFERROR(VLOOKUP(A133,Sheet2!$B$2:$C$18,2,0),"") -> Utopia | C133: 2018-08-09 | D133: 1 | E133: 0 | F133: MAKADI BAY | G133: 55 | I133: =IFERROR(VALUE(IF(ISERROR(MATCH(A133,Sources!$B:$B,0)),IF(ISERROR(MATCH(F133,Sources!$C:$C,0)),"",5*D133+3*E133),IF(AND(NOT(ISERROR(MATCH(A133,Sources!$D:$D,0))),NOT(ISERROR(MATCH(F133,Sources!$E:$E,0)))),5*D133+3*E133,""))&IF(AND(ISERROR(MATCH(A133,Sources!$F:$F,0)),NOT(ISERROR(MATCH(F133,Sources!$G:$G,0)))),5*D133+3*E133,"")),"") ->  | J133: 55
A134: UTOPIA ISLAND | B134: =IFERROR(VLOOKUP(A134,Sheet2!$B$2:$C$18,2,0),"") -> Utopia | C134: 2018-08-09 | D134: 2 | E134: 0 | F134: HURGADA | G134: 110 | I134: =IFERROR(VALUE(IF(ISERROR(MATCH(A134,Sources!$B:$B,0)),IF(ISERROR(MATCH(F134,Sources!$C:$C,0)),"",5*D134+3*E134),IF(AND(NOT(ISERROR(MATCH(A134,Sources!$D:$D,0))),NOT(ISERROR(MATCH(F134,Sources!$E:$E,0)))),5*D134+3*E134,""))&IF(AND(ISERROR(MATCH(A134,Sources!$F:$F,0)),NOT(ISERROR(MATCH(F134,Sources!$G:$G,0)))),5*D134+3*E134,"")),"") ->  | J134: 110
A135: UTOPIA ISLAND | B135: =IFERROR(VLOOKUP(A135,Sheet2!$B$2:$C$18,2,0),"") -> Utopia | C135: 2018-08-09 | D135: 3 | E135: 0 | F135: HURGADA | G135: 165 | I135: =IFERROR(VALUE(IF(ISERROR(MATCH(A135,Sources!$B:$B,0)),IF(ISERROR(MATCH(F135,Sources!$C:$C,0)),"",5*D135+3*E135),IF(AND(NOT(ISERROR(MATCH(A135,Sources!$D:$D,0))),NOT(ISERROR(MATCH(F135,Sources!$E:$E,0)))),5*D135+3*E135,""))&IF(AND(ISERROR(MATCH(A135,Sources!$F:$F,0)),NOT(ISERROR(MATCH(F135,Sources!$G:$G,0)))),5*D135+3*E135,"")),"") ->  | J135: 165
A136: UTOPIA ISLAND | B136: =IFERROR(VLOOKUP(A136,Sheet2!$B$2:$C$18,2,0),"") -> Utopia | C136: 2018-08-09 | D136: 2 | E136: 1 | F136: MAKADI BAY | G136: 138 | I136: =IFERROR(VALUE(IF(ISERROR(MATCH(A136,Sources!$B:$B,0)),IF(ISERROR(MATCH(F136,Sources!$C:$C,0)),"",5*D136+3*E136),IF(AND(NOT(ISERROR(MATCH(A136,Sources!$D:$D,0))),NOT(ISERROR(MATCH(F136,Sources!$E:$E,0)))),5*D136+3*E136,""))&IF(AND(ISERROR(MATCH(A136,Sources!$F:$F,0)),NOT(ISERROR(MATCH(F136,Sources!$G:$G,0)))),5*D136+3*E136,"")),"") ->  | J136: 138
A137: UTOPIA ISLAND | B137: =IFERROR(VLOOKUP(A137,Sheet2!$B$2:$C$18,2,0),"") -> Utopia | C137: 2018-08-09 | D137: 1 | E137: 0 | F137: MAKADI BAY | G137: 55 | I137: =IFERROR(VALUE(IF(ISERROR(MATCH(A137,Sources!$B:$B,0)),IF(ISERROR(MATCH(F137,Sources!$C:$C,0)),"",5*D137+3*E137),IF(AND(NOT(ISERROR(MATCH(A137,Sources!$D:$D,0))),NOT(ISERROR(MATCH(F137,Sources!$E:$E,0)))),5*D137+3*E137,""))&IF(AND(ISERROR(MATCH(A137,Sources!$F:$F,0)),NOT(ISERROR(MATCH(F137,Sources!$G:$G,0)))),5*D137+3*E137,"")),"") ->  | J137: 55
A138: UTOPIA ISLAND | B138: =IFERROR(VLOOKUP(A138,Sheet2!$B$2:$C$18,2,0),"") -> Utopia | C138: 2018-08-09 | D138: 3 | E138: 0 | F138: MAKADI BAY | G138: 165 | I138: =IFERROR(VALUE(IF(ISERROR(MATCH(A138,Sources!$B:$B,0)),IF(ISERROR(MATCH(F138,Sources!$C:$C,0)),"",5*D138+3*E138),IF(AND(NOT(ISERROR(MATCH(A138,Sources!$D:$D,0))),NOT(ISERROR(MATCH(F138,Sources!$E:$E,0)))),5*D138+3*E138,""))&IF(AND(ISERROR(MATCH(A138,Sources!$F:$F,0)),NOT(ISERROR(MATCH(F138,Sources!$G:$G,0)))),5*D138+3*E138,"")),"") ->  | J138: 165
A139: UTOPIA ISLAND | B139: =IFERROR(VLOOKUP(A139,Sheet2!$B$2:$C$18,2,0),"") -> Utopia | C139: 2018-08-09 | D139: 4 | E139: 0 | F139: MAKADI BAY | G139: 220 | I139: =IFERROR(VALUE(IF(ISERROR(MATCH(A139,Sources!$B:$B,0)),IF(ISERROR(MATCH(F139,Sources!$C:$C,0)),"",5*D139+3*E139),IF(AND(NOT(ISERROR(MATCH(A139,Sources!$D:$D,0))),NOT(ISERROR(MATCH(F139,Sources!$E:$E,0)))),5*D139+3*E139,""))&IF(AND(ISERROR(MATCH(A139,Sources!$F:$F,0)),NOT(ISERROR(MATCH(F139,Sources!$G:$G,0)))),5*D139+3*E139,"")),"") ->  | J139: 220
A140: UTOPIA ISLAND | B140: =IFERROR(VLOOKUP(A140,Sheet2!$B$2:$C$18,2,0),"") -> Utopia | C140: 2018-08-09 | D140: 2 | E140: 0 | F140: MAKADI BAY | G140: 110 | I140: =IFERROR(VALUE(IF(ISERROR(MATCH(A140,Sources!$B:$B,0)),IF(ISERROR(MATCH(F140,Sources!$C:$C,0)),"",5*D140+3*E140),IF(AND(NOT(ISERROR(MATCH(A140,Sources!$D:$D,0))),NOT(ISERROR(MATCH(F140,Sources!$E:$E,0)))),5*D140+3*E140,""))&IF(AND(ISERROR(MATCH(A140,Sources!$F:$F,0)),NOT(ISERROR(MATCH(F140,Sources!$G:$G,0)))),5*D140+3*E140,"")),"") ->  | J140: 110
A141: UTOPIA ISLAND | B141: =IFERROR(VLOOKUP(A141,Sheet2!$B$2:$C$18,2,0),"") -> Utopia | C141: 2018-08-09 | D141: 2 | E141: 0 | F141: MAKADI BAY | G141: 110 | I141: =IFERROR(VALUE(IF(ISERROR(MATCH(A141,Sources!$B:$B,0)),IF(ISERROR(MATCH(F141,Sources!$C:$C,0)),"",5*D141+3*E141),IF(AND(NOT(ISERROR(MATCH(A141,Sources!$D:$D,0))),NOT(ISERROR(MATCH(F141,Sources!$E:$E,0)))),5*D141+3*E141,""))&IF(AND(ISERROR(MATCH(A141,Sources!$F:$F,0)),NOT(ISERROR(MATCH(F141,Sources!$G:$G,0)))),5*D141+3*E141,"")),"") ->  | J141: 110
A142: MOTO 1 HOUR | B142: =IFERROR(VLOOKUP(A142,Sheet2!$B$2:$C$18,2,0),"") -> Moto 1 Hour | C142: 2018-08-10 | D142: 2 | E142: 0 | F142: HURGADA | G142: 80 | I142: =IFERROR(VALUE(IF(ISERROR(MATCH(A142,Sources!$B:$B,0)),IF(ISERROR(MATCH(F142,Sources!$C:$C,0)),"",5*D142+3*E142),IF(AND(NOT(ISERROR(MATCH(A142,Sources!$D:$D,0))),NOT(ISERROR(MATCH(F142,Sources!$E:$E,0)))),5*D142+3*E142,""))&IF(AND(ISERROR(MATCH(A142,Sources!$F:$F,0)),NOT(ISERROR(MATCH(F142,Sources!$G:$G,0)))),5*D142+3*E142,"")),"") ->  | J142: 80
A143: MOTO2 | B143: =IFERROR(VLOOKUP(A143,Sheet2!$B$2:$C$18,2,0),"") -> Moto 2 | C143: 2018-08-10 | D143: 2 | E143: 0 | F143: HURGADA | G143: 90 | I143: =IFERROR(VALUE(IF(ISERROR(MATCH(A143,Sources!$B:$B,0)),IF(ISERROR(MATCH(F143,Sources!$C:$C,0)),"",5*D143+3*E143),IF(AND(NOT(ISERROR(MATCH(A143,Sources!$D:$D,0))),NOT(ISERROR(MATCH(F143,Sources!$E:$E,0)))),5*D143+3*E143,""))&IF(AND(ISERROR(MATCH(A143,Sources!$F:$F,0)),NOT(ISERROR(MATCH(F143,Sources!$G:$G,0)))),5*D143+3*E143,"")),"") ->  | J143: 90
A144: MOTO2 | B144: =IFERROR(VLOOKUP(A144,Sheet2!$B$2:$C$18,2,0),"") -> Moto 2 | C144: 2018-08-10 | D144: 2 | E144: 0 | F144: MAKADI BAY | G144: 100 | I144: =IFERROR(VALUE(IF(ISERROR(MATCH(A144,Sources!$B:$B,0)),IF(ISERROR(MATCH(F144,Sources!$C:$C,0)),"",5*D144+3*E144),IF(AND(NOT(ISERROR(MATCH(A144,Sources!$D:$D,0))),NOT(ISERROR(MATCH(F144,Sources!$E:$E,0)))),5*D144+3*E144,""))&IF(AND(ISERROR(MATCH(A144,Sources!$F:$F,0)),NOT(ISERROR(MATCH(F144,Sources!$G:$G,0)))),5*D144+3*E144,"")),"") -> 10 | J144: 90
A145: MOTO2 | B145: =IFERROR(VLOOKUP(A145,Sheet2!$B$2:$C$18,2,0),"") -> Moto 2 | C145: 2018-08-10 | D145: 1 | E145: 0 | F145: MAKADI BAY | G145: 50 | I145: =IFERROR(VALUE(IF(ISERROR(MATCH(A145,Sources!$B:$B,0)),IF(ISERROR(MATCH(F145,Sources!$C:$C,0)),"",5*D145+3*E145),IF(AND(NOT(ISERROR(MATCH(A145,Sources!$D:$D,0))),NOT(ISERROR(MATCH(F145,Sources!$E:$E,0)))),5*D145+3*E145,""))&IF(AND(ISERROR(MATCH(A145,Sources!$F:$F,0)),NOT(ISERROR(MATCH(F145,Sources!$G:$G,0)))),5*D145+3*E145,"")),"") -> 5 | J145: 45
A146: MOTO2 | B146: =IFERROR(VLOOKUP(A146,Sheet2!$B$2:$C$18,2,0),"") -> Moto 2 | C146: 2018-08-10 | D146: 1 | E146: 0 | F146: HURGADA | G146: 55 | I146: =IFERROR(VALUE(IF(ISERROR(MATCH(A146,Sources!$B:$B,0)),IF(ISERROR(MATCH(F146,Sources!$C:$C,0)),"",5*D146+3*E146),IF(AND(NOT(ISERROR(MATCH(A146,Sources!$D:$D,0))),NOT(ISERROR(MATCH(F146,Sources!$E:$E,0)))),5*D146+3*E146,""))&IF(AND(ISERROR(MATCH(A146,Sources!$F:$F,0)),NOT(ISERROR(MATCH(F146,Sources!$G:$G,0)))),5*D146+3*E146,"")),"") ->  | J146: 55
A147: GRAND AQUARIUM | B147: =IFERROR(VLOOKUP(A147,Sheet2!$B$2:$C$18,2,0),"") -> Grand Aquarium | C147: 2018-08-11 | D147: 2 | E147: 0 | F147: HURGADA | G147: 80 | I147: =IFERROR(VALUE(IF(ISERROR(MATCH(A147,Sources!$B:$B,0)),IF(ISERROR(MATCH(F147,Sources!$C:$C,0)),"",5*D147+3*E147),IF(AND(NOT(ISERROR(MATCH(A147,Sources!$D:$D,0))),NOT(ISERROR(MATCH(F147,Sources!$E:$E,0)))),5*D147+3*E147,""))&IF(AND(ISERROR(MATCH(A147,Sources!$F:$F,0)),NOT(ISERROR(MATCH(F147,Sources!$G:$G,0)))),5*D147+3*E147,"")),"") ->  | J147: 80
A148: INTRO DIVING | B148: =IFERROR(VLOOKUP(A148,Sheet2!$B$2:$C$18,2,0),"") -> Diving | C148: 2018-08-11 | D148: 2 | E148: 0 | F148: HURGADA | G148: 130 | I148: =IFERROR(VALUE(IF(ISERROR(MATCH(A148,Sources!$B:$B,0)),IF(ISERROR(MATCH(F148,Sources!$C:$C,0)),"",5*D148+3*E148),IF(AND(NOT(ISERROR(MATCH(A148,Sources!$D:$D,0))),NOT(ISERROR(MATCH(F148,Sources!$E:$E,0)))),5*D148+3*E148,""))&IF(AND(ISERROR(MATCH(A148,Sources!$F:$F,0)),NOT(ISERROR(MATCH(F148,Sources!$G:$G,0)))),5*D148+3*E148,"")),"") ->  | J148: 130
A149: GRAND AQUARIUM | B149: =IFERROR(VLOOKUP(A149,Sheet2!$B$2:$C$18,2,0),"") -> Grand Aquarium | C149: 2018-08-11 | D149: 2 | E149: 0 | F149: HURGADA | G149: 80 | I149: =IFERROR(VALUE(IF(ISERROR(MATCH(A149,Sources!$B:$B,0)),IF(ISERROR(MATCH(F149,Sources!$C:$C,0)),"",5*D149+3*E149),IF(AND(NOT(ISERROR(MATCH(A149,Sources!$D:$D,0))),NOT(ISERROR(MATCH(F149,Sources!$E:$E,0)))),5*D149+3*E149,""))&IF(AND(ISERROR(MATCH(A149,Sources!$F:$F,0)),NOT(ISERROR(MATCH(F149,Sources!$G:$G,0)))),5*D149+3*E149,"")),"") ->  | J149: 80
A150: OVER DAY LUXORQUEEN VALLY | B150: =IFERROR(VLOOKUP(A150,Sheet2!$B$2:$C$18,2,0),"") -> LUXOR 2 | C150: 2018-08-11 | D150: 2 | E150: 0 | F150: HURGADA | G150: 180 | I150: =IFERROR(VALUE(IF(ISERROR(MATCH(A150,Sources!$B:$B,0)),IF(ISERROR(MATCH(F150,Sources!$C:$C,0)),"",5*D150+3*E150),IF(AND(NOT(ISERROR(MATCH(A150,Sources!$D:$D,0))),NOT(ISERROR(MATCH(F150,Sources!$E:$E,0)))),5*D150+3*E150,""))&IF(AND(ISERROR(MATCH(A150,Sources!$F:$F,0)),NOT(ISERROR(MATCH(F150,Sources!$G:$G,0)))),5*D150+3*E150,"")),"") ->  | J150: 180
A151: SUBMARINE | B151: =IFERROR(VLOOKUP(A151,Sheet2!$B$2:$C$18,2,0),"") -> Submarine | C151: 2018-08-11 | D151: 2 | E151: 0 | F151: MAKADI BAY | G151: 126 | I151: =IFERROR(VALUE(IF(ISERROR(MATCH(A151,Sources!$B:$B,0)),IF(ISERROR(MATCH(F151,Sources!$C:$C,0)),"",5*D151+3*E151),IF(AND(NOT(ISERROR(MATCH(A151,Sources!$D:$D,0))),NOT(ISERROR(MATCH(F151,Sources!$E:$E,0)))),5*D151+3*E151,""))&IF(AND(ISERROR(MATCH(A151,Sources!$F:$F,0)),NOT(ISERROR(MATCH(F151,Sources!$G:$G,0)))),5*D151+3*E151,"")),"") -> 10 | J151: 116
A152: OVER DAY LUXORQUEEN VALLY | B152: =IFERROR(VLOOKUP(A152,Sheet2!$B$2:$C$18,2,0),"") -> LUXOR 2 | C152: 2018-08-11 | D152: 1 | E152: 0 | F152: MAKADI BAY | G152: 90 | I152: =IFERROR(VALUE(IF(ISERROR(MATCH(A152,Sources!$B:$B,0)),IF(ISERROR(MATCH(F152,Sources!$C:$C,0)),"",5*D152+3*E152),IF(AND(NOT(ISERROR(MATCH(A152,Sources!$D:$D,0))),NOT(ISERROR(MATCH(F152,Sources!$E:$E,0)))),5*D152+3*E152,""))&IF(AND(ISERROR(MATCH(A152,Sources!$F:$F,0)),NOT(ISERROR(MATCH(F152,Sources!$G:$G,0)))),5*D152+3*E152,"")),"") ->  | J152: 90
A153: OVER DAY LUXORQUEEN VALLY | B153: =IFERROR(VLOOKUP(A153,Sheet2!$B$2:$C$18,2,0),"") -> LUXOR 2 | C153: 2018-08-11 | D153: 2 | E153: 0 | F153: MAKADI BAY | G153: 180 | I153: =IFERROR(VALUE(IF(ISERROR(MATCH(A153,Sources!$B:$B,0)),IF(ISERROR(MATCH(F153,Sources!$C:$C,0)),"",5*D153+3*E153),IF(AND(NOT(ISERROR(MATCH(A153,Sources!$D:$D,0))),NOT(ISERROR(MATCH(F153,Sources!$E:$E,0)))),5*D153+3*E153,""))&IF(AND(ISERROR(MATCH(A153,Sources!$F:$F,0)),NOT(ISERROR(MATCH(F153,Sources!$G:$G,0)))),5*D153+3*E153,"")),"") ->  | J153: 180
A154: OVER DAY LUXORQUEEN VALLY | B154: =IFERROR(VLOOKUP(A154,Sheet2!$B$2:$C$18,2,0),"") -> LUXOR 2 | C154: 2018-08-11 | D154: 2 | E154: 0 | F154: HURGADA | G154: 180 | H154: ukaine | I154: =IFERROR(VALUE(IF(ISERROR(MATCH(A154,Sources!$B:$B,0)),IF(ISERROR(MATCH(F154,Sources!$C:$C,0)),"",5*D154+3*E154),IF(AND(NOT(ISERROR(MATCH(A154,Sources!$D:$D,0))),NOT(ISERROR(MATCH(F154,Sources!$E:$E,0)))),5*D154+3*E154,""))&IF(AND(ISERROR(MATCH(A154,Sources!$F:$F,0)),NOT(ISERROR(MATCH(F154,Sources!$G:$G,0)))),5*D154+3*E154,"")),"") ->  | J154: 180
A155: OVER DAY LUXORQUEEN VALLY | B155: =IFERROR(VLOOKUP(A155,Sheet2!$B$2:$C$18,2,0),"") -> LUXOR 2 | C155: 2018-08-11 | D155: 3 | E155: 0 | F155: HURGADA | G155: 270 | H155: ukraine | I155: =IFERROR(VALUE(IF(ISERROR(MATCH(A155,Sources!$B:$B,0)),IF(ISERROR(MATCH(F155,Sources!$C:$C,0)),"",5*D155+3*E155),IF(AND(NOT(ISERROR(MATCH(A155,Sources!$D:$D,0))),NOT(ISERROR(MATCH(F155,Sources!$E:$E,0)))),5*D155+3*E155,""))&IF(AND(ISERROR(MATCH(A155,Sources!$F:$F,0)),NOT(ISERROR(MATCH(F155,Sources!$G:$G,0)))),5*D155+3*E155,"")),"") ->  | J155: 270
A156: OVER DAY LUXORQUEEN VALLY | B156: =IFERROR(VLOOKUP(A156,Sheet2!$B$2:$C$18,2,0),"") -> LUXOR 2 | C156: 2018-08-11 | D156: 2 | E156: 1 | F156: MAKADI BAY | G156: 225 | I156: =IFERROR(VALUE(IF(ISERROR(MATCH(A156,Sources!$B:$B,0)),IF(ISERROR(MATCH(F156,Sources!$C:$C,0)),"",5*D156+3*E156),IF(AND(NOT(ISERROR(MATCH(A156,Sources!$D:$D,0))),NOT(ISERROR(MATCH(F156,Sources!$E:$E,0)))),5*D156+3*E156,""))&IF(AND(ISERROR(MATCH(A156,Sources!$F:$F,0)),NOT(ISERROR(MATCH(F156,Sources!$G:$G,0)))),5*D156+3*E156,"")),"") ->  | J156: 225
A157: OVER DAY LUXORQUEEN VALLY | B157: =IFERROR(VLOOKUP(A157,Sheet2!$B$2:$C$18,2,0),"") -> LUXOR 2 | C157: 2018-08-11 | D157: 2 | E157: 0 | F157: MAKADI BAY | G157: 180 | I157: =IFERROR(VALUE(IF(ISERROR(MATCH(A157,Sources!$B:$B,0)),IF(ISERROR(MATCH(F157,Sources!$C:$C,0)),"",5*D157+3*E157),IF(AND(NOT(ISERROR(MATCH(A157,Sources!$D:$D,0))),NOT(ISERROR(MATCH(F157,Sources!$E:$E,0)))),5*D157+3*E157,""))&IF(AND(ISERROR(MATCH(A157,Sources!$F:$F,0)),NOT(ISERROR(MATCH(F157,Sources!$G:$G,0)))),5*D157+3*E157,"")),"") ->  | J157: 180
A158: OVER DAY LUXORQUEEN VALLY | B158: =IFERROR(VLOOKUP(A158,Sheet2!$B$2:$C$18,2,0),"") -> LUXOR 2 | C158: 2018-08-11 | D158: 1 | E158: 0 | F158: MAKADI BAY | G158: 90 | I158: =IFERROR(VALUE(IF(ISERROR(MATCH(A158,Sources!$B:$B,0)),IF(ISERROR(MATCH(F158,Sources!$C:$C,0)),"",5*D158+3*E158),IF(AND(NOT(ISERROR(MATCH(A158,Sources!$D:$D,0))),NOT(ISERROR(MATCH(F158,Sources!$E:$E,0)))),5*D158+3*E158,""))&IF(AND(ISERROR(MATCH(A158,Sources!$F:$F,0)),NOT(ISERROR(MATCH(F158,Sources!$G:$G,0)))),5*D158+3*E158,"")),"") ->  | J158: 90
A159: OVER DAY LUXORQUEEN VALLY | B159: =IFERROR(VLOOKUP(A159,Sheet2!$B$2:$C$18,2,0),"") -> LUXOR 2 | C159: 2018-08-11 | D159: 2 | E159: 0 | F159: MAKADI BAY | G159: 180 | I159: =IFERROR(VALUE(IF(ISERROR(MATCH(A159,Sources!$B:$B,0)),IF(ISERROR(MATCH(F159,Sources!$C:$C,0)),"",5*D159+3*E159),IF(AND(NOT(ISERROR(MATCH(A159,Sources!$D:$D,0))),NOT(ISERROR(MATCH(F159,Sources!$E:$E,0)))),5*D159+3*E159,""))&IF(AND(ISERROR(MATCH(A159,Sources!$F:$F,0)),NOT(ISERROR(MATCH(F159,Sources!$G:$G,0)))),5*D159+3*E159,"")),"") ->  | J159: 180
A160: OVER DAY LUXORQUEEN VALLY | B160: =IFERROR(VLOOKUP(A160,Sheet2!$B$2:$C$18,2,0),"") -> LUXOR 2 | C160: 2018-08-11 | D160: 2 | E160: 0 | F160: SAHL HASHEESH | G160: 180 | I160: =IFERROR(VALUE(IF(ISERROR(MATCH(A160,Sources!$B:$B,0)),IF(ISERROR(MATCH(F160,Sources!$C:$C,0)),"",5*D160+3*E160),IF(AND(NOT(ISERROR(MATCH(A160,Sources!$D:$D,0))),NOT(ISERROR(MATCH(F160,Sources!$E:$E,0)))),5*D160+3*E160,""))&IF(AND(ISERROR(MATCH(A160,Sources!$F:$F,0)),NOT(ISERROR(MATCH(F160,Sources!$G:$G,0)))),5*D160+3*E160,"")),"") ->  | J160: 180
A161: PARASAILING TRIP | B161: Dbl parasaling | C161: 2018-08-11 | D161: 2 | E161: 0 | F161: SAHL HASHEESH | G161: 75 | I161: =IFERROR(VALUE(IF(ISERROR(MATCH(A161,Sources!$B:$B,0)),IF(ISERROR(MATCH(F161,Sources!$C:$C,0)),"",5*D161+3*E161),IF(AND(NOT(ISERROR(MATCH(A161,Sources!$D:$D,0))),NOT(ISERROR(MATCH(F161,Sources!$E:$E,0)))),5*D161+3*E161,""))&IF(AND(ISERROR(MATCH(A161,Sources!$F:$F,0)),NOT(ISERROR(MATCH(F161,Sources!$G:$G,0)))),5*D161+3*E161,"")),"") ->  | J161: 75
A162: UTOPIA ISLAND | B162: =IFERROR(VLOOKUP(A162,Sheet2!$B$2:$C$18,2,0),"") -> Utopia | C162: 2018-08-12 | D162: 2 | E162: 1 | F162: HURGADA | G162: 138 | I162: =IFERROR(VALUE(IF(ISERROR(MATCH(A162,Sources!$B:$B,0)),IF(ISERROR(MATCH(F162,Sources!$C:$C,0)),"",5*D162+3*E162),IF(AND(NOT(ISERROR(MATCH(A162,Sources!$D:$D,0))),NOT(ISERROR(MATCH(F162,Sources!$E:$E,0)))),5*D162+3*E162,""))&IF(AND(ISERROR(MATCH(A162,Sources!$F:$F,0)),NOT(ISERROR(MATCH(F162,Sources!$G:$G,0)))),5*D162+3*E162,"")),"") ->  | J162: 138
A163: UTOPIA ISLAND | B163: =IFERROR(VLOOKUP(A163,Sheet2!$B$2:$C$18,2,0),"") -> Utopia | C163: 2018-08-12 | D163: 2 | E163: 0 | F163: HURGADA | G163: 110 | I163: =IFERROR(VALUE(IF(ISERROR(MATCH(A163,Sources!$B:$B,0)),IF(ISERROR(MATCH(F163,Sources!$C:$C,0)),"",5*D163+3*E163),IF(AND(NOT(ISERROR(MATCH(A163,Sources!$D:$D,0))),NOT(ISERROR(MATCH(F163,Sources!$E:$E,0)))),5*D163+3*E163,""))&IF(AND(ISERROR(MATCH(A163,Sources!$F:$F,0)),NOT(ISERROR(MATCH(F163,Sources!$G:$G,0)))),5*D163+3*E163,"")),"") ->  | J163: 110
A164: UTOPIA ISLAND | B164: =IFERROR(VLOOKUP(A164,Sheet2!$B$2:$C$18,2,0),"") -> Utopia | C164: 2018-08-12 | D164: 2 | E164: 0 | F164: HURGADA | G164: 110 | I164: =IFERROR(VALUE(IF(ISERROR(MATCH(A164,Sources!$B:$B,0)),IF(ISERROR(MATCH(F164,Sources!$C:$C,0)),"",5*D164+3*E164),IF(AND(NOT(ISERROR(MATCH(A164,Sources!$D:$D,0))),NOT(ISERROR(MATCH(F164,Sources!$E:$E,0)))),5*D164+3*E164,""))&IF(AND(ISERROR(MATCH(A164,Sources!$F:$F,0)),NOT(ISERROR(MATCH(F164,Sources!$G:$G,0)))),5*D164+3*E164,"")),"") ->  | J164: 110
A165: UTOPIA ISLAND | B165: =IFERROR(VLOOKUP(A165,Sheet2!$B$2:$C$18,2,0),"") -> Utopia | C165: 2018-08-12 | D165: 2 | E165: 0 | F165: HURGADA | G165: 110 | I165: =IFERROR(VALUE(IF(ISERROR(MATCH(A165,Sources!$B:$B,0)),IF(ISERROR(MATCH(F165,Sources!$C:$C,0)),"",5*D165+3*E165),IF(AND(NOT(ISERROR(MATCH(A165,Sources!$D:$D,0))),NOT(ISERROR(MATCH(F165,Sources!$E:$E,0)))),5*D165+3*E165,""))&IF(AND(ISERROR(MATCH(A165,Sources!$F:$F,0)),NOT(ISERROR(MATCH(F165,Sources!$G:$G,0)))),5*D165+3*E165,"")),"") ->  | J165: 110
A166: UTOPIA ISLAND | B166: =IFERROR(VLOOKUP(A166,Sheet2!$B$2:$C$18,2,0),"") -> Utopia | C166: 2018-08-12 | D166: 2 | E166: 2 | F166: HURGADA | G166: 166 | I166: =IFERROR(VALUE(IF(ISERROR(MATCH(A166,Sources!$B:$B,0)),IF(ISERROR(MATCH(F166,Sources!$C:$C,0)),"",5*D166+3*E166),IF(AND(NOT(ISERROR(MATCH(A166,Sources!$D:$D,0))),NOT(ISERROR(MATCH(F166,Sources!$E:$E,0)))),5*D166+3*E166,""))&IF(AND(ISERROR(MATCH(A166,Sources!$F:$F,0)),NOT(ISERROR(MATCH(F166,Sources!$G:$G,0)))),5*D166+3*E166,"")),"") ->  | J166: 166
A167: UTOPIA ISLAND | B167: =IFERROR(VLOOKUP(A167,Sheet2!$B$2:$C$18,2,0),"") -> Utopia | C167: 2018-08-12 | D167: 1 | E167: 1 | F167: MAKADI BAY | G167: 83 | I167: =IFERROR(VALUE(IF(ISERROR(MATCH(A167,Sources!$B:$B,0)),IF(ISERROR(MATCH(F167,Sources!$C:$C,0)),"",5*D167+3*E167),IF(AND(NOT(ISERROR(MATCH(A167,Sources!$D:$D,0))),NOT(ISERROR(MATCH(F167,Sources!$E:$E,0)))),5*D167+3*E167,""))&IF(AND(ISERROR(MATCH(A167,Sources!$F:$F,0)),NOT(ISERROR(MATCH(F167,Sources!$G:$G,0)))),5*D167+3*E167,"")),"") ->  | J167: 83
A168: UTOPIA ISLAND | B168: =IFERROR(VLOOKUP(A168,Sheet2!$B$2:$C$18,2,0),"") -> Utopia | C168: 2018-08-12 | D168: 2 | E168: 0 | F168: MAKADI BAY | G168: 110 | I168: =IFERROR(VALUE(IF(ISERROR(MATCH(A168,Sources!$B:$B,0)),IF(ISERROR(MATCH(F168,Sources!$C:$C,0)),"",5*D168+3*E168),IF(AND(NOT(ISERROR(MATCH(A168,Sources!$D:$D,0))),NOT(ISERROR(MATCH(F168,Sources!$E:$E,0)))),5*D168+3*E168,""))&IF(AND(ISERROR(MATCH(A168,Sources!$F:$F,0)),NOT(ISERROR(MATCH(F168,Sources!$G:$G,0)))),5*D168+3*E168,"")),"") ->  | J168: 110
A169: UTOPIA ISLAND | B169: =IFERROR(VLOOKUP(A169,Sheet2!$B$2:$C$18,2,0),"") -> Utopia | C169: 2018-08-12 | D169: 3 | E169: 0 | F169: MAKADI BAY | G169: 165 | I169: =IFERROR(VALUE(IF(ISERROR(MATCH(A169,Sources!$B:$B,0)),IF(ISERROR(MATCH(F169,Sources!$C:$C,0)),"",5*D169+3*E169),IF(AND(NOT(ISERROR(MATCH(A169,Sources!$D:$D,0))),NOT(ISERROR(MATCH(F169,Sources!$E:$E,0)))),5*D169+3*E169,""))&IF(AND(ISERROR(MATCH(A169,Sources!$F:$F,0)),NOT(ISERROR(MATCH(F169,Sources!$G:$G,0)))),5*D169+3*E169,"")),"") ->  | J169: 165
A170: UTOPIA ISLAND | B170: =IFERROR(VLOOKUP(A170,Sheet2!$B$2:$C$18,2,0),"") -> Utopia | C170: 2018-08-12 | D170: 1 | E170: 0 | F170: MAKADI BAY | G170: 55 | I170: =IFERROR(VALUE(IF(ISERROR(MATCH(A170,Sources!$B:$B,0)),IF(ISERROR(MATCH(F170,Sources!$C:$C,0)),"",5*D170+3*E170),IF(AND(NOT(ISERROR(MATCH(A170,Sources!$D:$D,0))),NOT(ISERROR(MATCH(F170,Sources!$E:$E,0)))),5*D170+3*E170,""))&IF(AND(ISERROR(MATCH(A170,Sources!$F:$F,0)),NOT(ISERROR(MATCH(F170,Sources!$G:$G,0)))),5*D170+3*E170,"")),"") ->  | J170: 55
A171: UTOPIA ISLAND | B171: =IFERROR(VLOOKUP(A171,Sheet2!$B$2:$C$18,2,0),"") -> Utopia | C171: 2018-08-12 | D171: 2 | E171: 2 | F171: MAKADI BAY | G171: 166 | I171: =IFERROR(VALUE(IF(ISERROR(MATCH(A171,Sources!$B:$B,0)),IF(ISERROR(MATCH(F171,Sources!$C:$C,0)),"",5*D171+3*E171),IF(AND(NOT(ISERROR(MATCH(A171,Sources!$D:$D,0))),NOT(ISERROR(MATCH(F171,Sources!$E:$E,0)))),5*D171+3*E171,""))&IF(AND(ISERROR(MATCH(A171,Sources!$F:$F,0)),NOT(ISERROR(MATCH(F171,Sources!$G:$G,0)))),5*D171+3*E171,"")),"") ->  | J171: 166
A172: UTOPIA ISLAND | B172: =IFERROR(VLOOKUP(A172,Sheet2!$B$2:$C$18,2,0),"") -> Utopia | C172: 2018-08-12 | D172: 2 | E172: 0 | F172: MAKADI BAY | G172: 110 | I172: =IFERROR(VALUE(IF(ISERROR(MATCH(A172,Sources!$B:$B,0)),IF(ISERROR(MATCH(F172,Sources!$C:$C,0)),"",5*D172+3*E172),IF(AND(NOT(ISERROR(MATCH(A172,Sources!$D:$D,0))),NOT(ISERROR(MATCH(F172,Sources!$E:$E,0)))),5*D172+3*E172,""))&IF(AND(ISERROR(MATCH(A172,Sources!$F:$F,0)),NOT(ISERROR(MATCH(F172,Sources!$G:$G,0)))),5*D172+3*E172,"")),"") ->  | J172: 110
A173: UTOPIA ISLAND | B173: =IFERROR(VLOOKUP(A173,Sheet2!$B$2:$C$18,2,0),"") -> Utopia | C173: 2018-08-12 | D173: 2 | E173: 0 | F173: MAKADI BAY | G173: 110 | I173: =IFERROR(VALUE(IF(ISERROR(MATCH(A173,Sources!$B:$B,0)),IF(ISERROR(MATCH(F173,Sources!$C:$C,0)),"",5*D173+3*E173),IF(AND(NOT(ISERROR(MATCH(A173,Sources!$D:$D,0))),NOT(ISERROR(MATCH(F173,Sources!$E:$E,0)))),5*D173+3*E173,""))&IF(AND(ISERROR(MATCH(A173,Sources!$F:$F,0)),NOT(ISERROR(MATCH(F173,Sources!$G:$G,0)))),5*D173+3*E173,"")),"") ->  | J173: 110
A174: UTOPIA ISLAND | B174: =IFERROR(VLOOKUP(A174,Sheet2!$B$2:$C$18,2,0),"") -> Utopia | C174: 2018-08-12 | D174: 3 | E174: 0 | F174: MAKADI BAY | G174: 165 | I174: =IFERROR(VALUE(IF(ISERROR(MATCH(A174,Sources!$B:$B,0)),IF(ISERROR(MATCH(F174,Sources!$C:$C,0)),"",5*D174+3*E174),IF(AND(NOT(ISERROR(MATCH(A174,Sources!$D:$D,0))),NOT(ISERROR(MATCH(F174,Sources!$E:$E,0)))),5*D174+3*E174,""))&IF(AND(ISERROR(MATCH(A174,Sources!$F:$F,0)),NOT(ISERROR(MATCH(F174,Sources!$G:$G,0)))),5*D174+3*E174,"")),"") ->  | J174: 165
A175: UTOPIA ISLAND | B175: =IFERROR(VLOOKUP(A175,Sheet2!$B$2:$C$18,2,0),"") -> Utopia | C175: 2018-08-12 | D175: 2 | E175: 0 | F175: MAKADI BAY | G175: 110 | I175: =IFERROR(VALUE(IF(ISERROR(MATCH(A175,Sources!$B:$B,0)),IF(ISERROR(MATCH(F175,Sources!$C:$C,0)),"",5*D175+3*E175),IF(AND(NOT(ISERROR(MATCH(A175,Sources!$D:$D,0))),NOT(ISERROR(MATCH(F175,Sources!$E:$E,0)))),5*D175+3*E175,""))&IF(AND(ISERROR(MATCH(A175,Sources!$F:$F,0)),NOT(ISERROR(MATCH(F175,Sources!$G:$G,0)))),5*D175+3*E175,"")),"") ->  | J175: 110
A176: UTOPIA ISLAND | B176: =IFERROR(VLOOKUP(A176,Sheet2!$B$2:$C$18,2,0),"") -> Utopia | C176: 2018-08-12 | D176: 2 | E176: 0 | F176: MAKADI BAY | G176: 110 | I176: =IFERROR(VALUE(IF(ISERROR(MATCH(A176,Sources!$B:$B,0)),IF(ISERROR(MATCH(F176,Sources!$C:$C,0)),"",5*D176+3*E176),IF(AND(NOT(ISERROR(MATCH(A176,Sources!$D:$D,0))),NOT(ISERROR(MATCH(F176,Sources!$E:$E,0)))),5*D176+3*E176,""))&IF(AND(ISERROR(MATCH(A176,Sources!$F:$F,0)),NOT(ISERROR(MATCH(F176,Sources!$G:$G,0)))),5*D176+3*E176,"")),"") ->  | J176: 110
A177: UTOPIA ISLAND | B177: =IFERROR(VLOOKUP(A177,Sheet2!$B$2:$C$18,2,0),"") -> Utopia | C177: 2018-08-12 | D177: 2 | E177: 0 | F177: MAKADI BAY | G177: 110 | I177: =IFERROR(VALUE(IF(ISERROR(MATCH(A177,Sources!$B:$B,0)),IF(ISERROR(MATCH(F177,Sources!$C:$C,0)),"",5*D177+3*E177),IF(AND(NOT(ISERROR(MATCH(A177,Sources!$D:$D,0))),NOT(ISERROR(MATCH(F177,Sources!$E:$E,0)))),5*D177+3*E177,""))&IF(AND(ISERROR(MATCH(A177,Sources!$F:$F,0)),NOT(ISERROR(MATCH(F177,Sources!$G:$G,0)))),5*D177+3*E177,"")),"") ->  | J177: 110
A178: UTOPIA ISLAND | B178: =IFERROR(VLOOKUP(A178,Sheet2!$B$2:$C$18,2,0),"") -> Utopia | C178: 2018-08-12 | D178: 2 | E178: 0 | F178: MAKADI BAY | G178: 110 | I178: =IFERROR(VALUE(IF(ISERROR(MATCH(A178,Sources!$B:$B,0)),IF(ISERROR(MATCH(F178,Sources!$C:$C,0)),"",5*D178+3*E178),IF(AND(NOT(ISERROR(MATCH(A178,Sources!$D:$D,0))),NOT(ISERROR(MATCH(F178,Sources!$E:$E,0)))),5*D178+3*E178,""))&IF(AND(ISERROR(MATCH(A178,Sources!$F:$F,0)),NOT(ISERROR(MATCH(F178,Sources!$G:$G,0)))),5*D178+3*E178,"")),"") ->  | J178: 110
A179: UTOPIA ISLAND | B179: =IFERROR(VLOOKUP(A179,Sheet2!$B$2:$C$18,2,0),"") -> Utopia | C179: 2018-08-12 | D179: 2 | E179: 0 | F179: SAHL HASHEESH | G179: 110 | I179: =IFERROR(VALUE(IF(ISERROR(MATCH(A179,Sources!$B:$B,0)),IF(ISERROR(MATCH(F179,Sources!$C:$C,0)),"",5*D179+3*E179),IF(AND(NOT(ISERROR(MATCH(A179,Sources!$D:$D,0))),NOT(ISERROR(MATCH(F179,Sources!$E:$E,0)))),5*D179+3*E179,""))&IF(AND(ISERROR(MATCH(A179,Sources!$F:$F,0)),NOT(ISERROR(MATCH(F179,Sources!$G:$G,0)))),5*D179+3*E179,"")),"") ->  | J179: 110
A180: UTOPIA ISLAND | B180: =IFERROR(VLOOKUP(A180,Sheet2!$B$2:$C$18,2,0),"") -> Utopia | C180: 2018-08-12 | D180: 4 | E180: 0 | F180: HURGADA | G180: 220 | I180: =IFERROR(VALUE(IF(ISERROR(MATCH(A180,Sources!$B:$B,0)),IF(ISERROR(MATCH(F180,Sources!$C:$C,0)),"",5*D180+3*E180),IF(AND(NOT(ISERROR(MATCH(A180,Sources!$D:$D,0))),NOT(ISERROR(MATCH(F180,Sources!$E:$E,0)))),5*D180+3*E180,""))&IF(AND(ISERROR(MATCH(A180,Sources!$F:$F,0)),NOT(ISERROR(MATCH(F180,Sources!$G:$G,0)))),5*D180+3*E180,"")),"") ->  | J180: 220
A181: UTOPIA ISLAND | B181: =IFERROR(VLOOKUP(A181,Sheet2!$B$2:$C$18,2,0),"") -> Utopia | C181: 2018-08-12 | D181: 2 | E181: 0 | F181: HURGADA | G181: 110 | I181: =IFERROR(VALUE(IF(ISERROR(MATCH(A181,Sources!$B:$B,0)),IF(ISERROR(MATCH(F181,Sources!$C:$C,0)),"",5*D181+3*E181),IF(AND(NOT(ISERROR(MATCH(A181,Sources!$D:$D,0))),NOT(ISERROR(MATCH(F181,Sources!$E:$E,0)))),5*D181+3*E181,""))&IF(AND(ISERROR(MATCH(A181,Sources!$F:$F,0)),NOT(ISERROR(MATCH(F181,Sources!$G:$G,0)))),5*D181+3*E181,"")),"") ->  | J181: 110
A182: UTOPIA ISLAND | B182: =IFERROR(VLOOKUP(A182,Sheet2!$B$2:$C$18,2,0),"") -> Utopia | C182: 2018-08-12 | D182: 3 | E182: 0 | F182: MAKADI BAY | G182: 165 | I182: =IFERROR(VALUE(IF(ISERROR(MATCH(A182,Sources!$B:$B,0)),IF(ISERROR(MATCH(F182,Sources!$C:$C,0)),"",5*D182+3*E182),IF(AND(NOT(ISERROR(MATCH(A182,Sources!$D:$D,0))),NOT(ISERROR(MATCH(F182,Sources!$E:$E,0)))),5*D182+3*E182,""))&IF(AND(ISERROR(MATCH(A182,Sources!$F:$F,0)),NOT(ISERROR(MATCH(F182,Sources!$G:$G,0)))),5*D182+3*E182,"")),"") ->  | J182: 165
A183: SEA TRIP | B183: =IFERROR(VLOOKUP(A183,Sheet2!$B$2:$C$18,2,0),"") -> Sea Trip | C183: 2018-08-13 | D183: 2 | E183: 0 | F183: HURGADA | G183: 80 | I183: =IFERROR(VALUE(IF(ISERROR(MATCH(A183,Sources!$B:$B,0)),IF(ISERROR(MATCH(F183,Sources!$C:$C,0)),"",5*D183+3*E183),IF(AND(NOT(ISERROR(MATCH(A183,Sources!$D:$D,0))),NOT(ISERROR(MATCH(F183,Sources!$E:$E,0)))),5*D183+3*E183,""))&IF(AND(ISERROR(MATCH(A183,Sources!$F:$F,0)),NOT(ISERROR(MATCH(F183,Sources!$G:$G,0)))),5*D183+3*E183,"")),"") ->  | J183: 80
A184: INTRO DIVING | B184: =IFERROR(VLOOKUP(A184,Sheet2!$B$2:$C$18,2,0),"") -> Diving | C184: 2018-08-13 | D184: 1 | E184: 0 | F184: MAKADI BAY | G184: 70 | H184: NO SHOW | I184: =IFERROR(VALUE(IF(ISERROR(MATCH(A184,Sources!$B:$B,0)),IF(ISERROR(MATCH(F184,Sources!$C:$C,0)),"",5*D184+3*E184),IF(AND(NOT(ISERROR(MATCH(A184,Sources!$D:$D,0))),NOT(ISERROR(MATCH(F184,Sources!$E:$E,0)))),5*D184+3*E184,""))&IF(AND(ISERROR(MATCH(A184,Sources!$F:$F,0)),NOT(ISERROR(MATCH(F184,Sources!$G:$G,0)))),5*D184+3*E184,"")),"") -> 5 | J184: 65
A185: MOTO2 | B185: =IFERROR(VLOOKUP(A185,Sheet2!$B$2:$C$18,2,0),"") -> Moto 2 | C185: 2018-08-13 | D185: 2 | E185: 0 | F185: SAHL HASHEESH | G185: 90 | I185: =IFERROR(VALUE(IF(ISERROR(MATCH(A185,Sources!$B:$B,0)),IF(ISERROR(MATCH(F185,Sources!$C:$C,0)),"",5*D185+3*E185),IF(AND(NOT(ISERROR(MATCH(A185,Sources!$D:$D,0))),NOT(ISERROR(MATCH(F185,Sources!$E:$E,0)))),5*D185+3*E185,""))&IF(AND(ISERROR(MATCH(A185,Sources!$F:$F,0)),NOT(ISERROR(MATCH(F185,Sources!$G:$G,0)))),5*D185+3*E185,"")),"") ->  | J185: 90
A186: MOTO2 | B186: =IFERROR(VLOOKUP(A186,Sheet2!$B$2:$C$18,2,0),"") -> Moto 2 | C186: 2018-08-13 | D186: 2 | E186: 0 | F186: SAHL HASHEESH | G186: 90 | I186: =IFERROR(VALUE(IF(ISERROR(MATCH(A186,Sources!$B:$B,0)),IF(ISERROR(MATCH(F186,Sources!$C:$C,0)),"",5*D186+3*E186),IF(AND(NOT(ISERROR(MATCH(A186,Sources!$D:$D,0))),NOT(ISERROR(MATCH(F186,Sources!$E:$E,0)))),5*D186+3*E186,""))&IF(AND(ISERROR(MATCH(A186,Sources!$F:$F,0)),NOT(ISERROR(MATCH(F186,Sources!$G:$G,0)))),5*D186+3*E186,"")),"") ->  | J186: 90
A187: SEA TRIP | B187: =IFERROR(VLOOKUP(A187,Sheet2!$B$2:$C$18,2,0),"") -> Sea Trip | C187: 2018-08-13 | D187: 3 | E187: 0 | F187: HURGADA | G187: 120 | I187: =IFERROR(VALUE(IF(ISERROR(MATCH(A187,Sources!$B:$B,0)),IF(ISERROR(MATCH(F187,Sources!$C:$C,0)),"",5*D187+3*E187),IF(AND(NOT(ISERROR(MATCH(A187,Sources!$D:$D,0))),NOT(ISERROR(MATCH(F187,Sources!$E:$E,0)))),5*D187+3*E187,""))&IF(AND(ISERROR(MATCH(A187,Sources!$F:$F,0)),NOT(ISERROR(MATCH(F187,Sources!$G:$G,0)))),5*D187+3*E187,"")),"") ->  | J187: 120
A188: MOTO2 | B188: =IFERROR(VLOOKUP(A188,Sheet2!$B$2:$C$18,2,0),"") -> Moto 2 | C188: 2018-08-13 | D188: 2 | E188: 0 | F188: HURGADA | G188: 90 | I188: =IFERROR(VALUE(IF(ISERROR(MATCH(A188,Sources!$B:$B,0)),IF(ISERROR(MATCH(F188,Sources!$C:$C,0)),"",5*D188+3*E188),IF(AND(NOT(ISERROR(MATCH(A188,Sources!$D:$D,0))),NOT(ISERROR(MATCH(F188,Sources!$E:$E,0)))),5*D188+3*E188,""))&IF(AND(ISERROR(MATCH(A188,Sources!$F:$F,0)),NOT(ISERROR(MATCH(F188,Sources!$G:$G,0)))),5*D188+3*E188,"")),"") ->  | J188: 90
A189: ASPENDOS TURKISH BATH | B189: Aspendos Turkish Bath | C189: 2018-08-13 | D189: 2 | E189: 0 | F189: HURGADA | G189: 70 | I189: =IFERROR(VALUE(IF(ISERROR(MATCH(A189,Sources!$B:$B,0)),IF(ISERROR(MATCH(F189,Sources!$C:$C,0)),"",5*D189+3*E189),IF(AND(NOT(ISERROR(MATCH(A189,Sources!$D:$D,0))),NOT(ISERROR(MATCH(F189,Sources!$E:$E,0)))),5*D189+3*E189,""))&IF(AND(ISERROR(MATCH(A189,Sources!$F:$F,0)),NOT(ISERROR(MATCH(F189,Sources!$G:$G,0)))),5*D189+3*E189,"")),"") ->  | J189: 70
A190: ASPENDOS TURKISH BATH | B190: Aspendos Turkish Bath | C190: 2018-08-13 | D190: 2 | E190: 0 | F190: HURGADA | G190: 70 | I190: =IFERROR(VALUE(IF(ISERROR(MATCH(A190,Sources!$B:$B,0)),IF(ISERROR(MATCH(F190,Sources!$C:$C,0)),"",5*D190+3*E190),IF(AND(NOT(ISERROR(MATCH(A190,Sources!$D:$D,0))),NOT(ISERROR(MATCH(F190,Sources!$E:$E,0)))),5*D190+3*E190,""))&IF(AND(ISERROR(MATCH(A190,Sources!$F:$F,0)),NOT(ISERROR(MATCH(F190,Sources!$G:$G,0)))),5*D190+3*E190,"")),"") ->  | J190: 70
A191: UTOPIA ISLAND | B191: =IFERROR(VLOOKUP(A191,Sheet2!$B$2:$C$18,2,0),"") -> Utopia | C191: 2018-08-14 | D191: 2 | E191: 0 | F191: HURGADA | G191: 110 | I191: =IFERROR(VALUE(IF(ISERROR(MATCH(A191,Sources!$B:$B,0)),IF(ISERROR(MATCH(F191,Sources!$C:$C,0)),"",5*D191+3*E191),IF(AND(NOT(ISERROR(MATCH(A191,Sources!$D:$D,0))),NOT(ISERROR(MATCH(F191,Sources!$E:$E,0)))),5*D191+3*E191,""))&IF(AND(ISERROR(MATCH(A191,Sources!$F:$F,0)),NOT(ISERROR(MATCH(F191,Sources!$G:$G,0)))),5*D191+3*E191,"")),"") ->  | J191: 110
A192: GRAND AQUARIUM | B192: =IFERROR(VLOOKUP(A192,Sheet2!$B$2:$C$18,2,0),"") -> Grand Aquarium | C192: 2018-08-14 | D192: 2 | E192: 0 | F192: HURGADA | G192: 80 | I192: =IFERROR(VALUE(IF(ISERROR(MATCH(A192,Sources!$B:$B,0)),IF(ISERROR(MATCH(F192,Sources!$C:$C,0)),"",5*D192+3*E192),IF(AND(NOT(ISERROR(MATCH(A192,Sources!$D:$D,0))),NOT(ISERROR(MATCH(F192,Sources!$E:$E,0)))),5*D192+3*E192,""))&IF(AND(ISERROR(MATCH(A192,Sources!$F:$F,0)),NOT(ISERROR(MATCH(F192,Sources!$G:$G,0)))),5*D192+3*E192,"")),"") ->  | J192: 80
A193: UTOPIA ISLAND | B193: =IFERROR(VLOOKUP(A193,Sheet2!$B$2:$C$18,2,0),"") -> Utopia | C193: 2018-08-14 | D193: 3 | E193: 0 | F193: HURGADA | G193: 165 | I193: =IFERROR(VALUE(IF(ISERROR(MATCH(A193,Sources!$B:$B,0)),IF(ISERROR(MATCH(F193,Sources!$C:$C,0)),"",5*D193+3*E193),IF(AND(NOT(ISERROR(MATCH(A193,Sources!$D:$D,0))),NOT(ISERROR(MATCH(F193,Sources!$E:$E,0)))),5*D193+3*E193,""))&IF(AND(ISERROR(MATCH(A193,Sources!$F:$F,0)),NOT(ISERROR(MATCH(F193,Sources!$G:$G,0)))),5*D193+3*E193,"")),"") ->  | J193: 165
A194: UTOPIA ISLAND | B194: =IFERROR(VLOOKUP(A194,Sheet2!$B$2:$C$18,2,0),"") -> Utopia | C194: 2018-08-14 | D194: 2 | E194: 0 | F194: HURGADA | G194: 110 | I194: =IFERROR(VALUE(IF(ISERROR(MATCH(A194,Sources!$B:$B,0)),IF(ISERROR(MATCH(F194,Sources!$C:$C,0)),"",5*D194+3*E194),IF(AND(NOT(ISERROR(MATCH(A194,Sources!$D:$D,0))),NOT(ISERROR(MATCH(F194,Sources!$E:$E,0)))),5*D194+3*E194,""))&IF(AND(ISERROR(MATCH(A194,Sources!$F:$F,0)),NOT(ISERROR(MATCH(F194,Sources!$G:$G,0)))),5*D194+3*E194,"")),"") ->  | J194: 110
A195: UTOPIA ISLAND | B195: =IFERROR(VLOOKUP(A195,Sheet2!$B$2:$C$18,2,0),"") -> Utopia | C195: 2018-08-14 | D195: 2 | E195: 0 | F195: HURGADA | G195: 110 | I195: =IFERROR(VALUE(IF(ISERROR(MATCH(A195,Sources!$B:$B,0)),IF(ISERROR(MATCH(F195,Sources!$C:$C,0)),"",5*D195+3*E195),IF(AND(NOT(ISERROR(MATCH(A195,Sources!$D:$D,0))),NOT(ISERROR(MATCH(F195,Sources!$E:$E,0)))),5*D195+3*E195,""))&IF(AND(ISERROR(MATCH(A195,Sources!$F:$F,0)),NOT(ISERROR(MATCH(F195,Sources!$G:$G,0)))),5*D195+3*E195,"")),"") ->  | J195: =IF(I195="",G195,(G195-I195)) -> 110
A196: MOTO2 | B196: =IFERROR(VLOOKUP(A196,Sheet2!$B$2:$C$18,2,0),"") -> Moto 2 | C196: 2018-08-14 | D196: 1 | E196: 0 | F196: MAKADI BAY | G196: 50 | I196: =IFERROR(VALUE(IF(ISERROR(MATCH(A196,Sources!$B:$B,0)),IF(ISERROR(MATCH(F196,Sources!$C:$C,0)),"",5*D196+3*E196),IF(AND(NOT(ISERROR(MATCH(A196,Sources!$D:$D,0))),NOT(ISERROR(MATCH(F196,Sources!$E:$E,0)))),5*D196+3*E196,""))&IF(AND(ISERROR(MATCH(A196,Sources!$F:$F,0)),NOT(ISERROR(MATCH(F196,Sources!$G:$G,0)))),5*D196+3*E196,"")),"") -> 5 | J196: 45
A197: UTOPIA ISLAND | B197: =IFERROR(VLOOKUP(A197,Sheet2!$B$2:$C$18,2,0),"") -> Utopia | C197: 2018-08-14 | D197: 1 | E197: 0 | F197: MAKADI BAY | G197: 55 | I197: =IFERROR(VALUE(IF(ISERROR(MATCH(A197,Sources!$B:$B,0)),IF(ISERROR(MATCH(F197,Sources!$C:$C,0)),"",5*D197+3*E197),IF(AND(NOT(ISERROR(MATCH(A197,Sources!$D:$D,0))),NOT(ISERROR(MATCH(F197,Sources!$E:$E,0)))),5*D197+3*E197,""))&IF(AND(ISERROR(MATCH(A197,Sources!$F:$F,0)),NOT(ISERROR(MATCH(F197,Sources!$G:$G,0)))),5*D197+3*E197,"")),"") ->  | J197: 55
A198: GRAND AQUARIUM | B198: =IFERROR(VLOOKUP(A198,Sheet2!$B$2:$C$18,2,0),"") -> Grand Aquarium | C198: 2018-08-14 | D198: 2 | E198: 0 | F198: SAHL HASHEESH | G198: 80 | I198: =IFERROR(VALUE(IF(ISERROR(MATCH(A198,Sources!$B:$B,0)),IF(ISERROR(MATCH(F198,Sources!$C:$C,0)),"",5*D198+3*E198),IF(AND(NOT(ISERROR(MATCH(A198,Sources!$D:$D,0))),NOT(ISERROR(MATCH(F198,Sources!$E:$E,0)))),5*D198+3*E198,""))&IF(AND(ISERROR(MATCH(A198,Sources!$F:$F,0)),NOT(ISERROR(MATCH(F198,Sources!$G:$G,0)))),5*D198+3*E198,"")),"") ->  | J198: 80
A199: INTRO DIVING | B199: =IFERROR(VLOOKUP(A199,Sheet2!$B$2:$C$18,2,0),"") -> Diving | C199: 2018-08-14 | D199: 2 | E199: 0 | F199: SAHL HASHEESH | G199: 130 | I199: =IFERROR(VALUE(IF(ISERROR(MATCH(A199,Sources!$B:$B,0)),IF(ISERROR(MATCH(F199,Sources!$C:$C,0)),"",5*D199+3*E199),IF(AND(NOT(ISERROR(MATCH(A199,Sources!$D:$D,0))),NOT(ISERROR(MATCH(F199,Sources!$E:$E,0)))),5*D199+3*E199,""))&IF(AND(ISERROR(MATCH(A199,Sources!$F:$F,0)),NOT(ISERROR(MATCH(F199,Sources!$G:$G,0)))),5*D199+3*E199,"")),"") ->  | J199: 130
A200: GRAND AQUARIUM | B200: =IFERROR(VLOOKUP(A200,Sheet2!$B$2:$C$18,2,0),"") -> Grand Aquarium | C200: 2018-08-14 | D200: 2 | E200: 0 | F200: HURGADA | G200: 80 | I200: =IFERROR(VALUE(IF(ISERROR(MATCH(A200,Sources!$B:$B,0)),IF(ISERROR(MATCH(F200,Sources!$C:$C,0)),"",5*D200+3*E200),IF(AND(NOT(ISERROR(MATCH(A200,Sources!$D:$D,0))),NOT(ISERROR(MATCH(F200,Sources!$E:$E,0)))),5*D200+3*E200,""))&IF(AND(ISERROR(MATCH(A200,Sources!$F:$F,0)),NOT(ISERROR(MATCH(F200,Sources!$G:$G,0)))),5*D200+3*E200,"")),"") ->  | J200: 80
... 244 more rows

Sheet Excurcion
A1: 526 | B1: 01/08/2018 till 31/08/2018 | C1: =SUMPRODUCT((Data!$C:$C=A1)*(Data!$B:$B=B1)*(Data!$D:$D)) ->  | D1: =SUMPRODUCT((Data!$C:$C=A1)*(Data!$B:$B=B1)*(Data!$E:$E)) -> 
B2: =INDIRECT("Data!B"&MATCH(A5,Data!$C$2:$C$188,0)&":B100000") -> Moto 2 | C2: =SUBTOTAL(9,C5:C81) -> 363 | D2: =SUBTOTAL(9,D5:D81) -> 49 | H2: =SUBTOTAL(9,H5:H81) -> 
A3: Date | B3: Ex | E3: Price | F3: ch | G3: Plus | H3: Total | I3: TRANSFER | J3: dis
C4: Adl | D4: Chd
A5: 2018-08-01 | B5: =IFERROR(INDEX(INDIRECT("Data!B"&MATCH(A5,Data!$C$2:$C$100000,0)+1&":B100000"),SMALL(IF((A5=INDIRECT("Data!C"&MATCH(A5,Data!$C$2:$C$100000,0)+1&":C100000"))*(MATCH(INDIRECT("Data!B"&MATCH(A5,Data!$C$2:$C$100000,0)+1&":B100000")&"",INDIRECT("Data!B"&MATCH(A5,Data!$C$2:$C$100000,0)+1&":B100000")&"",0)=(ROW(INDIRECT("Data!B"&MATCH(A5,Data!$C$2:$C$100000,0)+1&":B100000"))-MATCH(A5,Data!$C$2:$C$100000,0))),ROW(INDIRECT("Data!B"&MATCH(A5,Data!$C$2:$C$100000,0)+1&":B100000"))-MATCH(A5,Data!$C$2:$C$100000,0),""),COUNTIF($A$5:A5,A5))),"") -> Moto 2 | C5: =SUMIFS(Data!$D:$D,Data!$C:$C,A5,Data!$B:$B,B5) -> 4 | D5: =SUMIFS(Data!$E:$E,Data!$C:$C,A5,Data!$B:$B,B5) -> 0 | E5: =IF(AND(B5="Grand Aquarium",WEEKDAY(A5)=3),40,IF(AND(B5="Grand Aquarium",WEEKDAY(A5)=7),40,VLOOKUP(B5,Price!$A$6:$C$216,2,0))) -> 45 | F5: =IF(AND(B5="Grand Aquarium",WEEKDAY(A5)=3),20,IF(AND(B5="Grand Aquarium",WEEKDAY(A5)=7),20,VLOOKUP(B5,Price!$A$6:$C$216,3,0))) -> 23 | G5: =IF(SUMIFS(Data!$J:$J,Data!$C:$C,A5,Data!$B:$B,B5)>H5,SUMIFS(Data!$J:$J,Data!$C:$C,A5,Data!$B:$B,B5)-H5,"") -> 0 | H5: =(C5*E5)+(D5*F5)+G5 -> 180 | I5: =SUMPRODUCT((Data!$C:$C=A5)*(Data!$B:$B=B5),(Data!$I:$I)) -> 0 | J5: =IF(SUMIFS(Data!$J:$J,Data!$C:$C,A5,Data!$B:$B,B5)<H5,H5-SUMIFS(Data!$J:$J,Data!$C:$C,A5,Data!$B:$B,B5),"") -> 0
A6: 2018-08-01 | B6: =IFERROR(INDEX(INDIRECT("Data!B"&MATCH(A6,Data!$C$2:$C$100000,0)+1&":B100000"),SMALL(IF((A6=INDIRECT("Data!C"&MATCH(A6,Data!$C$2:$C$100000,0)+1&":C100000"))*(MATCH(INDIRECT("Data!B"&MATCH(A6,Data!$C$2:$C$100000,0)+1&":B100000")&"",INDIRECT("Data!B"&MATCH(A6,Data!$C$2:$C$100000,0)+1&":B100000")&"",0)=(ROW(INDIRECT("Data!B"&MATCH(A6,Data!$C$2:$C$100000,0)+1&":B100000"))-MATCH(A6,Data!$C$2:$C$100000,0))),ROW(INDIRECT("Data!B"&MATCH(A6,Data!$C$2:$C$100000,0)+1&":B100000"))-MATCH(A6,Data!$C$2:$C$100000,0),""),COUNTIF($A$5:A6,A6))),"") -> Moto 1 Hour | C6: =SUMIFS(Data!$D:$D,Data!$C:$C,A6,Data!$B:$B,B6) -> 1 | D6: =SUMIFS(Data!$E:$E,Data!$C:$C,A6,Data!$B:$B,B6) -> 1 | E6: =IF(AND(B6="Grand Aquarium",WEEKDAY(A6)=3),40,IF(AND(B6="Grand Aquarium",WEEKDAY(A6)=7),40,VLOOKUP(B6,Price!$A$6:$C$216,2,0))) -> 40 | F6: =IF(AND(B6="Grand Aquarium",WEEKDAY(A6)=3),20,IF(AND(B6="Grand Aquarium",WEEKDAY(A6)=7),20,VLOOKUP(B6,Price!$A$6:$C$216,3,0))) -> 20 | G6: =IF(SUMIFS(Data!$J:$J,Data!$C:$C,A6,Data!$B:$B,B6)>H6,SUMIFS(Data!$J:$J,Data!$C:$C,A6,Data!$B:$B,B6)-H6,"") -> 0 | H6: =(C6*E6)+(D6*F6)+G6 -> 180 | I6: =SUMPRODUCT((Data!$C:$C=A6)*(Data!$B:$B=B6),(Data!$I:$I)) -> 0 | J6: =IF(SUMIFS(Data!$J:$J,Data!$C:$C,A6,Data!$B:$B,B6)<H6,H6-SUMIFS(Data!$J:$J,Data!$C:$C,A6,Data!$B:$B,B6),"") -> 0
A7: 2018-08-01 | B7: =IFERROR(INDEX(INDIRECT("Data!B"&MATCH(A7,Data!$C$2:$C$100000,0)+1&":B100000"),SMALL(IF((A7=INDIRECT("Data!C"&MATCH(A7,Data!$C$2:$C$100000,0)+1&":C100000"))*(MATCH(INDIRECT("Data!B"&MATCH(A7,Data!$C$2:$C$100000,0)+1&":B100000")&"",INDIRECT("Data!B"&MATCH(A7,Data!$C$2:$C$100000,0)+1&":B100000")&"",0)=(ROW(INDIRECT("Data!B"&MATCH(A7,Data!$C$2:$C$100000,0)+1&":B100000"))-MATCH(A7,Data!$C$2:$C$100000,0))),ROW(INDIRECT("Data!B"&MATCH(A7,Data!$C$2:$C$100000,0)+1&":B100000"))-MATCH(A7,Data!$C$2:$C$100000,0),""),COUNTIF($A$5:A7,A7))),"") -> LUXOR 2 | C7: =SUMIFS(Data!$D:$D,Data!$C:$C,A7,Data!$B:$B,B7) -> 11 | D7: =SUMIFS(Data!$E:$E,Data!$C:$C,A7,Data!$B:$B,B7) -> 2 | E7: =IF(AND(B7="Grand Aquarium",WEEKDAY(A7)=3),40,IF(AND(B7="Grand Aquarium",WEEKDAY(A7)=7),40,VLOOKUP(B7,Price!$A$6:$C$216,2,0))) -> 90 | F7: =IF(AND(B7="Grand Aquarium",WEEKDAY(A7)=3),20,IF(AND(B7="Grand Aquarium",WEEKDAY(A7)=7),20,VLOOKUP(B7,Price!$A$6:$C$216,3,0))) -> 45 | G7: =IF(SUMIFS(Data!$J:$J,Data!$C:$C,A7,Data!$B:$B,B7)>H7,SUMIFS(Data!$J:$J,Data!$C:$C,A7,Data!$B:$B,B7)-H7,"") -> 0 | H7: 180 | I7: =SUMPRODUCT((Data!$C:$C=A7)*(Data!$B:$B=B7),(Data!$I:$I)) -> 0 | J7: =IF(SUMIFS(Data!$J:$J,Data!$C:$C,A7,Data!$B:$B,B7)<H7,H7-SUMIFS(Data!$J:$J,Data!$C:$C,A7,Data!$B:$B,B7),"") -> 0
B8: =IFERROR(INDEX(INDIRECT("Data!B"&MATCH(A8,Data!$C$2:$C$100000,0)+1&":B100000"),SMALL(IF((A8=INDIRECT("Data!C"&MATCH(A8,Data!$C$2:$C$100000,0)+1&":C100000"))*(MATCH(INDIRECT("Data!B"&MATCH(A8,Data!$C$2:$C$100000,0)+1&":B100000")&"",INDIRECT("Data!B"&MATCH(A8,Data!$C$2:$C$100000,0)+1&":B100000")&"",0)=(ROW(INDIRECT("Data!B"&MATCH(A8,Data!$C$2:$C$100000,0)+1&":B100000"))-MATCH(A8,Data!$C$2:$C$100000,0))),ROW(INDIRECT("Data!B"&MATCH(A8,Data!$C$2:$C$100000,0)+1&":B100000"))-MATCH(A8,Data!$C$2:$C$100000,0),""),COUNTIF($A$5:A8,A8))),"") ->  | C8: =SUMIFS(Data!$D:$D,Data!$C:$C,A8,Data!$B:$B,B8) -> 0 | D8: =SUMIFS(Data!$E:$E,Data!$C:$C,A8,Data!$B:$B,B8) -> 0 | G8: =IF(SUMIFS(Data!$J:$J,Data!$C:$C,A8,Data!$B:$B,B8)>H8,SUMIFS(Data!$J:$J,Data!$C:$C,A8,Data!$B:$B,B8)-H8,"") -> 0 | H8: 180 | I8: =SUMPRODUCT((Data!$C:$C=A8)*(Data!$B:$B=B8),(Data!$I:$I)) -> 0 | J8: =IF(SUMIFS(Data!$J:$J,Data!$C:$C,A8,Data!$B:$B,B8)<H8,H8-SUMIFS(Data!$J:$J,Data!$C:$C,A8,Data!$B:$B,B8),"") -> 0 | K8: =SUM(H5:H7) -> 0
A9: 2018-08-02 | B9: =IFERROR(INDEX(INDIRECT("Data!B"&MATCH(A9,Data!$C$2:$C$100000,0)+1&":B100000"),SMALL(IF((A9=INDIRECT("Data!C"&MATCH(A9,Data!$C$2:$C$100000,0)+1&":C100000"))*(MATCH(INDIRECT("Data!B"&MATCH(A9,Data!$C$2:$C$100000,0)+1&":B100000")&"",INDIRECT("Data!B"&MATCH(A9,Data!$C$2:$C$100000,0)+1&":B100000")&"",0)=(ROW(INDIRECT("Data!B"&MATCH(A9,Data!$C$2:$C$100000,0)+1&":B100000"))-MATCH(A9,Data!$C$2:$C$100000,0))),ROW(INDIRECT("Data!B"&MATCH(A9,Data!$C$2:$C$100000,0)+1&":B100000"))-MATCH(A9,Data!$C$2:$C$100000,0),""),COUNTIF($A$5:A9,A9))),"") -> Rusalka (Mermaid) | C9: =SUMIFS(Data!$D:$D,Data!$C:$C,A9,Data!$B:$B,B9) -> 1 | D9: =SUMIFS(Data!$E:$E,Data!$C:$C,A9,Data!$B:$B,B9) -> 0 | E9: =IF(AND(B9="Grand Aquarium",WEEKDAY(A9)=3),40,IF(AND(B9="Grand Aquarium",WEEKDAY(A9)=7),40,VLOOKUP(B9,Price!$A$6:$C$216,2,0))) -> 40 | F9: =IF(AND(B9="Grand Aquarium",WEEKDAY(A9)=3),20,IF(AND(B9="Grand Aquarium",WEEKDAY(A9)=7),20,VLOOKUP(B9,Price!$A$6:$C$216,3,0))) -> 20 | G9: =IF(SUMIFS(Data!$J:$J,Data!$C:$C,A9,Data!$B:$B,B9)>H9,SUMIFS(Data!$J:$J,Data!$C:$C,A9,Data!$B:$B,B9)-H9,"") -> 0 | H9: 180 | I9: =SUMPRODUCT((Data!$C:$C=A9)*(Data!$B:$B=B9),(Data!$I:$I)) -> 0 | J9: =IF(SUMIFS(Data!$J:$J,Data!$C:$C,A9,Data!$B:$B,B9)<H9,H9-SUMIFS(Data!$J:$J,Data!$C:$C,A9,Data!$B:$B,B9),"") -> 0
A10: 2018-08-02 | B10: =IFERROR(INDEX(INDIRECT("Data!B"&MATCH(A10,Data!$C$2:$C$100000,0)+1&":B100000"),SMALL(IF((A10=INDIRECT("Data!C"&MATCH(A10,Data!$C$2:$C$100000,0)+1&":C100000"))*(MATCH(INDIRECT("Data!B"&MATCH(A10,Data!$C$2:$C$100000,0)+1&":B100000")&"",INDIRECT("Data!B"&MATCH(A10,Data!$C$2:$C$100000,0)+1&":B100000")&"",0)=(ROW(INDIRECT("Data!B"&MATCH(A10,Data!$C$2:$C$100000,0)+1&":B100000"))-MATCH(A10,Data!$C$2:$C$100000,0))),ROW(INDIRECT("Data!B"&MATCH(A10,Data!$C$2:$C$100000,0)+1&":B100000"))-MATCH(A10,Data!$C$2:$C$100000,0),""),COUNTIF($A$5:A10,A10))),"") -> Utopia | C10: =SUMIFS(Data!$D:$D,Data!$C:$C,A10,Data!$B:$B,B10) -> 38 | D10: =SUMIFS(Data!$E:$E,Data!$C:$C,A10,Data!$B:$B,B10) -> 9 | E10: =IF(AND(B10="Grand Aquarium",WEEKDAY(A10)=3),40,IF(AND(B10="Grand Aquarium",WEEKDAY(A10)=7),40,VLOOKUP(B10,Price!$A$6:$C$216,2,0))) -> 55 | F10: =IF(AND(B10="Grand Aquarium",WEEKDAY(A10)=3),20,IF(AND(B10="Grand Aquarium",WEEKDAY(A10)=7),20,VLOOKUP(B10,Price!$A$6:$C$216,3,0))) -> 28 | G10: =IF(SUMIFS(Data!$J:$J,Data!$C:$C,A10,Data!$B:$B,B10)>H10,SUMIFS(Data!$J:$J,Data!$C:$C,A10,Data!$B:$B,B10)-H10,"") -> 0 | H10: 180 | I10: =SUMPRODUCT((Data!$C:$C=A10)*(Data!$B:$B=B10),(Data!$I:$I)) -> 0 | J10: =IF(SUMIFS(Data!$J:$J,Data!$C:$C,A10,Data!$B:$B,B10)<H10,H10-SUMIFS(Data!$J:$J,Data!$C:$C,A10,Data!$B:$B,B10),"") -> 0
A11: 2018-08-02 | B11: =IFERROR(INDEX(INDIRECT("Data!B"&MATCH(A11,Data!$C$2:$C$100000,0)+1&":B100000"),SMALL(IF((A11=INDIRECT("Data!C"&MATCH(A11,Data!$C$2:$C$100000,0)+1&":C100000"))*(MATCH(INDIRECT("Data!B"&MATCH(A11,Data!$C$2:$C$100000,0)+1&":B100000")&"",INDIRECT("Data!B"&MATCH(A11,Data!$C$2:$C$100000,0)+1&":B100000")&"",0)=(ROW(INDIRECT("Data!B"&MATCH(A11,Data!$C$2:$C$100000,0)+1&":B100000"))-MATCH(A11,Data!$C$2:$C$100000,0))),ROW(INDIRECT("Data!B"&MATCH(A11,Data!$C$2:$C$100000,0)+1&":B100000"))-MATCH(A11,Data!$C$2:$C$100000,0),""),COUNTIF($A$5:A11,A11))),"") -> Sea Trip | C11: =SUMIFS(Data!$D:$D,Data!$C:$C,A11,Data!$B:$B,B11) -> 2 | D11: =SUMIFS(Data!$E:$E,Data!$C:$C,A11,Data!$B:$B,B11) -> 0 | E11: =IF(AND(B11="Grand Aquarium",WEEKDAY(A11)=3),40,IF(AND(B11="Grand Aquarium",WEEKDAY(A11)=7),40,VLOOKUP(B11,Price!$A$6:$C$216,2,0))) -> 40 | F11: =IF(AND(B11="Grand Aquarium",WEEKDAY(A11)=3),20,IF(AND(B11="Grand Aquarium",WEEKDAY(A11)=7),20,VLOOKUP(B11,Price!$A$6:$C$216,3,0))) -> 20 | G11: =IF(SUMIFS(Data!$J:$J,Data!$C:$C,A11,Data!$B:$B,B11)>H11,SUMIFS(Data!$J:$J,Data!$C:$C,A11,Data!$B:$B,B11)-H11,"") -> 0 | H11: 180 | I11: =SUMPRODUCT((Data!$C:$C=A11)*(Data!$B:$B=B11),(Data!$I:$I)) -> 0 | J11: =IF(SUMIFS(Data!$J:$J,Data!$C:$C,A11,Data!$B:$B,B11)<H11,H11-SUMIFS(Data!$J:$J,Data!$C:$C,A11,Data!$B:$B,B11),"") -> 0
B12: =IFERROR(INDEX(INDIRECT("Data!B"&MATCH(A12,Data!$C$2:$C$100000,0)+1&":B100000"),SMALL(IF((A12=INDIRECT("Data!C"&MATCH(A12,Data!$C$2:$C$100000,0)+1&":C100000"))*(MATCH(INDIRECT("Data!B"&MATCH(A12,Data!$C$2:$C$100000,0)+1&":B100000")&"",INDIRECT("Data!B"&MATCH(A12,Data!$C$2:$C$100000,0)+1&":B100000")&"",0)=(ROW(INDIRECT("Data!B"&MATCH(A12,Data!$C$2:$C$100000,0)+1&":B100000"))-MATCH(A12,Data!$C$2:$C$100000,0))),ROW(INDIRECT("Data!B"&MATCH(A12,Data!$C$2:$C$100000,0)+1&":B100000"))-MATCH(A12,Data!$C$2:$C$100000,0),""),COUNTIF($A$5:A12,A12))),"") ->  | C12: =SUMIFS(Data!$D:$D,Data!$C:$C,A12,Data!$B:$B,B12) -> 0 | D12: =SUMIFS(Data!$E:$E,Data!$C:$C,A12,Data!$B:$B,B12) -> 0 | G12: =IF(SUMIFS(Data!$J:$J,Data!$C:$C,A12,Data!$B:$B,B12)>H12,SUMIFS(Data!$J:$J,Data!$C:$C,A12,Data!$B:$B,B12)-H12,"") -> 0 | H12: 180 | I12: =SUMPRODUCT((Data!$C:$C=A12)*(Data!$B:$B=B12),(Data!$I:$I)) -> 0 | J12: =IF(SUMIFS(Data!$J:$J,Data!$C:$C,A12,Data!$B:$B,B12)<H12,H12-SUMIFS(Data!$J:$J,Data!$C:$C,A12,Data!$B:$B,B12),"") -> 0 | K12: =SUM(H9:H11) -> 2462
A13: 2018-08-03 | B13: =IFERROR(INDEX(INDIRECT("Data!B"&MATCH(A13,Data!$C$2:$C$100000,0)+1&":B100000"),SMALL(IF((A13=INDIRECT("Data!C"&MATCH(A13,Data!$C$2:$C$100000,0)+1&":C100000"))*(MATCH(INDIRECT("Data!B"&MATCH(A13,Data!$C$2:$C$100000,0)+1&":B100000")&"",INDIRECT("Data!B"&MATCH(A13,Data!$C$2:$C$100000,0)+1&":B100000")&"",0)=(ROW(INDIRECT("Data!B"&MATCH(A13,Data!$C$2:$C$100000,0)+1&":B100000"))-MATCH(A13,Data!$C$2:$C$100000,0))),ROW(INDIRECT("Data!B"&MATCH(A13,Data!$C$2:$C$100000,0)+1&":B100000"))-MATCH(A13,Data!$C$2:$C$100000,0),""),COUNTIF($A$5:A13,A13))),"") -> Moto 2 | C13: =SUMIFS(Data!$D:$D,Data!$C:$C,A13,Data!$B:$B,B13) -> 6 | D13: =SUMIFS(Data!$E:$E,Data!$C:$C,A13,Data!$B:$B,B13) -> 3 | E13: =IF(AND(B13="Grand Aquarium",WEEKDAY(A13)=3),40,IF(AND(B13="Grand Aquarium",WEEKDAY(A13)=7),40,VLOOKUP(B13,Price!$A$6:$C$216,2,0))) -> 45 | F13: =IF(AND(B13="Grand Aquarium",WEEKDAY(A13)=3),20,IF(AND(B13="Grand Aquarium",WEEKDAY(A13)=7),20,VLOOKUP(B13,Price!$A$6:$C$216,3,0))) -> 23 | G13: =IF(SUMIFS(Data!$J:$J,Data!$C:$C,A13,Data!$B:$B,B13)>H13,SUMIFS(Data!$J:$J,Data!$C:$C,A13,Data!$B:$B,B13)-H13,"") -> 0 | H13: 180 | I13: =SUMPRODUCT((Data!$C:$C=A13)*(Data!$B:$B=B13),(Data!$I:$I)) -> 0 | J13: =IF(SUMIFS(Data!$J:$J,Data!$C:$C,A13,Data!$B:$B,B13)<H13,H13-SUMIFS(Data!$J:$J,Data!$C:$C,A13,Data!$B:$B,B13),"") -> 0
B14: =IFERROR(INDEX(INDIRECT("Data!B"&MATCH(A14,Data!$C$2:$C$100000,0)+1&":B100000"),SMALL(IF((A14=INDIRECT("Data!C"&MATCH(A14,Data!$C$2:$C$100000,0)+1&":C100000"))*(MATCH(INDIRECT("Data!B"&MATCH(A14,Data!$C$2:$C$100000,0)+1&":B100000")&"",INDIRECT("Data!B"&MATCH(A14,Data!$C$2:$C$100000,0)+1&":B100000")&"",0)=(ROW(INDIRECT("Data!B"&MATCH(A14,Data!$C$2:$C$100000,0)+1&":B100000"))-MATCH(A14,Data!$C$2:$C$100000,0))),ROW(INDIRECT("Data!B"&MATCH(A14,Data!$C$2:$C$100000,0)+1&":B100000"))-MATCH(A14,Data!$C$2:$C$100000,0),""),COUNTIF($A$5:A14,A14))),"") ->  | C14: =SUMIFS(Data!$D:$D,Data!$C:$C,A14,Data!$B:$B,B14) -> 0 | D14: =SUMIFS(Data!$E:$E,Data!$C:$C,A14,Data!$B:$B,B14) -> 0 | G14: =IF(SUMIFS(Data!$J:$J,Data!$C:$C,A14,Data!$B:$B,B14)>H14,SUMIFS(Data!$J:$J,Data!$C:$C,A14,Data!$B:$B,B14)-H14,"") -> 0 | H14: 180 | I14: =SUMPRODUCT((Data!$C:$C=A14)*(Data!$B:$B=B14),(Data!$I:$I)) -> 0 | J14: =IF(SUMIFS(Data!$J:$J,Data!$C:$C,A14,Data!$B:$B,B14)<H14,H14-SUMIFS(Data!$J:$J,Data!$C:$C,A14,Data!$B:$B,B14),"") -> 0 | K14: =SUM(H13:H13) -> 339
A15: 2018-08-04 | B15: =IFERROR(INDEX(INDIRECT("Data!B"&MATCH(A15,Data!$C$2:$C$100000,0)+1&":B100000"),SMALL(IF((A15=INDIRECT("Data!C"&MATCH(A15,Data!$C$2:$C$100000,0)+1&":C100000"))*(MATCH(INDIRECT("Data!B"&MATCH(A15,Data!$C$2:$C$100000,0)+1&":B100000")&"",INDIRECT("Data!B"&MATCH(A15,Data!$C$2:$C$100000,0)+1&":B100000")&"",0)=(ROW(INDIRECT("Data!B"&MATCH(A15,Data!$C$2:$C$100000,0)+1&":B100000"))-MATCH(A15,Data!$C$2:$C$100000,0))),ROW(INDIRECT("Data!B"&MATCH(A15,Data!$C$2:$C$100000,0)+1&":B100000"))-MATCH(A15,Data!$C$2:$C$100000,0),""),COUNTIF($A$5:A15,A15))),"") -> Moto 2 | C15: =SUMIFS(Data!$D:$D,Data!$C:$C,A15,Data!$B:$B,B15) -> 13 | D15: =SUMIFS(Data!$E:$E,Data!$C:$C,A15,Data!$B:$B,B15) -> 0 | E15: =IF(AND(B15="Grand Aquarium",WEEKDAY(A15)=3),40,IF(AND(B15="Grand Aquarium",WEEKDAY(A15)=7),40,VLOOKUP(B15,Price!$A$6:$C$216,2,0))) -> 45 | F15: =IF(AND(B15="Grand Aquarium",WEEKDAY(A15)=3),20,IF(AND(B15="Grand Aquarium",WEEKDAY(A15)=7),20,VLOOKUP(B15,Price!$A$6:$C$216,3,0))) -> 23 | G15: =IF(SUMIFS(Data!$J:$J,Data!$C:$C,A15,Data!$B:$B,B15)>H15,SUMIFS(Data!$J:$J,Data!$C:$C,A15,Data!$B:$B,B15)-H15,"") -> 0 | H15: 180 | I15: =SUMPRODUCT((Data!$C:$C=A15)*(Data!$B:$B=B15),(Data!$I:$I)) -> 25 | J15: =IF(SUMIFS(Data!$J:$J,Data!$C:$C,A15,Data!$B:$B,B15)<H15,H15-SUMIFS(Data!$J:$J,Data!$C:$C,A15,Data!$B:$B,B15),"") -> 0
A16: 2018-08-04 | B16: =IFERROR(INDEX(INDIRECT("Data!B"&MATCH(A16,Data!$C$2:$C$100000,0)+1&":B100000"),SMALL(IF((A16=INDIRECT("Data!C"&MATCH(A16,Data!$C$2:$C$100000,0)+1&":C100000"))*(MATCH(INDIRECT("Data!B"&MATCH(A16,Data!$C$2:$C$100000,0)+1&":B100000")&"",INDIRECT("Data!B"&MATCH(A16,Data!$C$2:$C$100000,0)+1&":B100000")&"",0)=(ROW(INDIRECT("Data!B"&MATCH(A16,Data!$C$2:$C$100000,0)+1&":B100000"))-MATCH(A16,Data!$C$2:$C$100000,0))),ROW(INDIRECT("Data!B"&MATCH(A16,Data!$C$2:$C$100000,0)+1&":B100000"))-MATCH(A16,Data!$C$2:$C$100000,0),""),COUNTIF($A$5:A16,A16))),"") -> Grand Aquarium | C16: =SUMIFS(Data!$D:$D,Data!$C:$C,A16,Data!$B:$B,B16) -> 16 | D16: =SUMIFS(Data!$E:$E,Data!$C:$C,A16,Data!$B:$B,B16) -> 5 | E16: =IF(AND(B16="Grand Aquarium",WEEKDAY(A16)=3),40,IF(AND(B16="Grand Aquarium",WEEKDAY(A16)=7),40,VLOOKUP(B16,Price!$A$6:$C$216,2,0))) -> 40 | F16: =IF(AND(B16="Grand Aquarium",WEEKDAY(A16)=3),20,IF(AND(B16="Grand Aquarium",WEEKDAY(A16)=7),20,VLOOKUP(B16,Price!$A$6:$C$216,3,0))) -> 20 | G16: =IF(SUMIFS(Data!$J:$J,Data!$C:$C,A16,Data!$B:$B,B16)>H16,SUMIFS(Data!$J:$J,Data!$C:$C,A16,Data!$B:$B,B16)-H16,"") -> 0 | H16: 180 | I16: =SUMPRODUCT((Data!$C:$C=A16)*(Data!$B:$B=B16),(Data!$I:$I)) -> 13 | J16: =IF(SUMIFS(Data!$J:$J,Data!$C:$C,A16,Data!$B:$B,B16)<H16,H16-SUMIFS(Data!$J:$J,Data!$C:$C,A16,Data!$B:$B,B16),"") -> 0
A17: 2018-08-04 | B17: =IFERROR(INDEX(INDIRECT("Data!B"&MATCH(A17,Data!$C$2:$C$100000,0)+1&":B100000"),SMALL(IF((A17=INDIRECT("Data!C"&MATCH(A17,Data!$C$2:$C$100000,0)+1&":C100000"))*(MATCH(INDIRECT("Data!B"&MATCH(A17,Data!$C$2:$C$100000,0)+1&":B100000")&"",INDIRECT("Data!B"&MATCH(A17,Data!$C$2:$C$100000,0)+1&":B100000")&"",0)=(ROW(INDIRECT("Data!B"&MATCH(A17,Data!$C$2:$C$100000,0)+1&":B100000"))-MATCH(A17,Data!$C$2:$C$100000,0))),ROW(INDIRECT("Data!B"&MATCH(A17,Data!$C$2:$C$100000,0)+1&":B100000"))-MATCH(A17,Data!$C$2:$C$100000,0),""),COUNTIF($A$5:A17,A17))),"") -> Moto 1 Hour | C17: =SUMIFS(Data!$D:$D,Data!$C:$C,A17,Data!$B:$B,B17) -> 1 | D17: =SUMIFS(Data!$E:$E,Data!$C:$C,A17,Data!$B:$B,B17) -> 0 | E17: =IF(AND(B17="Grand Aquarium",WEEKDAY(A17)=3),40,IF(AND(B17="Grand Aquarium",WEEKDAY(A17)=7),40,VLOOKUP(B17,Price!$A$6:$C$216,2,0))) -> 40 | F17: =IF(AND(B17="Grand Aquarium",WEEKDAY(A17)=3),20,IF(AND(B17="Grand Aquarium",WEEKDAY(A17)=7),20,VLOOKUP(B17,Price!$A$6:$C$216,3,0))) -> 20 | G17: =IF(SUMIFS(Data!$J:$J,Data!$C:$C,A17,Data!$B:$B,B17)>H17,SUMIFS(Data!$J:$J,Data!$C:$C,A17,Data!$B:$B,B17)-H17,"") -> 0 | H17: 180 | I17: =SUMPRODUCT((Data!$C:$C=A17)*(Data!$B:$B=B17),(Data!$I:$I)) -> 0 | J17: =IF(SUMIFS(Data!$J:$J,Data!$C:$C,A17,Data!$B:$B,B17)<H17,H17-SUMIFS(Data!$J:$J,Data!$C:$C,A17,Data!$B:$B,B17),"") -> 0
B18: =IFERROR(INDEX(INDIRECT("Data!B"&MATCH(A18,Data!$C$2:$C$100000,0)+1&":B100000"),SMALL(IF((A18=INDIRECT("Data!C"&MATCH(A18,Data!$C$2:$C$100000,0)+1&":C100000"))*(MATCH(INDIRECT("Data!B"&MATCH(A18,Data!$C$2:$C$100000,0)+1&":B100000")&"",INDIRECT("Data!B"&MATCH(A18,Data!$C$2:$C$100000,0)+1&":B100000")&"",0)=(ROW(INDIRECT("Data!B"&MATCH(A18,Data!$C$2:$C$100000,0)+1&":B100000"))-MATCH(A18,Data!$C$2:$C$100000,0))),ROW(INDIRECT("Data!B"&MATCH(A18,Data!$C$2:$C$100000,0)+1&":B100000"))-MATCH(A18,Data!$C$2:$C$100000,0),""),COUNTIF($A$5:A18,A18))),"") ->  | C18: =SUMIFS(Data!$D:$D,Data!$C:$C,A18,Data!$B:$B,B18) -> 0 | D18: =SUMIFS(Data!$E:$E,Data!$C:$C,A18,Data!$B:$B,B18) -> 0 | G18: =IF(SUMIFS(Data!$J:$J,Data!$C:$C,A18,Data!$B:$B,B18)>H18,SUMIFS(Data!$J:$J,Data!$C:$C,A18,Data!$B:$B,B18)-H18,"") -> 0 | H18: 180 | I18: =SUMPRODUCT((Data!$C:$C=A18)*(Data!$B:$B=B18),(Data!$I:$I)) -> 0 | J18: =IF(SUMIFS(Data!$J:$J,Data!$C:$C,A18,Data!$B:$B,B18)<H18,H18-SUMIFS(Data!$J:$J,Data!$C:$C,A18,Data!$B:$B,B18),"") -> 0 | K18: =SUM(H15:H17) -> 1365
A19: 2018-08-05 | B19: =IFERROR(INDEX(INDIRECT("Data!B"&MATCH(A19,Data!$C$2:$C$100000,0)+1&":B100000"),SMALL(IF((A19=INDIRECT("Data!C"&MATCH(A19,Data!$C$2:$C$100000,0)+1&":C100000"))*(MATCH(INDIRECT("Data!B"&MATCH(A19,Data!$C$2:$C$100000,0)+1&":B100000")&"",INDIRECT("Data!B"&MATCH(A19,Data!$C$2:$C$100000,0)+1&":B100000")&"",0)=(ROW(INDIRECT("Data!B"&MATCH(A19,Data!$C$2:$C$100000,0)+1&":B100000"))-MATCH(A19,Data!$C$2:$C$100000,0))),ROW(INDIRECT("Data!B"&MATCH(A19,Data!$C$2:$C$100000,0)+1&":B100000"))-MATCH(A19,Data!$C$2:$C$100000,0),""),COUNTIF($A$5:A19,A19))),"") -> Utopia | C19: =SUMIFS(Data!$D:$D,Data!$C:$C,A19,Data!$B:$B,B19) -> 47 | D19: =SUMIFS(Data!$E:$E,Data!$C:$C,A19,Data!$B:$B,B19) -> 12 | E19: =IF(AND(B19="Grand Aquarium",WEEKDAY(A19)=3),40,IF(AND(B19="Grand Aquarium",WEEKDAY(A19)=7),40,VLOOKUP(B19,Price!$A$6:$C$216,2,0))) -> 55 | F19: =IF(AND(B19="Grand Aquarium",WEEKDAY(A19)=3),20,IF(AND(B19="Grand Aquarium",WEEKDAY(A19)=7),20,VLOOKUP(B19,Price!$A$6:$C$216,3,0))) -> 28 | G19: =IF(SUMIFS(Data!$J:$J,Data!$C:$C,A19,Data!$B:$B,B19)>H19,SUMIFS(Data!$J:$J,Data!$C:$C,A19,Data!$B:$B,B19)-H19,"") -> 0 | H19: 180 | I19: =SUMPRODUCT((Data!$C:$C=A19)*(Data!$B:$B=B19),(Data!$I:$I)) -> 0 | J19: =IF(SUMIFS(Data!$J:$J,Data!$C:$C,A19,Data!$B:$B,B19)<H19,H19-SUMIFS(Data!$J:$J,Data!$C:$C,A19,Data!$B:$B,B19),"") -> 0
A20: 2018-08-05 | B20: =IFERROR(INDEX(INDIRECT("Data!B"&MATCH(A20,Data!$C$2:$C$100000,0)+1&":B100000"),SMALL(IF((A20=INDIRECT("Data!C"&MATCH(A20,Data!$C$2:$C$100000,0)+1&":C100000"))*(MATCH(INDIRECT("Data!B"&MATCH(A20,Data!$C$2:$C$100000,0)+1&":B100000")&"",INDIRECT("Data!B"&MATCH(A20,Data!$C$2:$C$100000,0)+1&":B100000")&"",0)=(ROW(INDIRECT("Data!B"&MATCH(A20,Data!$C$2:$C$100000,0)+1&":B100000"))-MATCH(A20,Data!$C$2:$C$100000,0))),ROW(INDIRECT("Data!B"&MATCH(A20,Data!$C$2:$C$100000,0)+1&":B100000"))-MATCH(A20,Data!$C$2:$C$100000,0),""),COUNTIF($A$5:A20,A20))),"") -> Dolphin world show | C20: =SUMIFS(Data!$D:$D,Data!$C:$C,A20,Data!$B:$B,B20) -> 2 | D20: =SUMIFS(Data!$E:$E,Data!$C:$C,A20,Data!$B:$B,B20) -> 0 | E20: =IF(AND(B20="Grand Aquarium",WEEKDAY(A20)=3),40,IF(AND(B20="Grand Aquarium",WEEKDAY(A20)=7),40,VLOOKUP(B20,Price!$A$6:$C$216,2,0))) -> 40 | F20: =IF(AND(B20="Grand Aquarium",WEEKDAY(A20)=3),20,IF(AND(B20="Grand Aquarium",WEEKDAY(A20)=7),20,VLOOKUP(B20,Price!$A$6:$C$216,3,0))) -> 20 | G20: =IF(SUMIFS(Data!$J:$J,Data!$C:$C,A20,Data!$B:$B,B20)>H20,SUMIFS(Data!$J:$J,Data!$C:$C,A20,Data!$B:$B,B20)-H20,"") -> 0 | H20: 180 | I20: =SUMPRODUCT((Data!$C:$C=A20)*(Data!$B:$B=B20),(Data!$I:$I)) -> 0 | J20: =IF(SUMIFS(Data!$J:$J,Data!$C:$C,A20,Data!$B:$B,B20)<H20,H20-SUMIFS(Data!$J:$J,Data!$C:$C,A20,Data!$B:$B,B20),"") -> 0
B21: =IFERROR(INDEX(INDIRECT("Data!B"&MATCH(A21,Data!$C$2:$C$100000,0)+1&":B100000"),SMALL(IF((A21=INDIRECT("Data!C"&MATCH(A21,Data!$C$2:$C$100000,0)+1&":C100000"))*(MATCH(INDIRECT("Data!B"&MATCH(A21,Data!$C$2:$C$100000,0)+1&":B100000")&"",INDIRECT("Data!B"&MATCH(A21,Data!$C$2:$C$100000,0)+1&":B100000")&"",0)=(ROW(INDIRECT("Data!B"&MATCH(A21,Data!$C$2:$C$100000,0)+1&":B100000"))-MATCH(A21,Data!$C$2:$C$100000,0))),ROW(INDIRECT("Data!B"&MATCH(A21,Data!$C$2:$C$100000,0)+1&":B100000"))-MATCH(A21,Data!$C$2:$C$100000,0),""),COUNTIF($A$5:A21,A21))),"") ->  | C21: =SUMIFS(Data!$D:$D,Data!$C:$C,A21,Data!$B:$B,B21) -> 0 | D21: =SUMIFS(Data!$E:$E,Data!$C:$C,A21,Data!$B:$B,B21) -> 0 | G21: =IF(SUMIFS(Data!$J:$J,Data!$C:$C,A21,Data!$B:$B,B21)>H21,SUMIFS(Data!$J:$J,Data!$C:$C,A21,Data!$B:$B,B21)-H21,"") -> 0 | H21: 180 | I21: =SUMPRODUCT((Data!$C:$C=A21)*(Data!$B:$B=B21),(Data!$I:$I)) -> 0 | J21: =IF(SUMIFS(Data!$J:$J,Data!$C:$C,A21,Data!$B:$B,B21)<H21,H21-SUMIFS(Data!$J:$J,Data!$C:$C,A21,Data!$B:$B,B21),"") -> 0 | K21: =SUM(H19:H20) -> 3001
A22: 2018-08-06 | B22: =IFERROR(INDEX(INDIRECT("Data!B"&MATCH(A22,Data!$C$2:$C$100000,0)+1&":B100000"),SMALL(IF((A22=INDIRECT("Data!C"&MATCH(A22,Data!$C$2:$C$100000,0)+1&":C100000"))*(MATCH(INDIRECT("Data!B"&MATCH(A22,Data!$C$2:$C$100000,0)+1&":B100000")&"",INDIRECT("Data!B"&MATCH(A22,Data!$C$2:$C$100000,0)+1&":B100000")&"",0)=(ROW(INDIRECT("Data!B"&MATCH(A22,Data!$C$2:$C$100000,0)+1&":B100000"))-MATCH(A22,Data!$C$2:$C$100000,0))),ROW(INDIRECT("Data!B"&MATCH(A22,Data!$C$2:$C$100000,0)+1&":B100000"))-MATCH(A22,Data!$C$2:$C$100000,0),""),COUNTIF($A$5:A22,A22))),"") -> Rusalka (Mermaid) | C22: =SUMIFS(Data!$D:$D,Data!$C:$C,A22,Data!$B:$B,B22) -> 4 | D22: =SUMIFS(Data!$E:$E,Data!$C:$C,A22,Data!$B:$B,B22) -> 0 | E22: =IF(AND(B22="Grand Aquarium",WEEKDAY(A22)=3),40,IF(AND(B22="Grand Aquarium",WEEKDAY(A22)=7),40,VLOOKUP(B22,Price!$A$6:$C$216,2,0))) -> 40 | F22: =IF(AND(B22="Grand Aquarium",WEEKDAY(A22)=3),20,IF(AND(B22="Grand Aquarium",WEEKDAY(A22)=7),20,VLOOKUP(B22,Price!$A$6:$C$216,3,0))) -> 20 | G22: =IF(SUMIFS(Data!$J:$J,Data!$C:$C,A22,Data!$B:$B,B22)>H22,SUMIFS(Data!$J:$J,Data!$C:$C,A22,Data!$B:$B,B22)-H22,"") -> 0 | H22: 180 | I22: =SUMPRODUCT((Data!$C:$C=A22)*(Data!$B:$B=B22),(Data!$I:$I)) -> 0 | J22: =IF(SUMIFS(Data!$J:$J,Data!$C:$C,A22,Data!$B:$B,B22)<H22,H22-SUMIFS(Data!$J:$J,Data!$C:$C,A22,Data!$B:$B,B22),"") -> 0
A23: 2018-08-06 | B23: =IFERROR(INDEX(INDIRECT("Data!B"&MATCH(A23,Data!$C$2:$C$100000,0)+1&":B100000"),SMALL(IF((A23=INDIRECT("Data!C"&MATCH(A23,Data!$C$2:$C$100000,0)+1&":C100000"))*(MATCH(INDIRECT("Data!B"&MATCH(A23,Data!$C$2:$C$100000,0)+1&":B100000")&"",INDIRECT("Data!B"&MATCH(A23,Data!$C$2:$C$100000,0)+1&":B100000")&"",0)=(ROW(INDIRECT("Data!B"&MATCH(A23,Data!$C$2:$C$100000,0)+1&":B100000"))-MATCH(A23,Data!$C$2:$C$100000,0))),ROW(INDIRECT("Data!B"&MATCH(A23,Data!$C$2:$C$100000,0)+1&":B100000"))-MATCH(A23,Data!$C$2:$C$100000,0),""),COUNTIF($A$5:A23,A23))),"") -> Moto 2 | C23: =SUMIFS(Data!$D:$D,Data!$C:$C,A23,Data!$B:$B,B23) -> 2 | D23: =SUMIFS(Data!$E:$E,Data!$C:$C,A23,Data!$B:$B,B23) -> 0 | E23: =IF(AND(B23="Grand Aquarium",WEEKDAY(A23)=3),40,IF(AND(B23="Grand Aquarium",WEEKDAY(A23)=7),40,VLOOKUP(B23,Price!$A$6:$C$216,2,0))) -> 45 | F23: =IF(AND(B23="Grand Aquarium",WEEKDAY(A23)=3),20,IF(AND(B23="Grand Aquarium",WEEKDAY(A23)=7),20,VLOOKUP(B23,Price!$A$6:$C$216,3,0))) -> 23 | G23: =IF(SUMIFS(Data!$J:$J,Data!$C:$C,A23,Data!$B:$B,B23)>H23,SUMIFS(Data!$J:$J,Data!$C:$C,A23,Data!$B:$B,B23)-H23,"") -> 0 | H23: 180 | I23: =SUMPRODUCT((Data!$C:$C=A23)*(Data!$B:$B=B23),(Data!$I:$I)) -> 0 | J23: =IF(SUMIFS(Data!$J:$J,Data!$C:$C,A23,Data!$B:$B,B23)<H23,H23-SUMIFS(Data!$J:$J,Data!$C:$C,A23,Data!$B:$B,B23),"") -> 0
B24: =IFERROR(INDEX(INDIRECT("Data!B"&MATCH(A24,Data!$C$2:$C$100000,0)+1&":B100000"),SMALL(IF((A24=INDIRECT("Data!C"&MATCH(A24,Data!$C$2:$C$100000,0)+1&":C100000"))*(MATCH(INDIRECT("Data!B"&MATCH(A24,Data!$C$2:$C$100000,0)+1&":B100000")&"",INDIRECT("Data!B"&MATCH(A24,Data!$C$2:$C$100000,0)+1&":B100000")&"",0)=(ROW(INDIRECT("Data!B"&MATCH(A24,Data!$C$2:$C$100000,0)+1&":B100000"))-MATCH(A24,Data!$C$2:$C$100000,0))),ROW(INDIRECT("Data!B"&MATCH(A24,Data!$C$2:$C$100000,0)+1&":B100000"))-MATCH(A24,Data!$C$2:$C$100000,0),""),COUNTIF($A$5:A24,A24))),"") ->  | C24: =SUMIFS(Data!$D:$D,Data!$C:$C,A24,Data!$B:$B,B24) -> 0 | D24: =SUMIFS(Data!$E:$E,Data!$C:$C,A24,Data!$B:$B,B24) -> 0 | G24: =IF(SUMIFS(Data!$J:$J,Data!$C:$C,A24,Data!$B:$B,B24)>H24,SUMIFS(Data!$J:$J,Data!$C:$C,A24,Data!$B:$B,B24)-H24,"") -> 0 | H24: 180 | I24: =SUMPRODUCT((Data!$C:$C=A24)*(Data!$B:$B=B24),(Data!$I:$I)) -> 0 | J24: =IF(SUMIFS(Data!$J:$J,Data!$C:$C,A24,Data!$B:$B,B24)<H24,H24-SUMIFS(Data!$J:$J,Data!$C:$C,A24,Data!$B:$B,B24),"") -> 0 | K24: =SUM(H22:H23) -> 250
A25: 2018-08-07 | B25: =IFERROR(INDEX(INDIRECT("Data!B"&MATCH(A25,Data!$C$2:$C$100000,0)+1&":B100000"),SMALL(IF((A25=INDIRECT("Data!C"&MATCH(A25,Data!$C$2:$C$100000,0)+1&":C100000"))*(MATCH(INDIRECT("Data!B"&MATCH(A25,Data!$C$2:$C$100000,0)+1&":B100000")&"",INDIRECT("Data!B"&MATCH(A25,Data!$C$2:$C$100000,0)+1&":B100000")&"",0)=(ROW(INDIRECT("Data!B"&MATCH(A25,Data!$C$2:$C$100000,0)+1&":B100000"))-MATCH(A25,Data!$C$2:$C$100000,0))),ROW(INDIRECT("Data!B"&MATCH(A25,Data!$C$2:$C$100000,0)+1&":B100000"))-MATCH(A25,Data!$C$2:$C$100000,0),""),COUNTIF($A$5:A25,A25))),"") -> Utopia | C25: =SUMIFS(Data!$D:$D,Data!$C:$C,A25,Data!$B:$B,B25) -> 26 | D25: =SUMIFS(Data!$E:$E,Data!$C:$C,A25,Data!$B:$B,B25) -> 4 | E25: =IF(AND(B25="Grand Aquarium",WEEKDAY(A25)=3),40,IF(AND(B25="Grand Aquarium",WEEKDAY(A25)=7),40,VLOOKUP(B25,Price!$A$6:$C$216,2,0))) -> 55 | F25: =IF(AND(B25="Grand Aquarium",WEEKDAY(A25)=3),20,IF(AND(B25="Grand Aquarium",WEEKDAY(A25)=7),20,VLOOKUP(B25,Price!$A$6:$C$216,3,0))) -> 28 | G25: =IF(SUMIFS(Data!$J:$J,Data!$C:$C,A25,Data!$B:$B,B25)>H25,SUMIFS(Data!$J:$J,Data!$C:$C,A25,Data!$B:$B,B25)-H25,"") -> 0 | H25: 180 | I25: =SUMPRODUCT((Data!$C:$C=A25)*(Data!$B:$B=B25),(Data!$I:$I)) -> 0 | J25: =IF(SUMIFS(Data!$J:$J,Data!$C:$C,A25,Data!$B:$B,B25)<H25,H25-SUMIFS(Data!$J:$J,Data!$C:$C,A25,Data!$B:$B,B25),"") -> 0
A26: 2018-08-07 | B26: =IFERROR(INDEX(INDIRECT("Data!B"&MATCH(A26,Data!$C$2:$C$100000,0)+1&":B100000"),SMALL(IF((A26=INDIRECT("Data!C"&MATCH(A26,Data!$C$2:$C$100000,0)+1&":C100000"))*(MATCH(INDIRECT("Data!B"&MATCH(A26,Data!$C$2:$C$100000,0)+1&":B100000")&"",INDIRECT("Data!B"&MATCH(A26,Data!$C$2:$C$100000,0)+1&":B100000")&"",0)=(ROW(INDIRECT("Data!B"&MATCH(A26,Data!$C$2:$C$100000,0)+1&":B100000"))-MATCH(A26,Data!$C$2:$C$100000,0))),ROW(INDIRECT("Data!B"&MATCH(A26,Data!$C$2:$C$100000,0)+1&":B100000"))-MATCH(A26,Data!$C$2:$C$100000,0),""),COUNTIF($A$5:A26,A26))),"") -> LUXOR 2 | C26: =SUMIFS(Data!$D:$D,Data!$C:$C,A26,Data!$B:$B,B26) -> 11 | D26: =SUMIFS(Data!$E:$E,Data!$C:$C,A26,Data!$B:$B,B26) -> 0 | E26: =IF(AND(B26="Grand Aquarium",WEEKDAY(A26)=3),40,IF(AND(B26="Grand Aquarium",WEEKDAY(A26)=7),40,VLOOKUP(B26,Price!$A$6:$C$216,2,0))) -> 90 | F26: =IF(AND(B26="Grand Aquarium",WEEKDAY(A26)=3),20,IF(AND(B26="Grand Aquarium",WEEKDAY(A26)=7),20,VLOOKUP(B26,Price!$A$6:$C$216,3,0))) -> 45 | G26: =IF(SUMIFS(Data!$J:$J,Data!$C:$C,A26,Data!$B:$B,B26)>H26,SUMIFS(Data!$J:$J,Data!$C:$C,A26,Data!$B:$B,B26)-H26,"") -> 0 | H26: 180 | I26: =SUMPRODUCT((Data!$C:$C=A26)*(Data!$B:$B=B26),(Data!$I:$I)) -> 0 | J26: =IF(SUMIFS(Data!$J:$J,Data!$C:$C,A26,Data!$B:$B,B26)<H26,H26-SUMIFS(Data!$J:$J,Data!$C:$C,A26,Data!$B:$B,B26),"") -> 0
A27: 2018-08-07 | B27: =IFERROR(INDEX(INDIRECT("Data!B"&MATCH(A27,Data!$C$2:$C$100000,0)+1&":B100000"),SMALL(IF((A27=INDIRECT("Data!C"&MATCH(A27,Data!$C$2:$C$100000,0)+1&":C100000"))*(MATCH(INDIRECT("Data!B"&MATCH(A27,Data!$C$2:$C$100000,0)+1&":B100000")&"",INDIRECT("Data!B"&MATCH(A27,Data!$C$2:$C$100000,0)+1&":B100000")&"",0)=(ROW(INDIRECT("Data!B"&MATCH(A27,Data!$C$2:$C$100000,0)+1&":B100000"))-MATCH(A27,Data!$C$2:$C$100000,0))),ROW(INDIRECT("Data!B"&MATCH(A27,Data!$C$2:$C$100000,0)+1&":B100000"))-MATCH(A27,Data!$C$2:$C$100000,0),""),COUNTIF($A$5:A27,A27))),"") -> Dolphin world show | C27: =SUMIFS(Data!$D:$D,Data!$C:$C,A27,Data!$B:$B,B27) -> 2 | D27: =SUMIFS(Data!$E:$E,Data!$C:$C,A27,Data!$B:$B,B27) -> 1 | E27: =IF(AND(B27="Grand Aquarium",WEEKDAY(A27)=3),40,IF(AND(B27="Grand Aquarium",WEEKDAY(A27)=7),40,VLOOKUP(B27,Price!$A$6:$C$216,2,0))) -> 40 | F27: =IF(AND(B27="Grand Aquarium",WEEKDAY(A27)=3),20,IF(AND(B27="Grand Aquarium",WEEKDAY(A27)=7),20,VLOOKUP(B27,Price!$A$6:$C$216,3,0))) -> 20 | G27: =IF(SUMIFS(Data!$J:$J,Data!$C:$C,A27,Data!$B:$B,B27)>H27,SUMIFS(Data!$J:$J,Data!$C:$C,A27,Data!$B:$B,B27)-H27,"") -> 0 | H27: 180 | I27: =SUMPRODUCT((Data!$C:$C=A27)*(Data!$B:$B=B27),(Data!$I:$I)) -> 0 | J27: =IF(SUMIFS(Data!$J:$J,Data!$C:$C,A27,Data!$B:$B,B27)<H27,H27-SUMIFS(Data!$J:$J,Data!$C:$C,A27,Data!$B:$B,B27),"") -> 0
A28: 2018-08-07 | B28: =IFERROR(INDEX(INDIRECT("Data!B"&MATCH(A28,Data!$C$2:$C$100000,0)+1&":B100000"),SMALL(IF((A28=INDIRECT("Data!C"&MATCH(A28,Data!$C$2:$C$100000,0)+1&":C100000"))*(MATCH(INDIRECT("Data!B"&MATCH(A28,Data!$C$2:$C$100000,0)+1&":B100000")&"",INDIRECT("Data!B"&MATCH(A28,Data!$C$2:$C$100000,0)+1&":B100000")&"",0)=(ROW(INDIRECT("Data!B"&MATCH(A28,Data!$C$2:$C$100000,0)+1&":B100000"))-MATCH(A28,Data!$C$2:$C$100000,0))),ROW(INDIRECT("Data!B"&MATCH(A28,Data!$C$2:$C$100000,0)+1&":B100000"))-MATCH(A28,Data!$C$2:$C$100000,0),""),COUNTIF($A$5:A28,A28))),"") -> Cairo | C28: =SUMIFS(Data!$D:$D,Data!$C:$C,A28,Data!$B:$B,B28) -> 7 | D28: =SUMIFS(Data!$E:$E,Data!$C:$C,A28,Data!$B:$B,B28) -> 2 | E28: =IF(AND(B28="Grand Aquarium",WEEKDAY(A28)=3),40,IF(AND(B28="Grand Aquarium",WEEKDAY(A28)=7),40,VLOOKUP(B28,Price!$A$6:$C$216,2,0))) -> 110 | F28: =IF(AND(B28="Grand Aquarium",WEEKDAY(A28)=3),20,IF(AND(B28="Grand Aquarium",WEEKDAY(A28)=7),20,VLOOKUP(B28,Price!$A$6:$C$216,3,0))) -> 55 | G28: =IF(SUMIFS(Data!$J:$J,Data!$C:$C,A28,Data!$B:$B,B28)>H28,SUMIFS(Data!$J:$J,Data!$C:$C,A28,Data!$B:$B,B28)-H28,"") -> 0 | H28: 180 | I28: =SUMPRODUCT((Data!$C:$C=A28)*(Data!$B:$B=B28),(Data!$I:$I)) -> 31 | J28: =IF(SUMIFS(Data!$J:$J,Data!$C:$C,A28,Data!$B:$B,B28)<H28,H28-SUMIFS(Data!$J:$J,Data!$C:$C,A28,Data!$B:$B,B28),"") -> 0
A29: 2018-08-07 | B29: =IFERROR(INDEX(INDIRECT("Data!B"&MATCH(A29,Data!$C$2:$C$100000,0)+1&":B100000"),SMALL(IF((A29=INDIRECT("Data!C"&MATCH(A29,Data!$C$2:$C$100000,0)+1&":C100000"))*(MATCH(INDIRECT("Data!B"&MATCH(A29,Data!$C$2:$C$100000,0)+1&":B100000")&"",INDIRECT("Data!B"&MATCH(A29,Data!$C$2:$C$100000,0)+1&":B100000")&"",0)=(ROW(INDIRECT("Data!B"&MATCH(A29,Data!$C$2:$C$100000,0)+1&":B100000"))-MATCH(A29,Data!$C$2:$C$100000,0))),ROW(INDIRECT("Data!B"&MATCH(A29,Data!$C$2:$C$100000,0)+1&":B100000"))-MATCH(A29,Data!$C$2:$C$100000,0),""),COUNTIF($A$5:A29,A29))),"") -> Rusalka (Mermaid) | C29: =SUMIFS(Data!$D:$D,Data!$C:$C,A29,Data!$B:$B,B29) -> 4 | D29: =SUMIFS(Data!$E:$E,Data!$C:$C,A29,Data!$B:$B,B29) -> 0 | E29: =IF(AND(B29="Grand Aquarium",WEEKDAY(A29)=3),40,IF(AND(B29="Grand Aquarium",WEEKDAY(A29)=7),40,VLOOKUP(B29,Price!$A$6:$C$216,2,0))) -> 40 | F29: =IF(AND(B29="Grand Aquarium",WEEKDAY(A29)=3),20,IF(AND(B29="Grand Aquarium",WEEKDAY(A29)=7),20,VLOOKUP(B29,Price!$A$6:$C$216,3,0))) -> 20 | G29: =IF(SUMIFS(Data!$J:$J,Data!$C:$C,A29,Data!$B:$B,B29)>H29,SUMIFS(Data!$J:$J,Data!$C:$C,A29,Data!$B:$B,B29)-H29,"") -> 0 | H29: 180 | I29: =SUMPRODUCT((Data!$C:$C=A29)*(Data!$B:$B=B29),(Data!$I:$I)) -> 0 | J29: =IF(SUMIFS(Data!$J:$J,Data!$C:$C,A29,Data!$B:$B,B29)<H29,H29-SUMIFS(Data!$J:$J,Data!$C:$C,A29,Data!$B:$B,B29),"") -> 0
A30: 2018-08-07 | B30: =IFERROR(INDEX(INDIRECT("Data!B"&MATCH(A30,Data!$C$2:$C$100000,0)+1&":B100000"),SMALL(IF((A30=INDIRECT("Data!C"&MATCH(A30,Data!$C$2:$C$100000,0)+1&":C100000"))*(MATCH(INDIRECT("Data!B"&MATCH(A30,Data!$C$2:$C$100000,0)+1&":B100000")&"",INDIRECT("Data!B"&MATCH(A30,Data!$C$2:$C$100000,0)+1&":B100000")&"",0)=(ROW(INDIRECT("Data!B"&MATCH(A30,Data!$C$2:$C$100000,0)+1&":B100000"))-MATCH(A30,Data!$C$2:$C$100000,0))),ROW(INDIRECT("Data!B"&MATCH(A30,Data!$C$2:$C$100000,0)+1&":B100000"))-MATCH(A30,Data!$C$2:$C$100000,0),""),COUNTIF($A$5:A30,A30))),"") -> Grand Aquarium | C30: =SUMIFS(Data!$D:$D,Data!$C:$C,A30,Data!$B:$B,B30) -> 8 | D30: =SUMIFS(Data!$E:$E,Data!$C:$C,A30,Data!$B:$B,B30) -> 1 | E30: =IF(AND(B30="Grand Aquarium",WEEKDAY(A30)=3),40,IF(AND(B30="Grand Aquarium",WEEKDAY(A30)=7),40,VLOOKUP(B30,Price!$A$6:$C$216,2,0))) -> 40 | F30: =IF(AND(B30="Grand Aquarium",WEEKDAY(A30)=3),20,IF(AND(B30="Grand Aquarium",WEEKDAY(A30)=7),20,VLOOKUP(B30,Price!$A$6:$C$216,3,0))) -> 20 | G30: =IF(SUMIFS(Data!$J:$J,Data!$C:$C,A30,Data!$B:$B,B30)>H30,SUMIFS(Data!$J:$J,Data!$C:$C,A30,Data!$B:$B,B30)-H30,"") -> 0 | H30: 180 | I30: =SUMPRODUCT((Data!$C:$C=A30)*(Data!$B:$B=B30),(Data!$I:$I)) -> 10 | J30: =IF(SUMIFS(Data!$J:$J,Data!$C:$C,A30,Data!$B:$B,B30)<H30,H30-SUMIFS(Data!$J:$J,Data!$C:$C,A30,Data!$B:$B,B30),"") -> 0
B31: =IFERROR(INDEX(INDIRECT("Data!B"&MATCH(A31,Data!$C$2:$C$100000,0)+1&":B100000"),SMALL(IF((A31=INDIRECT("Data!C"&MATCH(A31,Data!$C$2:$C$100000,0)+1&":C100000"))*(MATCH(INDIRECT("Data!B"&MATCH(A31,Data!$C$2:$C$100000,0)+1&":B100000")&"",INDIRECT("Data!B"&MATCH(A31,Data!$C$2:$C$100000,0)+1&":B100000")&"",0)=(ROW(INDIRECT("Data!B"&MATCH(A31,Data!$C$2:$C$100000,0)+1&":B100000"))-MATCH(A31,Data!$C$2:$C$100000,0))),ROW(INDIRECT("Data!B"&MATCH(A31,Data!$C$2:$C$100000,0)+1&":B100000"))-MATCH(A31,Data!$C$2:$C$100000,0),""),COUNTIF($A$5:A31,A31))),"") ->  | C31: =SUMIFS(Data!$D:$D,Data!$C:$C,A31,Data!$B:$B,B31) -> 0 | D31: =SUMIFS(Data!$E:$E,Data!$C:$C,A31,Data!$B:$B,B31) -> 0 | G31: =IF(SUMIFS(Data!$J:$J,Data!$C:$C,A31,Data!$B:$B,B31)>H31,SUMIFS(Data!$J:$J,Data!$C:$C,A31,Data!$B:$B,B31)-H31,"") -> 0 | H31: 180 | I31: =SUMPRODUCT((Data!$C:$C=A31)*(Data!$B:$B=B31),(Data!$I:$I)) -> 0 | J31: =IF(SUMIFS(Data!$J:$J,Data!$C:$C,A31,Data!$B:$B,B31)<H31,H31-SUMIFS(Data!$J:$J,Data!$C:$C,A31,Data!$B:$B,B31),"") -> 0 | K31: =SUM(H25:H30) -> 4014
A32: 2018-08-08 | B32: =IFERROR(INDEX(INDIRECT("Data!B"&MATCH(A32,Data!$C$2:$C$100000,0)+1&":B100000"),SMALL(IF((A32=INDIRECT("Data!C"&MATCH(A32,Data!$C$2:$C$100000,0)+1&":C100000"))*(MATCH(INDIRECT("Data!B"&MATCH(A32,Data!$C$2:$C$100000,0)+1&":B100000")&"",INDIRECT("Data!B"&MATCH(A32,Data!$C$2:$C$100000,0)+1&":B100000")&"",0)=(ROW(INDIRECT("Data!B"&MATCH(A32,Data!$C$2:$C$100000,0)+1&":B100000"))-MATCH(A32,Data!$C$2:$C$100000,0))),ROW(INDIRECT("Data!B"&MATCH(A32,Data!$C$2:$C$100000,0)+1&":B100000"))-MATCH(A32,Data!$C$2:$C$100000,0),""),COUNTIF($A$5:A32,A32))),"") -> Moto 2 | C32: =SUMIFS(Data!$D:$D,Data!$C:$C,A32,Data!$B:$B,B32) -> 13 | D32: =SUMIFS(Data!$E:$E,Data!$C:$C,A32,Data!$B:$B,B32) -> 0 | E32: =IF(AND(B32="Grand Aquarium",WEEKDAY(A32)=3),40,IF(AND(B32="Grand Aquarium",WEEKDAY(A32)=7),40,VLOOKUP(B32,Price!$A$6:$C$216,2,0))) -> 45 | F32: =IF(AND(B32="Grand Aquarium",WEEKDAY(A32)=3),20,IF(AND(B32="Grand Aquarium",WEEKDAY(A32)=7),20,VLOOKUP(B32,Price!$A$6:$C$216,3,0))) -> 23 | G32: =IF(SUMIFS(Data!$J:$J,Data!$C:$C,A32,Data!$B:$B,B32)>H32,SUMIFS(Data!$J:$J,Data!$C:$C,A32,Data!$B:$B,B32)-H32,"") -> 0 | H32: 180 | I32: =SUMPRODUCT((Data!$C:$C=A32)*(Data!$B:$B=B32),(Data!$I:$I)) -> 40 | J32: =IF(SUMIFS(Data!$J:$J,Data!$C:$C,A32,Data!$B:$B,B32)<H32,H32-SUMIFS(Data!$J:$J,Data!$C:$C,A32,Data!$B:$B,B32),"") -> 0
A33: 2018-08-08 | B33: =IFERROR(INDEX(INDIRECT("Data!B"&MATCH(A33,Data!$C$2:$C$100000,0)+1&":B100000"),SMALL(IF((A33=INDIRECT("Data!C"&MATCH(A33,Data!$C$2:$C$100000,0)+1&":C100000"))*(MATCH(INDIRECT("Data!B"&MATCH(A33,Data!$C$2:$C$100000,0)+1&":B100000")&"",INDIRECT("Data!B"&MATCH(A33,Data!$C$2:$C$100000,0)+1&":B100000")&"",0)=(ROW(INDIRECT("Data!B"&MATCH(A33,Data!$C$2:$C$100000,0)+1&":B100000"))-MATCH(A33,Data!$C$2:$C$100000,0))),ROW(INDIRECT("Data!B"&MATCH(A33,Data!$C$2:$C$100000,0)+1&":B100000"))-MATCH(A33,Data!$C$2:$C$100000,0),""),COUNTIF($A$5:A33,A33))),"") -> Diving | C33: =SUMIFS(Data!$D:$D,Data!$C:$C,A33,Data!$B:$B,B33) -> 4 | D33: =SUMIFS(Data!$E:$E,Data!$C:$C,A33,Data!$B:$B,B33) -> 0 | E33: =IF(AND(B33="Grand Aquarium",WEEKDAY(A33)=3),40,IF(AND(B33="Grand Aquarium",WEEKDAY(A33)=7),40,VLOOKUP(B33,Price!$A$6:$C$216,2,0))) -> 65 | F33: =IF(AND(B33="Grand Aquarium",WEEKDAY(A33)=3),20,IF(AND(B33="Grand Aquarium",WEEKDAY(A33)=7),20,VLOOKUP(B33,Price!$A$6:$C$216,3,0))) -> 65 | G33: =IF(SUMIFS(Data!$J:$J,Data!$C:$C,A33,Data!$B:$B,B33)>H33,SUMIFS(Data!$J:$J,Data!$C:$C,A33,Data!$B:$B,B33)-H33,"") -> 0 | H33: 180 | I33: =SUMPRODUCT((Data!$C:$C=A33)*(Data!$B:$B=B33),(Data!$I:$I)) -> 10 | J33: =IF(SUMIFS(Data!$J:$J,Data!$C:$C,A33,Data!$B:$B,B33)<H33,H33-SUMIFS(Data!$J:$J,Data!$C:$C,A33,Data!$B:$B,B33),"") -> 0
A34: 2018-08-08 | B34: =IFERROR(INDEX(INDIRECT("Data!B"&MATCH(A34,Data!$C$2:$C$100000,0)+1&":B100000"),SMALL(IF((A34=INDIRECT("Data!C"&MATCH(A34,Data!$C$2:$C$100000,0)+1&":C100000"))*(MATCH(INDIRECT("Data!B"&MATCH(A34,Data!$C$2:$C$100000,0)+1&":B100000")&"",INDIRECT("Data!B"&MATCH(A34,Data!$C$2:$C$100000,0)+1&":B100000")&"",0)=(ROW(INDIRECT("Data!B"&MATCH(A34,Data!$C$2:$C$100000,0)+1&":B100000"))-MATCH(A34,Data!$C$2:$C$100000,0))),ROW(INDIRECT("Data!B"&MATCH(A34,Data!$C$2:$C$100000,0)+1&":B100000"))-MATCH(A34,Data!$C$2:$C$100000,0),""),COUNTIF($A$5:A34,A34))),"") -> Aspendos Turkish Bath | C34: =SUMIFS(Data!$D:$D,Data!$C:$C,A34,Data!$B:$B,B34) -> 1 | D34: =SUMIFS(Data!$E:$E,Data!$C:$C,A34,Data!$B:$B,B34) -> 0 | E34: =IF(AND(B34="Grand Aquarium",WEEKDAY(A34)=3),40,IF(AND(B34="Grand Aquarium",WEEKDAY(A34)=7),40,VLOOKUP(B34,Price!$A$6:$C$216,2,0))) -> 35 | F34: =IF(AND(B34="Grand Aquarium",WEEKDAY(A34)=3),20,IF(AND(B34="Grand Aquarium",WEEKDAY(A34)=7),20,VLOOKUP(B34,Price!$A$6:$C$216,3,0))) -> 35 | G34: =IF(SUMIFS(Data!$J:$J,Data!$C:$C,A34,Data!$B:$B,B34)>H34,SUMIFS(Data!$J:$J,Data!$C:$C,A34,Data!$B:$B,B34)-H34,"") -> 0 | H34: 180 | I34: =SUMPRODUCT((Data!$C:$C=A34)*(Data!$B:$B=B34),(Data!$I:$I)) -> 5 | J34: =IF(SUMIFS(Data!$J:$J,Data!$C:$C,A34,Data!$B:$B,B34)<H34,H34-SUMIFS(Data!$J:$J,Data!$C:$C,A34,Data!$B:$B,B34),"") -> 0
B35: =IFERROR(INDEX(INDIRECT("Data!B"&MATCH(A35,Data!$C$2:$C$100000,0)+1&":B100000"),SMALL(IF((A35=INDIRECT("Data!C"&MATCH(A35,Data!$C$2:$C$100000,0)+1&":C100000"))*(MATCH(INDIRECT("Data!B"&MATCH(A35,Data!$C$2:$C$100000,0)+1&":B100000")&"",INDIRECT("Data!B"&MATCH(A35,Data!$C$2:$C$100000,0)+1&":B100000")&"",0)=(ROW(INDIRECT("Data!B"&MATCH(A35,Data!$C$2:$C$100000,0)+1&":B100000"))-MATCH(A35,Data!$C$2:$C$100000,0))),ROW(INDIRECT("Data!B"&MATCH(A35,Data!$C$2:$C$100000,0)+1&":B100000"))-MATCH(A35,Data!$C$2:$C$100000,0),""),COUNTIF($A$5:A35,A35))),"") ->  | C35: =SUMIFS(Data!$D:$D,Data!$C:$C,A35,Data!$B:$B,B35) -> 0 | D35: =SUMIFS(Data!$E:$E,Data!$C:$C,A35,Data!$B:$B,B35) -> 0 | G35: =IF(SUMIFS(Data!$J:$J,Data!$C:$C,A35,Data!$B:$B,B35)>H35,SUMIFS(Data!$J:$J,Data!$C:$C,A35,Data!$B:$B,B35)-H35,"") -> 0 | H35: 180 | I35: =SUMPRODUCT((Data!$C:$C=A35)*(Data!$B:$B=B35),(Data!$I:$I)) -> 0 | J35: =IF(SUMIFS(Data!$J:$J,Data!$C:$C,A35,Data!$B:$B,B35)<H35,H35-SUMIFS(Data!$J:$J,Data!$C:$C,A35,Data!$B:$B,B35),"") -> 0 | K35: =SUM(H32:H34) -> 880
A36: 2018-08-09 | B36: =IFERROR(INDEX(INDIRECT("Data!B"&MATCH(A36,Data!$C$2:$C$100000,0)+1&":B100000"),SMALL(IF((A36=INDIRECT("Data!C"&MATCH(A36,Data!$C$2:$C$100000,0)+1&":C100000"))*(MATCH(INDIRECT("Data!B"&MATCH(A36,Data!$C$2:$C$100000,0)+1&":B100000")&"",INDIRECT("Data!B"&MATCH(A36,Data!$C$2:$C$100000,0)+1&":B100000")&"",0)=(ROW(INDIRECT("Data!B"&MATCH(A36,Data!$C$2:$C$100000,0)+1&":B100000"))-MATCH(A36,Data!$C$2:$C$100000,0))),ROW(INDIRECT("Data!B"&MATCH(A36,Data!$C$2:$C$100000,0)+1&":B100000"))-MATCH(A36,Data!$C$2:$C$100000,0),""),COUNTIF($A$5:A36,A36))),"") -> Utopia | C36: =SUMIFS(Data!$D:$D,Data!$C:$C,A36,Data!$B:$B,B36) -> 45 | D36: =SUMIFS(Data!$E:$E,Data!$C:$C,A36,Data!$B:$B,B36) -> 2 | E36: =IF(AND(B36="Grand Aquarium",WEEKDAY(A36)=3),40,IF(AND(B36="Grand Aquarium",WEEKDAY(A36)=7),40,VLOOKUP(B36,Price!$A$6:$C$216,2,0))) -> 55 | F36: =IF(AND(B36="Grand Aquarium",WEEKDAY(A36)=3),20,IF(AND(B36="Grand Aquarium",WEEKDAY(A36)=7),20,VLOOKUP(B36,Price!$A$6:$C$216,3,0))) -> 28 | G36: =IF(SUMIFS(Data!$J:$J,Data!$C:$C,A36,Data!$B:$B,B36)>H36,SUMIFS(Data!$J:$J,Data!$C:$C,A36,Data!$B:$B,B36)-H36,"") -> 0 | H36: 180 | I36: =SUMPRODUCT((Data!$C:$C=A36)*(Data!$B:$B=B36),(Data!$I:$I)) -> 0 | J36: =IF(SUMIFS(Data!$J:$J,Data!$C:$C,A36,Data!$B:$B,B36)<H36,H36-SUMIFS(Data!$J:$J,Data!$C:$C,A36,Data!$B:$B,B36),"") -> 0
B37: =IFERROR(INDEX(INDIRECT("Data!B"&MATCH(A37,Data!$C$2:$C$100000,0)+1&":B100000"),SMALL(IF((A37=INDIRECT("Data!C"&MATCH(A37,Data!$C$2:$C$100000,0)+1&":C100000"))*(MATCH(INDIRECT("Data!B"&MATCH(A37,Data!$C$2:$C$100000,0)+1&":B100000")&"",INDIRECT("Data!B"&MATCH(A37,Data!$C$2:$C$100000,0)+1&":B100000")&"",0)=(ROW(INDIRECT("Data!B"&MATCH(A37,Data!$C$2:$C$100000,0)+1&":B100000"))-MATCH(A37,Data!$C$2:$C$100000,0))),ROW(INDIRECT("Data!B"&MATCH(A37,Data!$C$2:$C$100000,0)+1&":B100000"))-MATCH(A37,Data!$C$2:$C$100000,0),""),COUNTIF($A$5:A37,A37))),"") ->  | C37: =SUMIFS(Data!$D:$D,Data!$C:$C,A37,Data!$B:$B,B37) -> 0 | D37: =SUMIFS(Data!$E:$E,Data!$C:$C,A37,Data!$B:$B,B37) -> 0 | G37: =IF(SUMIFS(Data!$J:$J,Data!$C:$C,A37,Data!$B:$B,B37)>H37,SUMIFS(Data!$J:$J,Data!$C:$C,A37,Data!$B:$B,B37)-H37,"") -> 0 | H37: 180 | I37: =SUMPRODUCT((Data!$C:$C=A37)*(Data!$B:$B=B37),(Data!$I:$I)) -> 0 | J37: =IF(SUMIFS(Data!$J:$J,Data!$C:$C,A37,Data!$B:$B,B37)<H37,H37-SUMIFS(Data!$J:$J,Data!$C:$C,A37,Data!$B:$B,B37),"") -> 0 | K37: =SUM(H36:H36) -> 2531
A38: 2018-08-10 | B38: =IFERROR(INDEX(INDIRECT("Data!B"&MATCH(A38,Data!$C$2:$C$100000,0)+1&":B100000"),SMALL(IF((A38=INDIRECT("Data!C"&MATCH(A38,Data!$C$2:$C$100000,0)+1&":C100000"))*(MATCH(INDIRECT("Data!B"&MATCH(A38,Data!$C$2:$C$100000,0)+1&":B100000")&"",INDIRECT("Data!B"&MATCH(A38,Data!$C$2:$C$100000,0)+1&":B100000")&"",0)=(ROW(INDIRECT("Data!B"&MATCH(A38,Data!$C$2:$C$100000,0)+1&":B100000"))-MATCH(A38,Data!$C$2:$C$100000,0))),ROW(INDIRECT("Data!B"&MATCH(A38,Data!$C$2:$C$100000,0)+1&":B100000"))-MATCH(A38,Data!$C$2:$C$100000,0),""),COUNTIF($A$5:A38,A38))),"") -> Moto 1 Hour | C38: =SUMIFS(Data!$D:$D,Data!$C:$C,A38,Data!$B:$B,B38) -> 2 | D38: =SUMIFS(Data!$E:$E,Data!$C:$C,A38,Data!$B:$B,B38) -> 0 | E38: =IF(AND(B38="Grand Aquarium",WEEKDAY(A38)=3),40,IF(AND(B38="Grand Aquarium",WEEKDAY(A38)=7),40,VLOOKUP(B38,Price!$A$6:$C$216,2,0))) -> 40 | F38: =IF(AND(B38="Grand Aquarium",WEEKDAY(A38)=3),20,IF(AND(B38="Grand Aquarium",WEEKDAY(A38)=7),20,VLOOKUP(B38,Price!$A$6:$C$216,3,0))) -> 20 | G38: =IF(SUMIFS(Data!$J:$J,Data!$C:$C,A38,Data!$B:$B,B38)>H38,SUMIFS(Data!$J:$J,Data!$C:$C,A38,Data!$B:$B,B38)-H38,"") -> 0 | H38: 180 | I38: =SUMPRODUCT((Data!$C:$C=A38)*(Data!$B:$B=B38),(Data!$I:$I)) -> 0 | J38: =IF(SUMIFS(Data!$J:$J,Data!$C:$C,A38,Data!$B:$B,B38)<H38,H38-SUMIFS(Data!$J:$J,Data!$C:$C,A38,Data!$B:$B,B38),"") -> 0
A39: 2018-08-10 | B39: =IFERROR(INDEX(INDIRECT("Data!B"&MATCH(A39,Data!$C$2:$C$100000,0)+1&":B100000"),SMALL(IF((A39=INDIRECT("Data!C"&MATCH(A39,Data!$C$2:$C$100000,0)+1&":C100000"))*(MATCH(INDIRECT("Data!B"&MATCH(A39,Data!$C$2:$C$100000,0)+1&":B100000")&"",INDIRECT("Data!B"&MATCH(A39,Data!$C$2:$C$100000,0)+1&":B100000")&"",0)=(ROW(INDIRECT("Data!B"&MATCH(A39,Data!$C$2:$C$100000,0)+1&":B100000"))-MATCH(A39,Data!$C$2:$C$100000,0))),ROW(INDIRECT("Data!B"&MATCH(A39,Data!$C$2:$C$100000,0)+1&":B100000"))-MATCH(A39,Data!$C$2:$C$100000,0),""),COUNTIF($A$5:A39,A39))),"") -> Moto 2 | C39: =SUMIFS(Data!$D:$D,Data!$C:$C,A39,Data!$B:$B,B39) -> 6 | D39: =SUMIFS(Data!$E:$E,Data!$C:$C,A39,Data!$B:$B,B39) -> 0 | E39: =IF(AND(B39="Grand Aquarium",WEEKDAY(A39)=3),40,IF(AND(B39="Grand Aquarium",WEEKDAY(A39)=7),40,VLOOKUP(B39,Price!$A$6:$C$216,2,0))) -> 45 | F39: =IF(AND(B39="Grand Aquarium",WEEKDAY(A39)=3),20,IF(AND(B39="Grand Aquarium",WEEKDAY(A39)=7),20,VLOOKUP(B39,Price!$A$6:$C$216,3,0))) -> 23 | G39: =IF(SUMIFS(Data!$J:$J,Data!$C:$C,A39,Data!$B:$B,B39)>H39,SUMIFS(Data!$J:$J,Data!$C:$C,A39,Data!$B:$B,B39)-H39,"") -> 0 | H39: 180 | I39: =SUMPRODUCT((Data!$C:$C=A39)*(Data!$B:$B=B39),(Data!$I:$I)) -> 15 | J39: =IF(SUMIFS(Data!$J:$J,Data!$C:$C,A39,Data!$B:$B,B39)<H39,H39-SUMIFS(Data!$J:$J,Data!$C:$C,A39,Data!$B:$B,B39),"") -> 0
B40: =IFERROR(INDEX(INDIRECT("Data!B"&MATCH(A40,Data!$C$2:$C$100000,0)+1&":B100000"),SMALL(IF((A40=INDIRECT("Data!C"&MATCH(A40,Data!$C$2:$C$100000,0)+1&":C100000"))*(MATCH(INDIRECT("Data!B"&MATCH(A40,Data!$C$2:$C$100000,0)+1&":B100000")&"",INDIRECT("Data!B"&MATCH(A40,Data!$C$2:$C$100000,0)+1&":B100000")&"",0)=(ROW(INDIRECT("Data!B"&MATCH(A40,Data!$C$2:$C$100000,0)+1&":B100000"))-MATCH(A40,Data!$C$2:$C$100000,0))),ROW(INDIRECT("Data!B"&MATCH(A40,Data!$C$2:$C$100000,0)+1&":B100000"))-MATCH(A40,Data!$C$2:$C$100000,0),""),COUNTIF($A$5:A40,A40))),"") ->  | C40: =SUMIFS(Data!$D:$D,Data!$C:$C,A40,Data!$B:$B,B40) -> 0 | D40: =SUMIFS(Data!$E:$E,Data!$C:$C,A40,Data!$B:$B,B40) -> 0 | G40: =IF(SUMIFS(Data!$J:$J,Data!$C:$C,A40,Data!$B:$B,B40)>H40,SUMIFS(Data!$J:$J,Data!$C:$C,A40,Data!$B:$B,B40)-H40,"") -> 0 | H40: 180 | I40: =SUMPRODUCT((Data!$C:$C=A40)*(Data!$B:$B=B40),(Data!$I:$I)) -> 0 | J40: =IF(SUMIFS(Data!$J:$J,Data!$C:$C,A40,Data!$B:$B,B40)<H40,H40-SUMIFS(Data!$J:$J,Data!$C:$C,A40,Data!$B:$B,B40),"") -> 0 | K40: =SUM(H38:H39) -> 360
A41: 2018-08-11 | B41: =IFERROR(INDEX(INDIRECT("Data!B"&MATCH(A41,Data!$C$2:$C$100000,0)+1&":B100000"),SMALL(IF((A41=INDIRECT("Data!C"&MATCH(A41,Data!$C$2:$C$100000,0)+1&":C100000"))*(MATCH(INDIRECT("Data!B"&MATCH(A41,Data!$C$2:$C$100000,0)+1&":B100000")&"",INDIRECT("Data!B"&MATCH(A41,Data!$C$2:$C$100000,0)+1&":B100000")&"",0)=(ROW(INDIRECT("Data!B"&MATCH(A41,Data!$C$2:$C$100000,0)+1&":B100000"))-MATCH(A41,Data!$C$2:$C$100000,0))),ROW(INDIRECT("Data!B"&MATCH(A41,Data!$C$2:$C$100000,0)+1&":B100000"))-MATCH(A41,Data!$C$2:$C$100000,0),""),COUNTIF($A$5:A41,A41))),"") -> Grand Aquarium | C41: =SUMIFS(Data!$D:$D,Data!$C:$C,A41,Data!$B:$B,B41) -> 4 | D41: =SUMIFS(Data!$E:$E,Data!$C:$C,A41,Data!$B:$B,B41) -> 0 | E41: =IF(AND(B41="Grand Aquarium",WEEKDAY(A41)=3),40,IF(AND(B41="Grand Aquarium",WEEKDAY(A41)=7),40,VLOOKUP(B41,Price!$A$6:$C$216,2,0))) -> 40 | F41: =IF(AND(B41="Grand Aquarium",WEEKDAY(A41)=3),20,IF(AND(B41="Grand Aquarium",WEEKDAY(A41)=7),20,VLOOKUP(B41,Price!$A$6:$C$216,3,0))) -> 20 | G41: =IF(SUMIFS(Data!$J:$J,Data!$C:$C,A41,Data!$B:$B,B41)>H41,SUMIFS(Data!$J:$J,Data!$C:$C,A41,Data!$B:$B,B41)-H41,"") -> 0 | H41: 180 | I41: =SUMPRODUCT((Data!$C:$C=A41)*(Data!$B:$B=B41),(Data!$I:$I)) -> 0 | J41: =IF(SUMIFS(Data!$J:$J,Data!$C:$C,A41,Data!$B:$B,B41)<H41,H41-SUMIFS(Data!$J:$J,Data!$C:$C,A41,Data!$B:$B,B41),"") -> 0
A42: 2018-08-11 | B42: =IFERROR(INDEX(INDIRECT("Data!B"&MATCH(A42,Data!$C$2:$C$100000,0)+1&":B100000"),SMALL(IF((A42=INDIRECT("Data!C"&MATCH(A42,Data!$C$2:$C$100000,0)+1&":C100000"))*(MATCH(INDIRECT("Data!B"&MATCH(A42,Data!$C$2:$C$100000,0)+1&":B100000")&"",INDIRECT("Data!B"&MATCH(A42,Data!$C$2:$C$100000,0)+1&":B100000")&"",0)=(ROW(INDIRECT("Data!B"&MATCH(A42,Data!$C$2:$C$100000,0)+1&":B100000"))-MATCH(A42,Data!$C$2:$C$100000,0))),ROW(INDIRECT("Data!B"&MATCH(A42,Data!$C$2:$C$100000,0)+1&":B100000"))-MATCH(A42,Data!$C$2:$C$100000,0),""),COUNTIF($A$5:A42,A42))),"") -> Diving | C42: =SUMIFS(Data!$D:$D,Data!$C:$C,A42,Data!$B:$B,B42) -> 2 | D42: =SUMIFS(Data!$E:$E,Data!$C:$C,A42,Data!$B:$B,B42) -> 0 | E42: =IF(AND(B42="Grand Aquarium",WEEKDAY(A42)=3),40,IF(AND(B42="Grand Aquarium",WEEKDAY(A42)=7),40,VLOOKUP(B42,Price!$A$6:$C$216,2,0))) -> 65 | F42: =IF(AND(B42="Grand Aquarium",WEEKDAY(A42)=3),20,IF(AND(B42="Grand Aquarium",WEEKDAY(A42)=7),20,VLOOKUP(B42,Price!$A$6:$C$216,3,0))) -> 65 | G42: =IF(SUMIFS(Data!$J:$J,Data!$C:$C,A42,Data!$B:$B,B42)>H42,SUMIFS(Data!$J:$J,Data!$C:$C,A42,Data!$B:$B,B42)-H42,"") -> 0 | H42: 180 | I42: =SUMPRODUCT((Data!$C:$C=A42)*(Data!$B:$B=B42),(Data!$I:$I)) -> 0 | J42: =IF(SUMIFS(Data!$J:$J,Data!$C:$C,A42,Data!$B:$B,B42)<H42,H42-SUMIFS(Data!$J:$J,Data!$C:$C,A42,Data!$B:$B,B42),"") -> 0
A43: 2018-08-11 | B43: =IFERROR(INDEX(INDIRECT("Data!B"&MATCH(A43,Data!$C$2:$C$100000,0)+1&":B100000"),SMALL(IF((A43=INDIRECT("Data!C"&MATCH(A43,Data!$C$2:$C$100000,0)+1&":C100000"))*(MATCH(INDIRECT("Data!B"&MATCH(A43,Data!$C$2:$C$100000,0)+1&":B100000")&"",INDIRECT("Data!B"&MATCH(A43,Data!$C$2:$C$100000,0)+1&":B100000")&"",0)=(ROW(INDIRECT("Data!B"&MATCH(A43,Data!$C$2:$C$100000,0)+1&":B100000"))-MATCH(A43,Data!$C$2:$C$100000,0))),ROW(INDIRECT("Data!B"&MATCH(A43,Data!$C$2:$C$100000,0)+1&":B100000"))-MATCH(A43,Data!$C$2:$C$100000,0),""),COUNTIF($A$5:A43,A43))),"") -> LUXOR 2 | C43: =SUMIFS(Data!$D:$D,Data!$C:$C,A43,Data!$B:$B,B43) -> 19 | D43: =SUMIFS(Data!$E:$E,Data!$C:$C,A43,Data!$B:$B,B43) -> 1 | E43: =IF(AND(B43="Grand Aquarium",WEEKDAY(A43)=3),40,IF(AND(B43="Grand Aquarium",WEEKDAY(A43)=7),40,VLOOKUP(B43,Price!$A$6:$C$216,2,0))) -> 90 | F43: =IF(AND(B43="Grand Aquarium",WEEKDAY(A43)=3),20,IF(AND(B43="Grand Aquarium",WEEKDAY(A43)=7),20,VLOOKUP(B43,Price!$A$6:$C$216,3,0))) -> 45 | G43: =IF(SUMIFS(Data!$J:$J,Data!$C:$C,A43,Data!$B:$B,B43)>H43,SUMIFS(Data!$J:$J,Data!$C:$C,A43,Data!$B:$B,B43)-H43,"") -> 0 | H43: 180 | I43: =SUMPRODUCT((Data!$C:$C=A43)*(Data!$B:$B=B43),(Data!$I:$I)) -> 0 | J43: =IF(SUMIFS(Data!$J:$J,Data!$C:$C,A43,Data!$B:$B,B43)<H43,H43-SUMIFS(Data!$J:$J,Data!$C:$C,A43,Data!$B:$B,B43),"") -> 0
A44: 2018-08-11 | B44: =IFERROR(INDEX(INDIRECT("Data!B"&MATCH(A44,Data!$C$2:$C$100000,0)+1&":B100000"),SMALL(IF((A44=INDIRECT("Data!C"&MATCH(A44,Data!$C$2:$C$100000,0)+1&":C100000"))*(MATCH(INDIRECT("Data!B"&MATCH(A44,Data!$C$2:$C$100000,0)+1&":B100000")&"",INDIRECT("Data!B"&MATCH(A44,Data!$C$2:$C$100000,0)+1&":B100000")&"",0)=(ROW(INDIRECT("Data!B"&MATCH(A44,Data!$C$2:$C$100000,0)+1&":B100000"))-MATCH(A44,Data!$C$2:$C$100000,0))),ROW(INDIRECT("Data!B"&MATCH(A44,Data!$C$2:$C$100000,0)+1&":B100000"))-MATCH(A44,Data!$C$2:$C$100000,0),""),COUNTIF($A$5:A44,A44))),"") -> Submarine | C44: =SUMIFS(Data!$D:$D,Data!$C:$C,A44,Data!$B:$B,B44) -> 2 | D44: =SUMIFS(Data!$E:$E,Data!$C:$C,A44,Data!$B:$B,B44) -> 0 | E44: =IF(AND(B44="Grand Aquarium",WEEKDAY(A44)=3),40,IF(AND(B44="Grand Aquarium",WEEKDAY(A44)=7),40,VLOOKUP(B44,Price!$A$6:$C$216,2,0))) -> 58 | F44: =IF(AND(B44="Grand Aquarium",WEEKDAY(A44)=3),20,IF(AND(B44="Grand Aquarium",WEEKDAY(A44)=7),20,VLOOKUP(B44,Price!$A$6:$C$216,3,0))) -> 29 | G44: =IF(SUMIFS(Data!$J:$J,Data!$C:$C,A44,Data!$B:$B,B44)>H44,SUMIFS(Data!$J:$J,Data!$C:$C,A44,Data!$B:$B,B44)-H44,"") -> 0 | H44: 180 | I44: =SUMPRODUCT((Data!$C:$C=A44)*(Data!$B:$B=B44),(Data!$I:$I)) -> 10 | J44: =IF(SUMIFS(Data!$J:$J,Data!$C:$C,A44,Data!$B:$B,B44)<H44,H44-SUMIFS(Data!$J:$J,Data!$C:$C,A44,Data!$B:$B,B44),"") -> 0
A45: 2018-08-11 | B45: =IFERROR(INDEX(INDIRECT("Data!B"&MATCH(A45,Data!$C$2:$C$100000,0)+1&":B100000"),SMALL(IF((A45=INDIRECT("Data!C"&MATCH(A45,Data!$C$2:$C$100000,0)+1&":C100000"))*(MATCH(INDIRECT("Data!B"&MATCH(A45,Data!$C$2:$C$100000,0)+1&":B100000")&"",INDIRECT("Data!B"&MATCH(A45,Data!$C$2:$C$100000,0)+1&":B100000")&"",0)=(ROW(INDIRECT("Data!B"&MATCH(A45,Data!$C$2:$C$100000,0)+1&":B100000"))-MATCH(A45,Data!$C$2:$C$100000,0))),ROW(INDIRECT("Data!B"&MATCH(A45,Data!$C$2:$C$100000,0)+1&":B100000"))-MATCH(A45,Data!$C$2:$C$100000,0),""),COUNTIF($A$5:A45,A45))),"") -> Dbl parasaling | C45: =SUMIFS(Data!$D:$D,Data!$C:$C,A45,Data!$B:$B,B45) -> 2 | D45: =SUMIFS(Data!$E:$E,Data!$C:$C,A45,Data!$B:$B,B45) -> 0 | E45: =IF(AND(B45="Grand Aquarium",WEEKDAY(A45)=3),40,IF(AND(B45="Grand Aquarium",WEEKDAY(A45)=7),40,VLOOKUP(B45,Price!$A$6:$C$216,2,0))) -> 75 | F45: =IF(AND(B45="Grand Aquarium",WEEKDAY(A45)=3),20,IF(AND(B45="Grand Aquarium",WEEKDAY(A45)=7),20,VLOOKUP(B45,Price!$A$6:$C$216,3,0))) -> 25 | G45: =IF(SUMIFS(Data!$J:$J,Data!$C:$C,A45,Data!$B:$B,B45)>H45,SUMIFS(Data!$J:$J,Data!$C:$C,A45,Data!$B:$B,B45)-H45,"") -> 0 | H45: 180 | I45: =SUMPRODUCT((Data!$C:$C=A45)*(Data!$B:$B=B45),(Data!$I:$I)) -> 0 | J45: =IF(SUMIFS(Data!$J:$J,Data!$C:$C,A45,Data!$B:$B,B45)<H45,H45-SUMIFS(Data!$J:$J,Data!$C:$C,A45,Data!$B:$B,B45),"") -> 0
B46: =IFERROR(INDEX(INDIRECT("Data!B"&MATCH(A46,Data!$C$2:$C$100000,0)+1&":B100000"),SMALL(IF((A46=INDIRECT("Data!C"&MATCH(A46,Data!$C$2:$C$100000,0)+1&":C100000"))*(MATCH(INDIRECT("Data!B"&MATCH(A46,Data!$C$2:$C$100000,0)+1&":B100000")&"",INDIRECT("Data!B"&MATCH(A46,Data!$C$2:$C$100000,0)+1&":B100000")&"",0)=(ROW(INDIRECT("Data!B"&MATCH(A46,Data!$C$2:$C$100000,0)+1&":B100000"))-MATCH(A46,Data!$C$2:$C$100000,0))),ROW(INDIRECT("Data!B"&MATCH(A46,Data!$C$2:$C$100000,0)+1&":B100000"))-MATCH(A46,Data!$C$2:$C$100000,0),""),COUNTIF($A$5:A46,A46))),"") ->  | C46: =SUMIFS(Data!$D:$D,Data!$C:$C,A46,Data!$B:$B,B46) -> 0 | D46: =SUMIFS(Data!$E:$E,Data!$C:$C,A46,Data!$B:$B,B46) -> 0 | G46: =IF(SUMIFS(Data!$J:$J,Data!$C:$C,A46,Data!$B:$B,B46)>H46,SUMIFS(Data!$J:$J,Data!$C:$C,A46,Data!$B:$B,B46)-H46,"") -> 0 | H46: 180 | I46: =SUMPRODUCT((Data!$C:$C=A46)*(Data!$B:$B=B46),(Data!$I:$I)) -> 0 | J46: =IF(SUMIFS(Data!$J:$J,Data!$C:$C,A46,Data!$B:$B,B46)<H46,H46-SUMIFS(Data!$J:$J,Data!$C:$C,A46,Data!$B:$B,B46),"") -> 0 | K46: =SUM(H41:H45) -> 2311
A47: 2018-08-12 | B47: =IFERROR(INDEX(INDIRECT("Data!B"&MATCH(A47,Data!$C$2:$C$100000,0)+1&":B100000"),SMALL(IF((A47=INDIRECT("Data!C"&MATCH(A47,Data!$C$2:$C$100000,0)+1&":C100000"))*(MATCH(INDIRECT("Data!B"&MATCH(A47,Data!$C$2:$C$100000,0)+1&":B100000")&"",INDIRECT("Data!B"&MATCH(A47,Data!$C$2:$C$100000,0)+1&":B100000")&"",0)=(ROW(INDIRECT("Data!B"&MATCH(A47,Data!$C$2:$C$100000,0)+1&":B100000"))-MATCH(A47,Data!$C$2:$C$100000,0))),ROW(INDIRECT("Data!B"&MATCH(A47,Data!$C$2:$C$100000,0)+1&":B100000"))-MATCH(A47,Data!$C$2:$C$100000,0),""),COUNTIF($A$5:A47,A47))),"") -> Utopia | C47: =SUMIFS(Data!$D:$D,Data!$C:$C,A47,Data!$B:$B,B47) -> 45 | D47: =SUMIFS(Data!$E:$E,Data!$C:$C,A47,Data!$B:$B,B47) -> 6 | E47: =IF(AND(B47="Grand Aquarium",WEEKDAY(A47)=3),40,IF(AND(B47="Grand Aquarium",WEEKDAY(A47)=7),40,VLOOKUP(B47,Price!$A$6:$C$216,2,0))) -> 55 | F47: =IF(AND(B47="Grand Aquarium",WEEKDAY(A47)=3),20,IF(AND(B47="Grand Aquarium",WEEKDAY(A47)=7),20,VLOOKUP(B47,Price!$A$6:$C$216,3,0))) -> 28 | G47: =IF(SUMIFS(Data!$J:$J,Data!$C:$C,A47,Data!$B:$B,B47)>H47,SUMIFS(Data!$J:$J,Data!$C:$C,A47,Data!$B:$B,B47)-H47,"") -> 0 | H47: 180 | I47: =SUMPRODUCT((Data!$C:$C=A47)*(Data!$B:$B=B47),(Data!$I:$I)) -> 0 | J47: =IF(SUMIFS(Data!$J:$J,Data!$C:$C,A47,Data!$B:$B,B47)<H47,H47-SUMIFS(Data!$J:$J,Data!$C:$C,A47,Data!$B:$B,B47),"") -> 0
B48: =IFERROR(INDEX(INDIRECT("Data!B"&MATCH(A48,Data!$C$2:$C$100000,0)+1&":B100000"),SMALL(IF((A48=INDIRECT("Data!C"&MATCH(A48,Data!$C$2:$C$100000,0)+1&":C100000"))*(MATCH(INDIRECT("Data!B"&MATCH(A48,Data!$C$2:$C$100000,0)+1&":B100000")&"",INDIRECT("Data!B"&MATCH(A48,Data!$C$2:$C$100000,0)+1&":B100000")&"",0)=(ROW(INDIRECT("Data!B"&MATCH(A48,Data!$C$2:$C$100000,0)+1&":B100000"))-MATCH(A48,Data!$C$2:$C$100000,0))),ROW(INDIRECT("Data!B"&MATCH(A48,Data!$C$2:$C$100000,0)+1&":B100000"))-MATCH(A48,Data!$C$2:$C$100000,0),""),COUNTIF($A$5:A48,A48))),"") ->  | C48: =SUMIFS(Data!$D:$D,Data!$C:$C,A48,Data!$B:$B,B48) -> 0 | D48: =SUMIFS(Data!$E:$E,Data!$C:$C,A48,Data!$B:$B,B48) -> 0 | G48: =IF(SUMIFS(Data!$J:$J,Data!$C:$C,A48,Data!$B:$B,B48)>H48,SUMIFS(Data!$J:$J,Data!$C:$C,A48,Data!$B:$B,B48)-H48,"") -> 0 | H48: 180 | I48: =SUMPRODUCT((Data!$C:$C=A48)*(Data!$B:$B=B48),(Data!$I:$I)) -> 0 | J48: =IF(SUMIFS(Data!$J:$J,Data!$C:$C,A48,Data!$B:$B,B48)<H48,H48-SUMIFS(Data!$J:$J,Data!$C:$C,A48,Data!$B:$B,B48),"") -> 0 | K48: =SUM(H47:H47) -> 2643
A49: 2018-08-13 | B49: =IFERROR(INDEX(INDIRECT("Data!B"&MATCH(A49,Data!$C$2:$C$100000,0)+1&":B100000"),SMALL(IF((A49=INDIRECT("Data!C"&MATCH(A49,Data!$C$2:$C$100000,0)+1&":C100000"))*(MATCH(INDIRECT("Data!B"&MATCH(A49,Data!$C$2:$C$100000,0)+1&":B100000")&"",INDIRECT("Data!B"&MATCH(A49,Data!$C$2:$C$100000,0)+1&":B100000")&"",0)=(ROW(INDIRECT("Data!B"&MATCH(A49,Data!$C$2:$C$100000,0)+1&":B100000"))-MATCH(A49,Data!$C$2:$C$100000,0))),ROW(INDIRECT("Data!B"&MATCH(A49,Data!$C$2:$C$100000,0)+1&":B100000"))-MATCH(A49,Data!$C$2:$C$100000,0),""),COUNTIF($A$5:A49,A49))),"") -> Sea Trip | C49: =SUMIFS(Data!$D:$D,Data!$C:$C,A49,Data!$B:$B,B49) -> 5 | D49: =SUMIFS(Data!$E:$E,Data!$C:$C,A49,Data!$B:$B,B49) -> 0 | E49: =IF(AND(B49="Grand Aquarium",WEEKDAY(A49)=3),40,IF(AND(B49="Grand Aquarium",WEEKDAY(A49)=7),40,VLOOKUP(B49,Price!$A$6:$C$216,2,0))) -> 40 | F49: =IF(AND(B49="Grand Aquarium",WEEKDAY(A49)=3),20,IF(AND(B49="Grand Aquarium",WEEKDAY(A49)=7),20,VLOOKUP(B49,Price!$A$6:$C$216,3,0))) -> 20 | G49: =IF(SUMIFS(Data!$J:$J,Data!$C:$C,A49,Data!$B:$B,B49)>H49,SUMIFS(Data!$J:$J,Data!$C:$C,A49,Data!$B:$B,B49)-H49,"") -> 0 | H49: 180 | I49: =SUMPRODUCT((Data!$C:$C=A49)*(Data!$B:$B=B49),(Data!$I:$I)) -> 0 | J49: =IF(SUMIFS(Data!$J:$J,Data!$C:$C,A49,Data!$B:$B,B49)<H49,H49-SUMIFS(Data!$J:$J,Data!$C:$C,A49,Data!$B:$B,B49),"") -> 0
A50: 2018-08-13 | B50: =IFERROR(INDEX(INDIRECT("Data!B"&MATCH(A50,Data!$C$2:$C$100000,0)+1&":B100000"),SMALL(IF((A50=INDIRECT("Data!C"&MATCH(A50,Data!$C$2:$C$100000,0)+1&":C100000"))*(MATCH(INDIRECT("Data!B"&MATCH(A50,Data!$C$2:$C$100000,0)+1&":B100000")&"",INDIRECT("Data!B"&MATCH(A50,Data!$C$2:$C$100000,0)+1&":B100000")&"",0)=(ROW(INDIRECT("Data!B"&MATCH(A50,Data!$C$2:$C$100000,0)+1&":B100000"))-MATCH(A50,Data!$C$2:$C$100000,0))),ROW(INDIRECT("Data!B"&MATCH(A50,Data!$C$2:$C$100000,0)+1&":B100000"))-MATCH(A50,Data!$C$2:$C$100000,0),""),COUNTIF($A$5:A50,A50))),"") -> Diving | C50: =SUMIFS(Data!$D:$D,Data!$C:$C,A50,Data!$B:$B,B50) -> 1 | D50: =SUMIFS(Data!$E:$E,Data!$C:$C,A50,Data!$B:$B,B50) -> 0 | E50: =IF(AND(B50="Grand Aquarium",WEEKDAY(A50)=3),40,IF(AND(B50="Grand Aquarium",WEEKDAY(A50)=7),40,VLOOKUP(B50,Price!$A$6:$C$216,2,0))) -> 65 | F50: =IF(AND(B50="Grand Aquarium",WEEKDAY(A50)=3),20,IF(AND(B50="Grand Aquarium",WEEKDAY(A50)=7),20,VLOOKUP(B50,Price!$A$6:$C$216,3,0))) -> 65 | G50: =IF(SUMIFS(Data!$J:$J,Data!$C:$C,A50,Data!$B:$B,B50)>H50,SUMIFS(Data!$J:$J,Data!$C:$C,A50,Data!$B:$B,B50)-H50,"") -> 0 | H50: 180 | I50: =SUMPRODUCT((Data!$C:$C=A50)*(Data!$B:$B=B50),(Data!$I:$I)) -> 5 | J50: =IF(SUMIFS(Data!$J:$J,Data!$C:$C,A50,Data!$B:$B,B50)<H50,H50-SUMIFS(Data!$J:$J,Data!$C:$C,A50,Data!$B:$B,B50),"") -> 0
A51: 2018-08-13 | B51: =IFERROR(INDEX(INDIRECT("Data!B"&MATCH(A51,Data!$C$2:$C$100000,0)+1&":B100000"),SMALL(IF((A51=INDIRECT("Data!C"&MATCH(A51,Data!$C$2:$C$100000,0)+1&":C100000"))*(MATCH(INDIRECT("Data!B"&MATCH(A51,Data!$C$2:$C$100000,0)+1&":B100000")&"",INDIRECT("Data!B"&MATCH(A51,Data!$C$2:$C$100000,0)+1&":B100000")&"",0)=(ROW(INDIRECT("Data!B"&MATCH(A51,Data!$C$2:$C$100000,0)+1&":B100000"))-MATCH(A51,Data!$C$2:$C$100000,0))),ROW(INDIRECT("Data!B"&MATCH(A51,Data!$C$2:$C$100000,0)+1&":B100000"))-MATCH(A51,Data!$C$2:$C$100000,0),""),COUNTIF($A$5:A51,A51))),"") -> Moto 2 | C51: =SUMIFS(Data!$D:$D,Data!$C:$C,A51,Data!$B:$B,B51) -> 6 | D51: =SUMIFS(Data!$E:$E,Data!$C:$C,A51,Data!$B:$B,B51) -> 0 | E51: =IF(AND(B51="Grand Aquarium",WEEKDAY(A51)=3),40,IF(AND(B51="Grand Aquarium",WEEKDAY(A51)=7),40,VLOOKUP(B51,Price!$A$6:$C$216,2,0))) -> 45 | F51: =IF(AND(B51="Grand Aquarium",WEEKDAY(A51)=3),20,IF(AND(B51="Grand Aquarium",WEEKDAY(A51)=7),20,VLOOKUP(B51,Price!$A$6:$C$216,3,0))) -> 23 | G51: =IF(SUMIFS(Data!$J:$J,Data!$C:$C,A51,Data!$B:$B,B51)>H51,SUMIFS(Data!$J:$J,Data!$C:$C,A51,Data!$B:$B,B51)-H51,"") -> 0 | H51: 180 | I51: =SUMPRODUCT((Data!$C:$C=A51)*(Data!$B:$B=B51),(Data!$I:$I)) -> 0 | J51: =IF(SUMIFS(Data!$J:$J,Data!$C:$C,A51,Data!$B:$B,B51)<H51,H51-SUMIFS(Data!$J:$J,Data!$C:$C,A51,Data!$B:$B,B51),"") -> 0
B52: =IFERROR(INDEX(INDIRECT("Data!B"&MATCH(A52,Data!$C$2:$C$100000,0)+1&":B100000"),SMALL(IF((A52=INDIRECT("Data!C"&MATCH(A52,Data!$C$2:$C$100000,0)+1&":C100000"))*(MATCH(INDIRECT("Data!B"&MATCH(A52,Data!$C$2:$C$100000,0)+1&":B100000")&"",INDIRECT("Data!B"&MATCH(A52,Data!$C$2:$C$100000,0)+1&":B100000")&"",0)=(ROW(INDIRECT("Data!B"&MATCH(A52,Data!$C$2:$C$100000,0)+1&":B100000"))-MATCH(A52,Data!$C$2:$C$100000,0))),ROW(INDIRECT("Data!B"&MATCH(A52,Data!$C$2:$C$100000,0)+1&":B100000"))-MATCH(A52,Data!$C$2:$C$100000,0),""),COUNTIF($A$5:A52,A52))),"") ->  | C52: =SUMIFS(Data!$D:$D,Data!$C:$C,A52,Data!$B:$B,B52) -> 0 | D52: =SUMIFS(Data!$E:$E,Data!$C:$C,A52,Data!$B:$B,B52) -> 0 | G52: =IF(SUMIFS(Data!$J:$J,Data!$C:$C,A52,Data!$B:$B,B52)>H52,SUMIFS(Data!$J:$J,Data!$C:$C,A52,Data!$B:$B,B52)-H52,"") -> 0 | H52: 180 | I52: =SUMPRODUCT((Data!$C:$C=A52)*(Data!$B:$B=B52),(Data!$I:$I)) -> 0 | J52: =IF(SUMIFS(Data!$J:$J,Data!$C:$C,A52,Data!$B:$B,B52)<H52,H52-SUMIFS(Data!$J:$J,Data!$C:$C,A52,Data!$B:$B,B52),"") -> 0 | K52: =SUM(H49:H51) -> 535
B53: =IFERROR(INDEX(INDIRECT("Data!B"&MATCH(A53,Data!$C$2:$C$100000,0)+1&":B100000"),SMALL(IF((A53=INDIRECT("Data!C"&MATCH(A53,Data!$C$2:$C$100000,0)+1&":C100000"))*(MATCH(INDIRECT("Data!B"&MATCH(A53,Data!$C$2:$C$100000,0)+1&":B100000")&"",INDIRECT("Data!B"&MATCH(A53,Data!$C$2:$C$100000,0)+1&":B100000")&"",0)=(ROW(INDIRECT("Data!B"&MATCH(A53,Data!$C$2:$C$100000,0)+1&":B100000"))-MATCH(A53,Data!$C$2:$C$100000,0))),ROW(INDIRECT("Data!B"&MATCH(A53,Data!$C$2:$C$100000,0)+1&":B100000"))-MATCH(A53,Data!$C$2:$C$100000,0),""),COUNTIF($A$5:A53,A53))),"") ->  | C53: =SUMIFS(Data!$D:$D,Data!$C:$C,A53,Data!$B:$B,B53) -> 0 | D53: =SUMIFS(Data!$E:$E,Data!$C:$C,A53,Data!$B:$B,B53) -> 0 | E53: =IF(AND(B53="Grand Aquarium",WEEKDAY(A53)=3),40,IF(AND(B53="Grand Aquarium",WEEKDAY(A53)=7),40,VLOOKUP(B53,Price!$A$6:$C$216,2,0))) ->  | F53: =IF(AND(B53="Grand Aquarium",WEEKDAY(A53)=3),20,IF(AND(B53="Grand Aquarium",WEEKDAY(A53)=7),20,VLOOKUP(B53,Price!$A$6:$C$216,3,0))) ->  | G53: =IF(SUMIFS(Data!$J:$J,Data!$C:$C,A53,Data!$B:$B,B53)>H53,SUMIFS(Data!$J:$J,Data!$C:$C,A53,Data!$B:$B,B53)-H53,"") -> 0 | H53: 180 | I53: =SUMPRODUCT((Data!$C:$C=A53)*(Data!$B:$B=B53),(Data!$I:$I)) -> 0 | J53: =IF(SUMIFS(Data!$J:$J,Data!$C:$C,A53,Data!$B:$B,B53)<H53,H53-SUMIFS(Data!$J:$J,Data!$C:$C,A53,Data!$B:$B,B53),"") -> 0
B54: =IFERROR(INDEX(INDIRECT("Data!B"&MATCH(A54,Data!$C$2:$C$100000,0)+1&":B100000"),SMALL(IF((A54=INDIRECT("Data!C"&MATCH(A54,Data!$C$2:$C$100000,0)+1&":C100000"))*(MATCH(INDIRECT("Data!B"&MATCH(A54,Data!$C$2:$C$100000,0)+1&":B100000")&"",INDIRECT("Data!B"&MATCH(A54,Data!$C$2:$C$100000,0)+1&":B100000")&"",0)=(ROW(INDIRECT("Data!B"&MATCH(A54,Data!$C$2:$C$100000,0)+1&":B100000"))-MATCH(A54,Data!$C$2:$C$100000,0))),ROW(INDIRECT("Data!B"&MATCH(A54,Data!$C$2:$C$100000,0)+1&":B100000"))-MATCH(A54,Data!$C$2:$C$100000,0),""),COUNTIF($A$5:A54,A54))),"") ->  | C54: =SUMIFS(Data!$D:$D,Data!$C:$C,A54,Data!$B:$B,B54) -> 0 | D54: =SUMIFS(Data!$E:$E,Data!$C:$C,A54,Data!$B:$B,B54) -> 0 | E54: =IF(AND(B54="Grand Aquarium",WEEKDAY(A54)=3),40,IF(AND(B54="Grand Aquarium",WEEKDAY(A54)=7),40,VLOOKUP(B54,Price!$A$6:$C$216,2,0))) ->  | F54: =IF(AND(B54="Grand Aquarium",WEEKDAY(A54)=3),20,IF(AND(B54="Grand Aquarium",WEEKDAY(A54)=7),20,VLOOKUP(B54,Price!$A$6:$C$216,3,0))) ->  | G54: =IF(SUMIFS(Data!$J:$J,Data!$C:$C,A54,Data!$B:$B,B54)>H54,SUMIFS(Data!$J:$J,Data!$C:$C,A54,Data!$B:$B,B54)-H54,"") -> 0 | H54: 180 | I54: =SUMPRODUCT((Data!$C:$C=A54)*(Data!$B:$B=B54),(Data!$I:$I)) -> 0 | J54: =IF(SUMIFS(Data!$J:$J,Data!$C:$C,A54,Data!$B:$B,B54)<H54,H54-SUMIFS(Data!$J:$J,Data!$C:$C,A54,Data!$B:$B,B54),"") -> 0
B55: =IFERROR(INDEX(INDIRECT("Data!B"&MATCH(A55,Data!$C$2:$C$100000,0)+1&":B100000"),SMALL(IF((A55=INDIRECT("Data!C"&MATCH(A55,Data!$C$2:$C$100000,0)+1&":C100000"))*(MATCH(INDIRECT("Data!B"&MATCH(A55,Data!$C$2:$C$100000,0)+1&":B100000")&"",INDIRECT("Data!B"&MATCH(A55,Data!$C$2:$C$100000,0)+1&":B100000")&"",0)=(ROW(INDIRECT("Data!B"&MATCH(A55,Data!$C$2:$C$100000,0)+1&":B100000"))-MATCH(A55,Data!$C$2:$C$100000,0))),ROW(INDIRECT("Data!B"&MATCH(A55,Data!$C$2:$C$100000,0)+1&":B100000"))-MATCH(A55,Data!$C$2:$C$100000,0),""),COUNTIF($A$5:A55,A55))),"") ->  | C55: =SUMIFS(Data!$D:$D,Data!$C:$C,A55,Data!$B:$B,B55) -> 0 | D55: =SUMIFS(Data!$E:$E,Data!$C:$C,A55,Data!$B:$B,B55) -> 0 | E55: =IF(AND(B55="Grand Aquarium",WEEKDAY(A55)=3),40,IF(AND(B55="Grand Aquarium",WEEKDAY(A55)=7),40,VLOOKUP(B55,Price!$A$6:$C$216,2,0))) ->  | F55: =IF(AND(B55="Grand Aquarium",WEEKDAY(A55)=3),20,IF(AND(B55="Grand Aquarium",WEEKDAY(A55)=7),20,VLOOKUP(B55,Price!$A$6:$C$216,3,0))) ->  | G55: =IF(SUMIFS(Data!$J:$J,Data!$C:$C,A55,Data!$B:$B,B55)>H55,SUMIFS(Data!$J:$J,Data!$C:$C,A55,Data!$B:$B,B55)-H55,"") -> 0 | H55: 180 | I55: =SUMPRODUCT((Data!$C:$C=A55)*(Data!$B:$B=B55),(Data!$I:$I)) -> 0 | J55: =IF(SUMIFS(Data!$J:$J,Data!$C:$C,A55,Data!$B:$B,B55)<H55,H55-SUMIFS(Data!$J:$J,Data!$C:$C,A55,Data!$B:$B,B55),"") -> 0
B56: =IFERROR(INDEX(INDIRECT("Data!B"&MATCH(A56,Data!$C$2:$C$100000,0)+1&":B100000"),SMALL(IF((A56=INDIRECT("Data!C"&MATCH(A56,Data!$C$2:$C$100000,0)+1&":C100000"))*(MATCH(INDIRECT("Data!B"&MATCH(A56,Data!$C$2:$C$100000,0)+1&":B100000")&"",INDIRECT("Data!B"&MATCH(A56,Data!$C$2:$C$100000,0)+1&":B100000")&"",0)=(ROW(INDIRECT("Data!B"&MATCH(A56,Data!$C$2:$C$100000,0)+1&":B100000"))-MATCH(A56,Data!$C$2:$C$100000,0))),ROW(INDIRECT("Data!B"&MATCH(A56,Data!$C$2:$C$100000,0)+1&":B100000"))-MATCH(A56,Data!$C$2:$C$100000,0),""),COUNTIF($A$5:A56,A56))),"") ->  | C56: =SUMIFS(Data!$D:$D,Data!$C:$C,A56,Data!$B:$B,B56) -> 0 | D56: =SUMIFS(Data!$E:$E,Data!$C:$C,A56,Data!$B:$B,B56) -> 0 | E56: =IF(AND(B56="Grand Aquarium",WEEKDAY(A56)=3),40,IF(AND(B56="Grand Aquarium",WEEKDAY(A56)=7),40,VLOOKUP(B56,Price!$A$6:$C$216,2,0))) ->  | F56: =IF(AND(B56="Grand Aquarium",WEEKDAY(A56)=3),20,IF(AND(B56="Grand Aquarium",WEEKDAY(A56)=7),20,VLOOKUP(B56,Price!$A$6:$C$216,3,0))) ->  | G56: =IF(SUMIFS(Data!$J:$J,Data!$C:$C,A56,Data!$B:$B,B56)>H56,SUMIFS(Data!$J:$J,Data!$C:$C,A56,Data!$B:$B,B56)-H56,"") -> 0 | H56: 180 | I56: =SUMPRODUCT((Data!$C:$C=A56)*(Data!$B:$B=B56),(Data!$I:$I)) -> 0 | J56: =IF(SUMIFS(Data!$J:$J,Data!$C:$C,A56,Data!$B:$B,B56)<H56,H56-SUMIFS(Data!$J:$J,Data!$C:$C,A56,Data!$B:$B,B56),"") -> 0
B57: =IFERROR(INDEX(INDIRECT("Data!B"&MATCH(A57,Data!$C$2:$C$100000,0)+1&":B100000"),SMALL(IF((A57=INDIRECT("Data!C"&MATCH(A57,Data!$C$2:$C$100000,0)+1&":C100000"))*(MATCH(INDIRECT("Data!B"&MATCH(A57,Data!$C$2:$C$100000,0)+1&":B100000")&"",INDIRECT("Data!B"&MATCH(A57,Data!$C$2:$C$100000,0)+1&":B100000")&"",0)=(ROW(INDIRECT("Data!B"&MATCH(A57,Data!$C$2:$C$100000,0)+1&":B100000"))-MATCH(A57,Data!$C$2:$C$100000,0))),ROW(INDIRECT("Data!B"&MATCH(A57,Data!$C$2:$C$100000,0)+1&":B100000"))-MATCH(A57,Data!$C$2:$C$100000,0),""),COUNTIF($A$5:A57,A57))),"") ->  | C57: =SUMIFS(Data!$D:$D,Data!$C:$C,A57,Data!$B:$B,B57) -> 0 | D57: =SUMIFS(Data!$E:$E,Data!$C:$C,A57,Data!$B:$B,B57) -> 0 | E57: =IF(AND(B57="Grand Aquarium",WEEKDAY(A57)=3),40,IF(AND(B57="Grand Aquarium",WEEKDAY(A57)=7),40,VLOOKUP(B57,Price!$A$6:$C$216,2,0))) ->  | F57: =IF(AND(B57="Grand Aquarium",WEEKDAY(A57)=3),20,IF(AND(B57="Grand Aquarium",WEEKDAY(A57)=7),20,VLOOKUP(B57,Price!$A$6:$C$216,3,0))) ->  | G57: =IF(SUMIFS(Data!$J:$J,Data!$C:$C,A57,Data!$B:$B,B57)>H57,SUMIFS(Data!$J:$J,Data!$C:$C,A57,Data!$B:$B,B57)-H57,"") -> 0 | H57: 180 | I57: =SUMPRODUCT((Data!$C:$C=A57)*(Data!$B:$B=B57),(Data!$I:$I)) -> 0 | J57: =IF(SUMIFS(Data!$J:$J,Data!$C:$C,A57,Data!$B:$B,B57)<H57,H57-SUMIFS(Data!$J:$J,Data!$C:$C,A57,Data!$B:$B,B57),"") -> 0
B58: =IFERROR(INDEX(INDIRECT("Data!B"&MATCH(A58,Data!$C$2:$C$100000,0)+1&":B100000"),SMALL(IF((A58=INDIRECT("Data!C"&MATCH(A58,Data!$C$2:$C$100000,0)+1&":C100000"))*(MATCH(INDIRECT("Data!B"&MATCH(A58,Data!$C$2:$C$100000,0)+1&":B100000")&"",INDIRECT("Data!B"&MATCH(A58,Data!$C$2:$C$100000,0)+1&":B100000")&"",0)=(ROW(INDIRECT("Data!B"&MATCH(A58,Data!$C$2:$C$100000,0)+1&":B100000"))-MATCH(A58,Data!$C$2:$C$100000,0))),ROW(INDIRECT("Data!B"&MATCH(A58,Data!$C$2:$C$100000,0)+1&":B100000"))-MATCH(A58,Data!$C$2:$C$100000,0),""),COUNTIF($A$5:A58,A58))),"") ->  | C58: =SUMIFS(Data!$D:$D,Data!$C:$C,A58,Data!$B:$B,B58) -> 0 | D58: =SUMIFS(Data!$E:$E,Data!$C:$C,A58,Data!$B:$B,B58) -> 0 | E58: =IF(AND(B58="Grand Aquarium",WEEKDAY(A58)=3),40,IF(AND(B58="Grand Aquarium",WEEKDAY(A58)=7),40,VLOOKUP(B58,Price!$A$6:$C$216,2,0))) ->  | F58: =IF(AND(B58="Grand Aquarium",WEEKDAY(A58)=3),20,IF(AND(B58="Grand Aquarium",WEEKDAY(A58)=7),20,VLOOKUP(B58,Price!$A$6:$C$216,3,0))) ->  | G58: =IF(SUMIFS(Data!$J:$J,Data!$C:$C,A58,Data!$B:$B,B58)>H58,SUMIFS(Data!$J:$J,Data!$C:$C,A58,Data!$B:$B,B58)-H58,"") -> 0 | H58: 180 | I58: =SUMPRODUCT((Data!$C:$C=A58)*(Data!$B:$B=B58),(Data!$I:$I)) -> 0 | J58: =IF(SUMIFS(Data!$J:$J,Data!$C:$C,A58,Data!$B:$B,B58)<H58,H58-SUMIFS(Data!$J:$J,Data!$C:$C,A58,Data!$B:$B,B58),"") -> 0
B59: =IFERROR(INDEX(INDIRECT("Data!B"&MATCH(A59,Data!$C$2:$C$100000,0)+1&":B100000"),SMALL(IF((A59=INDIRECT("Data!C"&MATCH(A59,Data!$C$2:$C$100000,0)+1&":C100000"))*(MATCH(INDIRECT("Data!B"&MATCH(A59,Data!$C$2:$C$100000,0)+1&":B100000")&"",INDIRECT("Data!B"&MATCH(A59,Data!$C$2:$C$100000,0)+1&":B100000")&"",0)=(ROW(INDIRECT("Data!B"&MATCH(A59,Data!$C$2:$C$100000,0)+1&":B100000"))-MATCH(A59,Data!$C$2:$C$100000,0))),ROW(INDIRECT("Data!B"&MATCH(A59,Data!$C$2:$C$100000,0)+1&":B100000"))-MATCH(A59,Data!$C$2:$C$100000,0),""),COUNTIF($A$5:A59,A59))),"") ->  | C59: =SUMIFS(Data!$D:$D,Data!$C:$C,A59,Data!$B:$B,B59) -> 0 | D59: =SUMIFS(Data!$E:$E,Data!$C:$C,A59,Data!$B:$B,B59) -> 0 | G59: =IF(SUMIFS(Data!$J:$J,Data!$C:$C,A59,Data!$B:$B,B59)>H59,SUMIFS(Data!$J:$J,Data!$C:$C,A59,Data!$B:$B,B59)-H59,"") -> 0 | H59: 180 | I59: =SUMPRODUCT((Data!$C:$C=A59)*(Data!$B:$B=B59),(Data!$I:$I)) -> 0 | J59: =IF(SUMIFS(Data!$J:$J,Data!$C:$C,A59,Data!$B:$B,B59)<H59,H59-SUMIFS(Data!$J:$J,Data!$C:$C,A59,Data!$B:$B,B59),"") -> 0 | K59: =SUM(H53:H58) -> 
B60: =IFERROR(INDEX(INDIRECT("Data!B"&MATCH(A60,Data!$C$2:$C$100000,0)+1&":B100000"),SMALL(IF((A60=INDIRECT("Data!C"&MATCH(A60,Data!$C$2:$C$100000,0)+1&":C100000"))*(MATCH(INDIRECT("Data!B"&MATCH(A60,Data!$C$2:$C$100000,0)+1&":B100000")&"",INDIRECT("Data!B"&MATCH(A60,Data!$C$2:$C$100000,0)+1&":B100000")&"",0)=(ROW(INDIRECT("Data!B"&MATCH(A60,Data!$C$2:$C$100000,0)+1&":B100000"))-MATCH(A60,Data!$C$2:$C$100000,0))),ROW(INDIRECT("Data!B"&MATCH(A60,Data!$C$2:$C$100000,0)+1&":B100000"))-MATCH(A60,Data!$C$2:$C$100000,0),""),COUNTIF($A$5:A60,A60))),"") ->  | C60: =SUMIFS(Data!$D:$D,Data!$C:$C,A60,Data!$B:$B,B60) -> 0 | D60: =SUMIFS(Data!$E:$E,Data!$C:$C,A60,Data!$B:$B,B60) -> 0 | E60: =IF(AND(B60="Grand Aquarium",WEEKDAY(A60)=3),40,IF(AND(B60="Grand Aquarium",WEEKDAY(A60)=7),40,VLOOKUP(B60,Price!$A$6:$C$216,2,0))) ->  | F60: =IF(AND(B60="Grand Aquarium",WEEKDAY(A60)=3),20,IF(AND(B60="Grand Aquarium",WEEKDAY(A60)=7),20,VLOOKUP(B60,Price!$A$6:$C$216,3,0))) ->  | G60: =IF(SUMIFS(Data!$J:$J,Data!$C:$C,A60,Data!$B:$B,B60)>H60,SUMIFS(Data!$J:$J,Data!$C:$C,A60,Data!$B:$B,B60)-H60,"") -> 0 | H60: 180 | I60: =SUMPRODUCT((Data!$C:$C=A60)*(Data!$B:$B=B60),(Data!$I:$I)) -> 0 | J60: =IF(SUMIFS(Data!$J:$J,Data!$C:$C,A60,Data!$B:$B,B60)<H60,H60-SUMIFS(Data!$J:$J,Data!$C:$C,A60,Data!$B:$B,B60),"") -> 0 | K60: Without Transfer
B61: =IFERROR(INDEX(INDIRECT("Data!B"&MATCH(A61,Data!$C$2:$C$100000,0)+1&":B100000"),SMALL(IF((A61=INDIRECT("Data!C"&MATCH(A61,Data!$C$2:$C$100000,0)+1&":C100000"))*(MATCH(INDIRECT("Data!B"&MATCH(A61,Data!$C$2:$C$100000,0)+1&":B100000")&"",INDIRECT("Data!B"&MATCH(A61,Data!$C$2:$C$100000,0)+1&":B100000")&"",0)=(ROW(INDIRECT("Data!B"&MATCH(A61,Data!$C$2:$C$100000,0)+1&":B100000"))-MATCH(A61,Data!$C$2:$C$100000,0))),ROW(INDIRECT("Data!B"&MATCH(A61,Data!$C$2:$C$100000,0)+1&":B100000"))-MATCH(A61,Data!$C$2:$C$100000,0),""),COUNTIF($A$5:A61,A61))),"") ->  | C61: =SUMIFS(Data!$D:$D,Data!$C:$C,A61,Data!$B:$B,B61) -> 0 | D61: =SUMIFS(Data!$E:$E,Data!$C:$C,A61,Data!$B:$B,B61) -> 0 | E61: =IF(AND(B61="Grand Aquarium",WEEKDAY(A61)=3),40,IF(AND(B61="Grand Aquarium",WEEKDAY(A61)=7),40,VLOOKUP(B61,Price!$A$6:$C$216,2,0))) ->  | F61: =IF(AND(B61="Grand Aquarium",WEEKDAY(A61)=3),20,IF(AND(B61="Grand Aquarium",WEEKDAY(A61)=7),20,VLOOKUP(B61,Price!$A$6:$C$216,3,0))) ->  | G61: =IF(SUMIFS(Data!$J:$J,Data!$C:$C,A61,Data!$B:$B,B61)>H61,SUMIFS(Data!$J:$J,Data!$C:$C,A61,Data!$B:$B,B61)-H61,"") -> 0 | H61: 180 | I61: =SUMPRODUCT((Data!$C:$C=A61)*(Data!$B:$B=B61),(Data!$I:$I)) -> 0 | J61: =IF(SUMIFS(Data!$J:$J,Data!$C:$C,A61,Data!$B:$B,B61)<H61,H61-SUMIFS(Data!$J:$J,Data!$C:$C,A61,Data!$B:$B,B61),"") -> 0
B62: =IFERROR(INDEX(INDIRECT("Data!B"&MATCH(A62,Data!$C$2:$C$100000,0)+1&":B100000"),SMALL(IF((A62=INDIRECT("Data!C"&MATCH(A62,Data!$C$2:$C$100000,0)+1&":C100000"))*(MATCH(INDIRECT("Data!B"&MATCH(A62,Data!$C$2:$C$100000,0)+1&":B100000")&"",INDIRECT("Data!B"&MATCH(A62,Data!$C$2:$C$100000,0)+1&":B100000")&"",0)=(ROW(INDIRECT("Data!B"&MATCH(A62,Data!$C$2:$C$100000,0)+1&":B100000"))-MATCH(A62,Data!$C$2:$C$100000,0))),ROW(INDIRECT("Data!B"&MATCH(A62,Data!$C$2:$C$100000,0)+1&":B100000"))-MATCH(A62,Data!$C$2:$C$100000,0),""),COUNTIF($A$5:A62,A62))),"") ->  | C62: =SUMIFS(Data!$D:$D,Data!$C:$C,A62,Data!$B:$B,B62) -> 0 | D62: =SUMIFS(Data!$E:$E,Data!$C:$C,A62,Data!$B:$B,B62) -> 0 | G62: =IF(SUMIFS(Data!$J:$J,Data!$C:$C,A62,Data!$B:$B,B62)>H62,SUMIFS(Data!$J:$J,Data!$C:$C,A62,Data!$B:$B,B62)-H62,"") -> 0 | H62: 180 | I62: =SUMPRODUCT((Data!$C:$C=A62)*(Data!$B:$B=B62),(Data!$I:$I)) -> 0 | J62: =IF(SUMIFS(Data!$J:$J,Data!$C:$C,A62,Data!$B:$B,B62)<H62,H62-SUMIFS(Data!$J:$J,Data!$C:$C,A62,Data!$B:$B,B62),"") -> 0 | K62: =SUM(H60:H61) -> 
B63: =IFERROR(INDEX(INDIRECT("Data!B"&MATCH(A63,Data!$C$2:$C$100000,0)+1&":B100000"),SMALL(IF((A63=INDIRECT("Data!C"&MATCH(A63,Data!$C$2:$C$100000,0)+1&":C100000"))*(MATCH(INDIRECT("Data!B"&MATCH(A63,Data!$C$2:$C$100000,0)+1&":B100000")&"",INDIRECT("Data!B"&MATCH(A63,Data!$C$2:$C$100000,0)+1&":B100000")&"",0)=(ROW(INDIRECT("Data!B"&MATCH(A63,Data!$C$2:$C$100000,0)+1&":B100000"))-MATCH(A63,Data!$C$2:$C$100000,0))),ROW(INDIRECT("Data!B"&MATCH(A63,Data!$C$2:$C$100000,0)+1&":B100000"))-MATCH(A63,Data!$C$2:$C$100000,0),""),COUNTIF($A$5:A63,A63))),"") ->  | C63: =SUMIFS(Data!$D:$D,Data!$C:$C,A63,Data!$B:$B,B63) -> 0 | D63: =SUMIFS(Data!$E:$E,Data!$C:$C,A63,Data!$B:$B,B63) -> 0 | E63: =IF(AND(B63="Grand Aquarium",WEEKDAY(A63)=3),40,IF(AND(B63="Grand Aquarium",WEEKDAY(A63)=7),40,VLOOKUP(B63,Price!$A$6:$C$216,2,0))) ->  | F63: =IF(AND(B63="Grand Aquarium",WEEKDAY(A63)=3),20,IF(AND(B63="Grand Aquarium",WEEKDAY(A63)=7),20,VLOOKUP(B63,Price!$A$6:$C$216,3,0))) ->  | G63: =IF(SUMIFS(Data!$J:$J,Data!$C:$C,A63,Data!$B:$B,B63)>H63,SUMIFS(Data!$J:$J,Data!$C:$C,A63,Data!$B:$B,B63)-H63,"") -> 0 | H63: 180 | I63: =SUMPRODUCT((Data!$C:$C=A63)*(Data!$B:$B=B63),(Data!$I:$I)) -> 0 | J63: =IF(SUMIFS(Data!$J:$J,Data!$C:$C,A63,Data!$B:$B,B63)<H63,H63-SUMIFS(Data!$J:$J,Data!$C:$C,A63,Data!$B:$B,B63),"") -> 0
B64: =IFERROR(INDEX(INDIRECT("Data!B"&MATCH(A64,Data!$C$2:$C$100000,0)+1&":B100000"),SMALL(IF((A64=INDIRECT("Data!C"&MATCH(A64,Data!$C$2:$C$100000,0)+1&":C100000"))*(MATCH(INDIRECT("Data!B"&MATCH(A64,Data!$C$2:$C$100000,0)+1&":B100000")&"",INDIRECT("Data!B"&MATCH(A64,Data!$C$2:$C$100000,0)+1&":B100000")&"",0)=(ROW(INDIRECT("Data!B"&MATCH(A64,Data!$C$2:$C$100000,0)+1&":B100000"))-MATCH(A64,Data!$C$2:$C$100000,0))),ROW(INDIRECT("Data!B"&MATCH(A64,Data!$C$2:$C$100000,0)+1&":B100000"))-MATCH(A64,Data!$C$2:$C$100000,0),""),COUNTIF($A$5:A64,A64))),"") ->  | C64: =SUMIFS(Data!$D:$D,Data!$C:$C,A64,Data!$B:$B,B64) -> 0 | D64: =SUMIFS(Data!$E:$E,Data!$C:$C,A64,Data!$B:$B,B64) -> 0 | G64: =IF(SUMIFS(Data!$J:$J,Data!$C:$C,A64,Data!$B:$B,B64)>H64,SUMIFS(Data!$J:$J,Data!$C:$C,A64,Data!$B:$B,B64)-H64,"") -> 0 | H64: 180 | I64: =SUMPRODUCT((Data!$C:$C=A64)*(Data!$B:$B=B64),(Data!$I:$I)) -> 0 | J64: =IF(SUMIFS(Data!$J:$J,Data!$C:$C,A64,Data!$B:$B,B64)<H64,H64-SUMIFS(Data!$J:$J,Data!$C:$C,A64,Data!$B:$B,B64),"") -> 0 | K64: =SUM(H63:H63) -> 
B65: =IFERROR(INDEX(INDIRECT("Data!B"&MATCH(A65,Data!$C$2:$C$100000,0)+1&":B100000"),SMALL(IF((A65=INDIRECT("Data!C"&MATCH(A65,Data!$C$2:$C$100000,0)+1&":C100000"))*(MATCH(INDIRECT("Data!B"&MATCH(A65,Data!$C$2:$C$100000,0)+1&":B100000")&"",INDIRECT("Data!B"&MATCH(A65,Data!$C$2:$C$100000,0)+1&":B100000")&"",0)=(ROW(INDIRECT("Data!B"&MATCH(A65,Data!$C$2:$C$100000,0)+1&":B100000"))-MATCH(A65,Data!$C$2:$C$100000,0))),ROW(INDIRECT("Data!B"&MATCH(A65,Data!$C$2:$C$100000,0)+1&":B100000"))-MATCH(A65,Data!$C$2:$C$100000,0),""),COUNTIF($A$5:A65,A65))),"") ->  | C65: =SUMIFS(Data!$D:$D,Data!$C:$C,A65,Data!$B:$B,B65) -> 0 | D65: =SUMIFS(Data!$E:$E,Data!$C:$C,A65,Data!$B:$B,B65) -> 0 | E65: =IF(AND(B65="Grand Aquarium",WEEKDAY(A65)=3),40,IF(AND(B65="Grand Aquarium",WEEKDAY(A65)=7),40,VLOOKUP(B65,Price!$A$6:$C$216,2,0))) ->  | F65: =IF(AND(B65="Grand Aquarium",WEEKDAY(A65)=3),20,IF(AND(B65="Grand Aquarium",WEEKDAY(A65)=7),20,VLOOKUP(B65,Price!$A$6:$C$216,3,0))) ->  | G65: =IF(SUMIFS(Data!$J:$J,Data!$C:$C,A65,Data!$B:$B,B65)>H65,SUMIFS(Data!$J:$J,Data!$C:$C,A65,Data!$B:$B,B65)-H65,"") -> 0 | H65: 180 | I65: =SUMPRODUCT((Data!$C:$C=A65)*(Data!$B:$B=B65),(Data!$I:$I)) -> 0 | J65: =IF(SUMIFS(Data!$J:$J,Data!$C:$C,A65,Data!$B:$B,B65)<H65,H65-SUMIFS(Data!$J:$J,Data!$C:$C,A65,Data!$B:$B,B65),"") -> 0
B66: =IFERROR(INDEX(INDIRECT("Data!B"&MATCH(A66,Data!$C$2:$C$100000,0)+1&":B100000"),SMALL(IF((A66=INDIRECT("Data!C"&MATCH(A66,Data!$C$2:$C$100000,0)+1&":C100000"))*(MATCH(INDIRECT("Data!B"&MATCH(A66,Data!$C$2:$C$100000,0)+1&":B100000")&"",INDIRECT("Data!B"&MATCH(A66,Data!$C$2:$C$100000,0)+1&":B100000")&"",0)=(ROW(INDIRECT("Data!B"&MATCH(A66,Data!$C$2:$C$100000,0)+1&":B100000"))-MATCH(A66,Data!$C$2:$C$100000,0))),ROW(INDIRECT("Data!B"&MATCH(A66,Data!$C$2:$C$100000,0)+1&":B100000"))-MATCH(A66,Data!$C$2:$C$100000,0),""),COUNTIF($A$5:A66,A66))),"") ->  | C66: =SUMIFS(Data!$D:$D,Data!$C:$C,A66,Data!$B:$B,B66) -> 0 | D66: =SUMIFS(Data!$E:$E,Data!$C:$C,A66,Data!$B:$B,B66) -> 0 | G66: =IF(SUMIFS(Data!$J:$J,Data!$C:$C,A66,Data!$B:$B,B66)>H66,SUMIFS(Data!$J:$J,Data!$C:$C,A66,Data!$B:$B,B66)-H66,"") -> 0 | H66: 180 | I66: =SUMPRODUCT((Data!$C:$C=A66)*(Data!$B:$B=B66),(Data!$I:$I)) -> 0 | J66: =IF(SUMIFS(Data!$J:$J,Data!$C:$C,A66,Data!$B:$B,B66)<H66,H66-SUMIFS(Data!$J:$J,Data!$C:$C,A66,Data!$B:$B,B66),"") -> 0 | K66: =SUM(H65:H65) -> 
B67: =IFERROR(INDEX(INDIRECT("Data!B"&MATCH(A67,Data!$C$2:$C$100000,0)+1&":B100000"),SMALL(IF((A67=INDIRECT("Data!C"&MATCH(A67,Data!$C$2:$C$100000,0)+1&":C100000"))*(MATCH(INDIRECT("Data!B"&MATCH(A67,Data!$C$2:$C$100000,0)+1&":B100000")&"",INDIRECT("Data!B"&MATCH(A67,Data!$C$2:$C$100000,0)+1&":B100000")&"",0)=(ROW(INDIRECT("Data!B"&MATCH(A67,Data!$C$2:$C$100000,0)+1&":B100000"))-MATCH(A67,Data!$C$2:$C$100000,0))),ROW(INDIRECT("Data!B"&MATCH(A67,Data!$C$2:$C$100000,0)+1&":B100000"))-MATCH(A67,Data!$C$2:$C$100000,0),""),COUNTIF($A$5:A67,A67))),"") ->  | C67: =SUMIFS(Data!$D:$D,Data!$C:$C,A67,Data!$B:$B,B67) -> 0 | D67: =SUMIFS(Data!$E:$E,Data!$C:$C,A67,Data!$B:$B,B67) -> 0 | E67: =IF(AND(B67="Grand Aquarium",WEEKDAY(A67)=3),40,IF(AND(B67="Grand Aquarium",WEEKDAY(A67)=7),40,VLOOKUP(B67,Price!$A$6:$C$216,2,0))) ->  | F67: =IF(AND(B67="Grand Aquarium",WEEKDAY(A67)=3),20,IF(AND(B67="Grand Aquarium",WEEKDAY(A67)=7),20,VLOOKUP(B67,Price!$A$6:$C$216,3,0))) ->  | G67: =IF(SUMIFS(Data!$J:$J,Data!$C:$C,A67,Data!$B:$B,B67)>H67,SUMIFS(Data!$J:$J,Data!$C:$C,A67,Data!$B:$B,B67)-H67,"") -> 0 | H67: 180 | I67: =SUMPRODUCT((Data!$C:$C=A67)*(Data!$B:$B=B67),(Data!$I:$I)) -> 0 | J67: =IF(SUMIFS(Data!$J:$J,Data!$C:$C,A67,Data!$B:$B,B67)<H67,H67-SUMIFS(Data!$J:$J,Data!$C:$C,A67,Data!$B:$B,B67),"") -> 0
B68: =IFERROR(INDEX(INDIRECT("Data!B"&MATCH(A68,Data!$C$2:$C$100000,0)+1&":B100000"),SMALL(IF((A68=INDIRECT("Data!C"&MATCH(A68,Data!$C$2:$C$100000,0)+1&":C100000"))*(MATCH(INDIRECT("Data!B"&MATCH(A68,Data!$C$2:$C$100000,0)+1&":B100000")&"",INDIRECT("Data!B"&MATCH(A68,Data!$C$2:$C$100000,0)+1&":B100000")&"",0)=(ROW(INDIRECT("Data!B"&MATCH(A68,Data!$C$2:$C$100000,0)+1&":B100000"))-MATCH(A68,Data!$C$2:$C$100000,0))),ROW(INDIRECT("Data!B"&MATCH(A68,Data!$C$2:$C$100000,0)+1&":B100000"))-MATCH(A68,Data!$C$2:$C$100000,0),""),COUNTIF($A$5:A68,A68))),"") ->  | C68: =SUMIFS(Data!$D:$D,Data!$C:$C,A68,Data!$B:$B,B68) -> 0 | D68: =SUMIFS(Data!$E:$E,Data!$C:$C,A68,Data!$B:$B,B68) -> 0 | G68: =IF(SUMIFS(Data!$J:$J,Data!$C:$C,A68,Data!$B:$B,B68)>H68,SUMIFS(Data!$J:$J,Data!$C:$C,A68,Data!$B:$B,B68)-H68,"") -> 0 | H68: 180 | I68: =SUMPRODUCT((Data!$C:$C=A68)*(Data!$B:$B=B68),(Data!$I:$I)) -> 0 | J68: =IF(SUMIFS(Data!$J:$J,Data!$C:$C,A68,Data!$B:$B,B68)<H68,H68-SUMIFS(Data!$J:$J,Data!$C:$C,A68,Data!$B:$B,B68),"") -> 0 | K68: =SUM(H67:H67) -> 
B69: =IFERROR(INDEX(INDIRECT("Data!B"&MATCH(A69,Data!$C$2:$C$100000,0)+1&":B100000"),SMALL(IF((A69=INDIRECT("Data!C"&MATCH(A69,Data!$C$2:$C$100000,0)+1&":C100000"))*(MATCH(INDIRECT("Data!B"&MATCH(A69,Data!$C$2:$C$100000,0)+1&":B100000")&"",INDIRECT("Data!B"&MATCH(A69,Data!$C$2:$C$100000,0)+1&":B100000")&"",0)=(ROW(INDIRECT("Data!B"&MATCH(A69,Data!$C$2:$C$100000,0)+1&":B100000"))-MATCH(A69,Data!$C$2:$C$100000,0))),ROW(INDIRECT("Data!B"&MATCH(A69,Data!$C$2:$C$100000,0)+1&":B100000"))-MATCH(A69,Data!$C$2:$C$100000,0),""),COUNTIF($A$5:A69,A69))),"") ->  | C69: =SUMIFS(Data!$D:$D,Data!$C:$C,A69,Data!$B:$B,B69) -> 0 | D69: =SUMIFS(Data!$E:$E,Data!$C:$C,A69,Data!$B:$B,B69) -> 0 | E69: =IF(AND(B69="Grand Aquarium",WEEKDAY(A69)=3),40,IF(AND(B69="Grand Aquarium",WEEKDAY(A69)=7),40,VLOOKUP(B69,Price!$A$6:$C$216,2,0))) ->  | F69: =IF(AND(B69="Grand Aquarium",WEEKDAY(A69)=3),20,IF(AND(B69="Grand Aquarium",WEEKDAY(A69)=7),20,VLOOKUP(B69,Price!$A$6:$C$216,3,0))) ->  | G69: =IF(SUMIFS(Data!$J:$J,Data!$C:$C,A69,Data!$B:$B,B69)>H69,SUMIFS(Data!$J:$J,Data!$C:$C,A69,Data!$B:$B,B69)-H69,"") -> 0 | H69: 180 | I69: =SUMPRODUCT((Data!$C:$C=A69)*(Data!$B:$B=B69),(Data!$I:$I)) -> 0 | J69: =IF(SUMIFS(Data!$J:$J,Data!$C:$C,A69,Data!$B:$B,B69)<H69,H69-SUMIFS(Data!$J:$J,Data!$C:$C,A69,Data!$B:$B,B69),"") -> 0
B70: =IFERROR(INDEX(INDIRECT("Data!B"&MATCH(A70,Data!$C$2:$C$100000,0)+1&":B100000"),SMALL(IF((A70=INDIRECT("Data!C"&MATCH(A70,Data!$C$2:$C$100000,0)+1&":C100000"))*(MATCH(INDIRECT("Data!B"&MATCH(A70,Data!$C$2:$C$100000,0)+1&":B100000")&"",INDIRECT("Data!B"&MATCH(A70,Data!$C$2:$C$100000,0)+1&":B100000")&"",0)=(ROW(INDIRECT("Data!B"&MATCH(A70,Data!$C$2:$C$100000,0)+1&":B100000"))-MATCH(A70,Data!$C$2:$C$100000,0))),ROW(INDIRECT("Data!B"&MATCH(A70,Data!$C$2:$C$100000,0)+1&":B100000"))-MATCH(A70,Data!$C$2:$C$100000,0),""),COUNTIF($A$5:A70,A70))),"") ->  | C70: =SUMIFS(Data!$D:$D,Data!$C:$C,A70,Data!$B:$B,B70) -> 0 | D70: =SUMIFS(Data!$E:$E,Data!$C:$C,A70,Data!$B:$B,B70) -> 0 | E70: =IF(AND(B70="Grand Aquarium",WEEKDAY(A70)=3),40,IF(AND(B70="Grand Aquarium",WEEKDAY(A70)=7),40,VLOOKUP(B70,Price!$A$6:$C$216,2,0))) ->  | F70: =IF(AND(B70="Grand Aquarium",WEEKDAY(A70)=3),20,IF(AND(B70="Grand Aquarium",WEEKDAY(A70)=7),20,VLOOKUP(B70,Price!$A$6:$C$216,3,0))) ->  | G70: =IF(SUMIFS(Data!$J:$J,Data!$C:$C,A70,Data!$B:$B,B70)>H70,SUMIFS(Data!$J:$J,Data!$C:$C,A70,Data!$B:$B,B70)-H70,"") -> 0 | H70: =(C70*E70)+(D70*F70)+G70 -> 180 | I70: =SUMPRODUCT((Data!$C:$C=A70)*(Data!$B:$B=B70),(Data!$I:$I)) -> 0 | J70: =IF(SUMIFS(Data!$J:$J,Data!$C:$C,A70,Data!$B:$B,B70)<H70,H70-SUMIFS(Data!$J:$J,Data!$C:$C,A70,Data!$B:$B,B70),"") -> 0
B71: =IFERROR(INDEX(INDIRECT("Data!B"&MATCH(A71,Data!$C$2:$C$100000,0)+1&":B100000"),SMALL(IF((A71=INDIRECT("Data!C"&MATCH(A71,Data!$C$2:$C$100000,0)+1&":C100000"))*(MATCH(INDIRECT("Data!B"&MATCH(A71,Data!$C$2:$C$100000,0)+1&":B100000")&"",INDIRECT("Data!B"&MATCH(A71,Data!$C$2:$C$100000,0)+1&":B100000")&"",0)=(ROW(INDIRECT("Data!B"&MATCH(A71,Data!$C$2:$C$100000,0)+1&":B100000"))-MATCH(A71,Data!$C$2:$C$100000,0))),ROW(INDIRECT("Data!B"&MATCH(A71,Data!$C$2:$C$100000,0)+1&":B100000"))-MATCH(A71,Data!$C$2:$C$100000,0),""),COUNTIF($A$5:A71,A71))),"") ->  | C71: =SUMIFS(Data!$D:$D,Data!$C:$C,A71,Data!$B:$B,B71) -> 0 | D71: =SUMIFS(Data!$E:$E,Data!$C:$C,A71,Data!$B:$B,B71) -> 0 | G71: =IF(SUMIFS(Data!$J:$J,Data!$C:$C,A71,Data!$B:$B,B71)>H71,SUMIFS(Data!$J:$J,Data!$C:$C,A71,Data!$B:$B,B71)-H71,"") -> 0 | H71: 180 | I71: =SUMPRODUCT((Data!$C:$C=A71)*(Data!$B:$B=B71),(Data!$I:$I)) -> 0 | J71: =IF(SUMIFS(Data!$J:$J,Data!$C:$C,A71,Data!$B:$B,B71)<H71,H71-SUMIFS(Data!$J:$J,Data!$C:$C,A71,Data!$B:$B,B71),"") -> 0 | K71: =SUM(H69:H70) -> 
B72: =IFERROR(INDEX(INDIRECT("Data!B"&MATCH(A72,Data!$C$2:$C$100000,0)+1&":B100000"),SMALL(IF((A72=INDIRECT("Data!C"&MATCH(A72,Data!$C$2:$C$100000,0)+1&":C100000"))*(MATCH(INDIRECT("Data!B"&MATCH(A72,Data!$C$2:$C$100000,0)+1&":B100000")&"",INDIRECT("Data!B"&MATCH(A72,Data!$C$2:$C$100000,0)+1&":B100000")&"",0)=(ROW(INDIRECT("Data!B"&MATCH(A72,Data!$C$2:$C$100000,0)+1&":B100000"))-MATCH(A72,Data!$C$2:$C$100000,0))),ROW(INDIRECT("Data!B"&MATCH(A72,Data!$C$2:$C$100000,0)+1&":B100000"))-MATCH(A72,Data!$C$2:$C$100000,0),""),COUNTIF($A$5:A72,A72))),"") ->  | C72: =SUMIFS(Data!$D:$D,Data!$C:$C,A72,Data!$B:$B,B72) -> 0 | D72: =SUMIFS(Data!$E:$E,Data!$C:$C,A72,Data!$B:$B,B72) -> 0 | E72: =IF(AND(B72="Grand Aquarium",WEEKDAY(A72)=3),40,IF(AND(B72="Grand Aquarium",WEEKDAY(A72)=7),40,VLOOKUP(B72,Price!$A$6:$C$216,2,0))) ->  | F72: =IF(AND(B72="Grand Aquarium",WEEKDAY(A72)=3),20,IF(AND(B72="Grand Aquarium",WEEKDAY(A72)=7),20,VLOOKUP(B72,Price!$A$6:$C$216,3,0))) ->  | G72: =IF(SUMIFS(Data!$J:$J,Data!$C:$C,A72,Data!$B:$B,B72)>H72,SUMIFS(Data!$J:$J,Data!$C:$C,A72,Data!$B:$B,B72)-H72,"") -> 0 | H72: 180 | I72: =SUMPRODUCT((Data!$C:$C=A72)*(Data!$B:$B=B72),(Data!$I:$I)) -> 0 | J72: =IF(SUMIFS(Data!$J:$J,Data!$C:$C,A72,Data!$B:$B,B72)<H72,H72-SUMIFS(Data!$J:$J,Data!$C:$C,A72,Data!$B:$B,B72),"") -> 0
B73: =IFERROR(INDEX(INDIRECT("Data!B"&MATCH(A73,Data!$C$2:$C$100000,0)+1&":B100000"),SMALL(IF((A73=INDIRECT("Data!C"&MATCH(A73,Data!$C$2:$C$100000,0)+1&":C100000"))*(MATCH(INDIRECT("Data!B"&MATCH(A73,Data!$C$2:$C$100000,0)+1&":B100000")&"",INDIRECT("Data!B"&MATCH(A73,Data!$C$2:$C$100000,0)+1&":B100000")&"",0)=(ROW(INDIRECT("Data!B"&MATCH(A73,Data!$C$2:$C$100000,0)+1&":B100000"))-MATCH(A73,Data!$C$2:$C$100000,0))),ROW(INDIRECT("Data!B"&MATCH(A73,Data!$C$2:$C$100000,0)+1&":B100000"))-MATCH(A73,Data!$C$2:$C$100000,0),""),COUNTIF($A$5:A73,A73))),"") ->  | C73: =SUMIFS(Data!$D:$D,Data!$C:$C,A73,Data!$B:$B,B73) -> 0 | D73: =SUMIFS(Data!$E:$E,Data!$C:$C,A73,Data!$B:$B,B73) -> 0 | G73: =IF(SUMIFS(Data!$J:$J,Data!$C:$C,A73,Data!$B:$B,B73)>H73,SUMIFS(Data!$J:$J,Data!$C:$C,A73,Data!$B:$B,B73)-H73,"") -> 0 | H73: 180 | I73: =SUMPRODUCT((Data!$C:$C=A73)*(Data!$B:$B=B73),(Data!$I:$I)) -> 0 | J73: =IF(SUMIFS(Data!$J:$J,Data!$C:$C,A73,Data!$B:$B,B73)<H73,H73-SUMIFS(Data!$J:$J,Data!$C:$C,A73,Data!$B:$B,B73),"") -> 0 | K73: =SUM(H72:H72) -> 
B74: =IFERROR(INDEX(INDIRECT("Data!B"&MATCH(A74,Data!$C$2:$C$100000,0)+1&":B100000"),SMALL(IF((A74=INDIRECT("Data!C"&MATCH(A74,Data!$C$2:$C$100000,0)+1&":C100000"))*(MATCH(INDIRECT("Data!B"&MATCH(A74,Data!$C$2:$C$100000,0)+1&":B100000")&"",INDIRECT("Data!B"&MATCH(A74,Data!$C$2:$C$100000,0)+1&":B100000")&"",0)=(ROW(INDIRECT("Data!B"&MATCH(A74,Data!$C$2:$C$100000,0)+1&":B100000"))-MATCH(A74,Data!$C$2:$C$100000,0))),ROW(INDIRECT("Data!B"&MATCH(A74,Data!$C$2:$C$100000,0)+1&":B100000"))-MATCH(A74,Data!$C$2:$C$100000,0),""),COUNTIF($A$5:A74,A74))),"") ->  | C74: =SUMIFS(Data!$D:$D,Data!$C:$C,A74,Data!$B:$B,B74) -> 0 | D74: =SUMIFS(Data!$E:$E,Data!$C:$C,A74,Data!$B:$B,B74) -> 0 | E74: =IF(AND(B74="Grand Aquarium",WEEKDAY(A74)=3),40,IF(AND(B74="Grand Aquarium",WEEKDAY(A74)=7),40,VLOOKUP(B74,Price!$A$6:$C$216,2,0))) ->  | F74: =IF(AND(B74="Grand Aquarium",WEEKDAY(A74)=3),20,IF(AND(B74="Grand Aquarium",WEEKDAY(A74)=7),20,VLOOKUP(B74,Price!$A$6:$C$216,3,0))) ->  | G74: =IF(SUMIFS(Data!$J:$J,Data!$C:$C,A74,Data!$B:$B,B74)>H74,SUMIFS(Data!$J:$J,Data!$C:$C,A74,Data!$B:$B,B74)-H74,"") -> 0 | H74: 180 | I74: =SUMPRODUCT((Data!$C:$C=A74)*(Data!$B:$B=B74),(Data!$I:$I)) -> 0 | J74: =IF(SUMIFS(Data!$J:$J,Data!$C:$C,A74,Data!$B:$B,B74)<H74,H74-SUMIFS(Data!$J:$J,Data!$C:$C,A74,Data!$B:$B,B74),"") -> 0
B75: =IFERROR(INDEX(INDIRECT("Data!B"&MATCH(A75,Data!$C$2:$C$100000,0)+1&":B100000"),SMALL(IF((A75=INDIRECT("Data!C"&MATCH(A75,Data!$C$2:$C$100000,0)+1&":C100000"))*(MATCH(INDIRECT("Data!B"&MATCH(A75,Data!$C$2:$C$100000,0)+1&":B100000")&"",INDIRECT("Data!B"&MATCH(A75,Data!$C$2:$C$100000,0)+1&":B100000")&"",0)=(ROW(INDIRECT("Data!B"&MATCH(A75,Data!$C$2:$C$100000,0)+1&":B100000"))-MATCH(A75,Data!$C$2:$C$100000,0))),ROW(INDIRECT("Data!B"&MATCH(A75,Data!$C$2:$C$100000,0)+1&":B100000"))-MATCH(A75,Data!$C$2:$C$100000,0),""),COUNTIF($A$5:A75,A75))),"") ->  | C75: =SUMIFS(Data!$D:$D,Data!$C:$C,A75,Data!$B:$B,B75) -> 0 | D75: =SUMIFS(Data!$E:$E,Data!$C:$C,A75,Data!$B:$B,B75) -> 0 | E75: =IF(AND(B75="Grand Aquarium",WEEKDAY(A75)=3),40,IF(AND(B75="Grand Aquarium",WEEKDAY(A75)=7),40,VLOOKUP(B75,Price!$A$6:$C$216,2,0))) ->  | F75: =IF(AND(B75="Grand Aquarium",WEEKDAY(A75)=3),20,IF(AND(B75="Grand Aquarium",WEEKDAY(A75)=7),20,VLOOKUP(B75,Price!$A$6:$C$216,3,0))) ->  | G75: =IF(SUMIFS(Data!$J:$J,Data!$C:$C,A75,Data!$B:$B,B75)>H75,SUMIFS(Data!$J:$J,Data!$C:$C,A75,Data!$B:$B,B75)-H75,"") -> 0 | H75: 180 | I75: =SUMPRODUCT((Data!$C:$C=A75)*(Data!$B:$B=B75),(Data!$I:$I)) -> 0 | J75: =IF(SUMIFS(Data!$J:$J,Data!$C:$C,A75,Data!$B:$B,B75)<H75,H75-SUMIFS(Data!$J:$J,Data!$C:$C,A75,Data!$B:$B,B75),"") -> 0
B76: =IFERROR(INDEX(INDIRECT("Data!B"&MATCH(A76,Data!$C$2:$C$100000,0)+1&":B100000"),SMALL(IF((A76=INDIRECT("Data!C"&MATCH(A76,Data!$C$2:$C$100000,0)+1&":C100000"))*(MATCH(INDIRECT("Data!B"&MATCH(A76,Data!$C$2:$C$100000,0)+1&":B100000")&"",INDIRECT("Data!B"&MATCH(A76,Data!$C$2:$C$100000,0)+1&":B100000")&"",0)=(ROW(INDIRECT("Data!B"&MATCH(A76,Data!$C$2:$C$100000,0)+1&":B100000"))-MATCH(A76,Data!$C$2:$C$100000,0))),ROW(INDIRECT("Data!B"&MATCH(A76,Data!$C$2:$C$100000,0)+1&":B100000"))-MATCH(A76,Data!$C$2:$C$100000,0),""),COUNTIF($A$5:A76,A76))),"") ->  | C76: =SUMIFS(Data!$D:$D,Data!$C:$C,A76,Data!$B:$B,B76) -> 0 | D76: =SUMIFS(Data!$E:$E,Data!$C:$C,A76,Data!$B:$B,B76) -> 0 | G76: =IF(SUMIFS(Data!$J:$J,Data!$C:$C,A76,Data!$B:$B,B76)>H76,SUMIFS(Data!$J:$J,Data!$C:$C,A76,Data!$B:$B,B76)-H76,"") -> 0 | H76: 180 | I76: =SUMPRODUCT((Data!$C:$C=A76)*(Data!$B:$B=B76),(Data!$I:$I)) -> 0 | J76: =IF(SUMIFS(Data!$J:$J,Data!$C:$C,A76,Data!$B:$B,B76)<H76,H76-SUMIFS(Data!$J:$J,Data!$C:$C,A76,Data!$B:$B,B76),"") -> 0 | K76: =SUM(H74:H75) -> 
B77: =IFERROR(INDEX(INDIRECT("Data!B"&MATCH(A77,Data!$C$2:$C$100000,0)+1&":B100000"),SMALL(IF((A77=INDIRECT("Data!C"&MATCH(A77,Data!$C$2:$C$100000,0)+1&":C100000"))*(MATCH(INDIRECT("Data!B"&MATCH(A77,Data!$C$2:$C$100000,0)+1&":B100000")&"",INDIRECT("Data!B"&MATCH(A77,Data!$C$2:$C$100000,0)+1&":B100000")&"",0)=(ROW(INDIRECT("Data!B"&MATCH(A77,Data!$C$2:$C$100000,0)+1&":B100000"))-MATCH(A77,Data!$C$2:$C$100000,0))),ROW(INDIRECT("Data!B"&MATCH(A77,Data!$C$2:$C$100000,0)+1&":B100000"))-MATCH(A77,Data!$C$2:$C$100000,0),""),COUNTIF($A$5:A77,A77))),"") ->  | C77: =SUMIFS(Data!$D:$D,Data!$C:$C,A77,Data!$B:$B,B77) -> 0 | D77: =SUMIFS(Data!$E:$E,Data!$C:$C,A77,Data!$B:$B,B77) -> 0 | E77: =IF(AND(B77="Grand Aquarium",WEEKDAY(A77)=3),40,IF(AND(B77="Grand Aquarium",WEEKDAY(A77)=7),40,VLOOKUP(B77,Price!$A$6:$C$216,2,0))) ->  | F77: =IF(AND(B77="Grand Aquarium",WEEKDAY(A77)=3),20,IF(AND(B77="Grand Aquarium",WEEKDAY(A77)=7),20,VLOOKUP(B77,Price!$A$6:$C$216,3,0))) ->  | G77: =IF(SUMIFS(Data!$J:$J,Data!$C:$C,A77,Data!$B:$B,B77)>H77,SUMIFS(Data!$J:$J,Data!$C:$C,A77,Data!$B:$B,B77)-H77,"") -> 0 | H77: 180 | I77: =SUMPRODUCT((Data!$C:$C=A77)*(Data!$B:$B=B77),(Data!$I:$I)) -> 0 | J77: =IF(SUMIFS(Data!$J:$J,Data!$C:$C,A77,Data!$B:$B,B77)<H77,H77-SUMIFS(Data!$J:$J,Data!$C:$C,A77,Data!$B:$B,B77),"") -> 0
B78: =IFERROR(INDEX(INDIRECT("Data!B"&MATCH(A78,Data!$C$2:$C$100000,0)+1&":B100000"),SMALL(IF((A78=INDIRECT("Data!C"&MATCH(A78,Data!$C$2:$C$100000,0)+1&":C100000"))*(MATCH(INDIRECT("Data!B"&MATCH(A78,Data!$C$2:$C$100000,0)+1&":B100000")&"",INDIRECT("Data!B"&MATCH(A78,Data!$C$2:$C$100000,0)+1&":B100000")&"",0)=(ROW(INDIRECT("Data!B"&MATCH(A78,Data!$C$2:$C$100000,0)+1&":B100000"))-MATCH(A78,Data!$C$2:$C$100000,0))),ROW(INDIRECT("Data!B"&MATCH(A78,Data!$C$2:$C$100000,0)+1&":B100000"))-MATCH(A78,Data!$C$2:$C$100000,0),""),COUNTIF($A$5:A78,A78))),"") ->  | C78: =SUMIFS(Data!$D:$D,Data!$C:$C,A78,Data!$B:$B,B78) -> 0 | D78: =SUMIFS(Data!$E:$E,Data!$C:$C,A78,Data!$B:$B,B78) -> 0 | E78: =IF(AND(B78="Grand Aquarium",WEEKDAY(A78)=3),40,IF(AND(B78="Grand Aquarium",WEEKDAY(A78)=7),40,VLOOKUP(B78,Price!$A$6:$C$216,2,0))) ->  | F78: =IF(AND(B78="Grand Aquarium",WEEKDAY(A78)=3),20,IF(AND(B78="Grand Aquarium",WEEKDAY(A78)=7),20,VLOOKUP(B78,Price!$A$6:$C$216,3,0))) ->  | G78: =IF(SUMIFS(Data!$J:$J,Data!$C:$C,A78,Data!$B:$B,B78)>H78,SUMIFS(Data!$J:$J,Data!$C:$C,A78,Data!$B:$B,B78)-H78,"") -> 0 | H78: 180 | I78: =SUMPRODUCT((Data!$C:$C=A78)*(Data!$B:$B=B78),(Data!$I:$I)) -> 0 | J78: =IF(SUMIFS(Data!$J:$J,Data!$C:$C,A78,Data!$B:$B,B78)<H78,H78-SUMIFS(Data!$J:$J,Data!$C:$C,A78,Data!$B:$B,B78),"") -> 0
B79: =IFERROR(INDEX(INDIRECT("Data!B"&MATCH(A79,Data!$C$2:$C$100000,0)+1&":B100000"),SMALL(IF((A79=INDIRECT("Data!C"&MATCH(A79,Data!$C$2:$C$100000,0)+1&":C100000"))*(MATCH(INDIRECT("Data!B"&MATCH(A79,Data!$C$2:$C$100000,0)+1&":B100000")&"",INDIRECT("Data!B"&MATCH(A79,Data!$C$2:$C$100000,0)+1&":B100000")&"",0)=(ROW(INDIRECT("Data!B"&MATCH(A79,Data!$C$2:$C$100000,0)+1&":B100000"))-MATCH(A79,Data!$C$2:$C$100000,0))),ROW(INDIRECT("Data!B"&MATCH(A79,Data!$C$2:$C$100000,0)+1&":B100000"))-MATCH(A79,Data!$C$2:$C$100000,0),""),COUNTIF($A$5:A79,A79))),"") ->  | C79: =SUMIFS(Data!$D:$D,Data!$C:$C,A79,Data!$B:$B,B79) -> 0 | D79: =SUMIFS(Data!$E:$E,Data!$C:$C,A79,Data!$B:$B,B79) -> 0 | E79: =IF(AND(B79="Grand Aquarium",WEEKDAY(A79)=3),40,IF(AND(B79="Grand Aquarium",WEEKDAY(A79)=7),40,VLOOKUP(B79,Price!$A$6:$C$216,2,0))) ->  | F79: =IF(AND(B79="Grand Aquarium",WEEKDAY(A79)=3),20,IF(AND(B79="Grand Aquarium",WEEKDAY(A79)=7),20,VLOOKUP(B79,Price!$A$6:$C$216,3,0))) ->  | G79: =IF(SUMIFS(Data!$J:$J,Data!$C:$C,A79,Data!$B:$B,B79)>H79,SUMIFS(Data!$J:$J,Data!$C:$C,A79,Data!$B:$B,B79)-H79,"") -> 0 | H79: 180 | I79: =SUMPRODUCT((Data!$C:$C=A79)*(Data!$B:$B=B79),(Data!$I:$I)) -> 0 | J79: =IF(SUMIFS(Data!$J:$J,Data!$C:$C,A79,Data!$B:$B,B79)<H79,H79-SUMIFS(Data!$J:$J,Data!$C:$C,A79,Data!$B:$B,B79),"") -> 0
B80: =IFERROR(INDEX(INDIRECT("Data!B"&MATCH(A80,Data!$C$2:$C$100000,0)+1&":B100000"),SMALL(IF((A80=INDIRECT("Data!C"&MATCH(A80,Data!$C$2:$C$100000,0)+1&":C100000"))*(MATCH(INDIRECT("Data!B"&MATCH(A80,Data!$C$2:$C$100000,0)+1&":B100000")&"",INDIRECT("Data!B"&MATCH(A80,Data!$C$2:$C$100000,0)+1&":B100000")&"",0)=(ROW(INDIRECT("Data!B"&MATCH(A80,Data!$C$2:$C$100000,0)+1&":B100000"))-MATCH(A80,Data!$C$2:$C$100000,0))),ROW(INDIRECT("Data!B"&MATCH(A80,Data!$C$2:$C$100000,0)+1&":B100000"))-MATCH(A80,Data!$C$2:$C$100000,0),""),COUNTIF($A$5:A80,A80))),"") ->  | C80: =SUMIFS(Data!$D:$D,Data!$C:$C,A80,Data!$B:$B,B80) -> 0 | D80: =SUMIFS(Data!$E:$E,Data!$C:$C,A80,Data!$B:$B,B80) -> 0 | E80: =IF(AND(B80="Grand Aquarium",WEEKDAY(A80)=3),40,IF(AND(B80="Grand Aquarium",WEEKDAY(A80)=7),40,VLOOKUP(B80,Price!$A$6:$C$216,2,0))) ->  | F80: =IF(AND(B80="Grand Aquarium",WEEKDAY(A80)=3),20,IF(AND(B80="Grand Aquarium",WEEKDAY(A80)=7),20,VLOOKUP(B80,Price!$A$6:$C$216,3,0))) ->  | G80: =IF(SUMIFS(Data!$J:$J,Data!$C:$C,A80,Data!$B:$B,B80)>H80,SUMIFS(Data!$J:$J,Data!$C:$C,A80,Data!$B:$B,B80)-H80,"") -> 0 | H80: 180 | I80: =SUMPRODUCT((Data!$C:$C=A80)*(Data!$B:$B=B80),(Data!$I:$I)) -> 0 | J80: =IF(SUMIFS(Data!$J:$J,Data!$C:$C,A80,Data!$B:$B,B80)<H80,H80-SUMIFS(Data!$J:$J,Data!$C:$C,A80,Data!$B:$B,B80),"") -> 0
B81: =IFERROR(INDEX(INDIRECT("Data!B"&MATCH(A81,Data!$C$2:$C$188,0)+1&":B188"),SMALL(IF((A81=INDIRECT("Data!C"&MATCH(A81,Data!$C$2:$C$188,0)+1&":C188"))*(MATCH(INDIRECT("Data!B"&MATCH(A81,Data!$C$2:$C$188,0)+1&":B188")&"",INDIRECT("Data!B"&MATCH(A81,Data!$C$2:$C$188,0)+1&":B188")&"",0)=(ROW(INDIRECT("Data!B"&MATCH(A81,Data!$C$2:$C$188,0)+1&":B188"))-MATCH(A81,Data!$C$2:$C$188,0))),ROW(INDIRECT("Data!B"&MATCH(A81,Data!$C$2:$C$188,0)+1&":B188"))-MATCH(A81,Data!$C$2:$C$188,0),""),COUNTIF($A$5:A81,A81))),"") ->  | K81: =SUM(H77:H80) -> 
B82: =IFERROR(INDEX(INDIRECT("Data!B"&MATCH(A82,Data!$C$2:$C$188,0)+1&":B188"),SMALL(IF((A82=INDIRECT("Data!C"&MATCH(A82,Data!$C$2:$C$188,0)+1&":C188"))*(MATCH(INDIRECT("Data!B"&MATCH(A82,Data!$C$2:$C$188,0)+1&":B188")&"",INDIRECT("Data!B"&MATCH(A82,Data!$C$2:$C$188,0)+1&":B188")&"",0)=(ROW(INDIRECT("Data!B"&MATCH(A82,Data!$C$2:$C$188,0)+1&":B188"))-MATCH(A82,Data!$C$2:$C$188,0))),ROW(INDIRECT("Data!B"&MATCH(A82,Data!$C$2:$C$188,0)+1&":B188"))-MATCH(A82,Data!$C$2:$C$188,0),""),COUNTIF($A$5:A82,A82))),"") ->  | F82: =25627-174 -> 25453 | H82: =SUM(H5:H81) ->  | I82: =SUM(I5:I81) -> 164 | J82: =SUM(J5:J81) -> 491 | K82: =SUM(K8+K12+K14+K18+K21+K24+K31+K35+K37+K40+K46+K48+K52+K59+K62+K64+K66+K68+K71+K73+K76+K81)-J82 -> 

Sheet Sheet2 (hidden)
B1: Excursion
B2: ASPENDOS TURKISH BATH
B3: CAIRO BY PLANE
B4: CAIRO OVERDAY | C4: Cairo
B5: DOLPHIN WORLD SHOW | C5: Dolphin world show
B6: GRAND AQUARIUM | C6: Grand Aquarium
B7: INTRO DIVING | C7: Diving
B8: JUNGLE AQUAPARK | C8: Jungle Aqua Park
B9: MOTO 1 HOUR | C9: Moto 1 Hour
B10: MOTO2 | C10: Moto 2
B11: OVER DAY LUXORQUEEN VALLY | C11: LUXOR 2
B12: PARASAILING TRIP
B13: PRIVATE BOAT FISHING | C13: Private Boat Fishing
B14: RUSALKA ( MERMAID ) | C14: Rusalka (Mermaid)
B15: SEA TRIP | C15: Sea Trip
B16: SNORKELING ON DIVING BOAT | C16: Snorkling
B17: SUBMARINE | C17: Submarine
B18: UTOPIA ISLAND | C18: Utopia

Sheet Sources (hidden)
B2: OVER DAY LUXOR | C2: MAKADI BAY | D2: RUSALKA -PACKAGE 13 | E2: SAFAGA | F2: CAIRO- PACKAGE 1 | G2: EL GOUNA | H2: MOTO2 | I2: CAIRO- PACKAGE 1
B3: LUXORQUEEN VALLY - PACKAGE 23 | C3: SAFAGA | D3: RUSALKA -PACKAGE 16 | E3: SOMA BAY | F3: CAIRO- PACKAGE 20 | H3: OVER DAY LUXOR | I3: CAIRO- PACKAGE 20
B4: LUXORQUEEN VALLY - PACKAGE 24 | C4: SOMA BAY | D4: RUSALKA -PACKAGE 6 | F4: CAIRO- PACKAGE 21 | H4: LUXORQUEEN VALLY - PACKAGE 23 | I4: CAIRO- PACKAGE 21
B5: LUXORQUEEN VALLY - PACKAGE 25 | D5: RUSALKA -PACKAGE 9 | F5: CAIRO- PACKAGE 22 | H5: LUXORQUEEN VALLY - PACKAGE 24 | I5: CAIRO- PACKAGE 22
B6: LUXORQUEEN VALLY - PACKAGE 30 | D6: RUSALKA ( MERMAID ) | F6: CAIRO- PACKAGE 24 | H6: LUXORQUEEN VALLY - PACKAGE 25 | I6: CAIRO- PACKAGE 24
B7: LUXORQUEEN VALLY - PACKAGE 31 | D7: RUSALKA -PACKAGE 3 | F7: CAIRO- PACKAGE 26 | H7: LUXORQUEEN VALLY - PACKAGE 30 | I7: CAIRO- PACKAGE 26
B8: LUXORQUEEN VALLY - PACKAGE 32 | F8: CAIRO - PACKAGE 33 | H8: LUXORQUEEN VALLY - PACKAGE 31 | I8: CAIRO - PACKAGE 33
B9: LUXORQUEEN VALLY - PACKAGE 33 | F9: CAIRO - PACKAGE 34 | H9: LUXORQUEEN VALLY - PACKAGE 32 | I9: CAIRO - PACKAGE 34
B10: LUXORQUEEN VALLY - PACKAGE 36 | F10: CAIRO - PACKAGE 35 | H10: LUXORQUEEN VALLY - PACKAGE 33 | I10: CAIRO - PACKAGE 35
B11: LUXORQUEEN VALLY - PACKAGE 5 | F11: El GOUNA TRIP- PACKAGE 28 | H11: LUXORQUEEN VALLY - PACKAGE 36 | I11: El GOUNA TRIP- PACKAGE 28
B12: BIO SHOP (OIL PARFUM) | F12: CAIRO OVERDAY | H12: LUXORQUEEN VALLY - PACKAGE 5 | I12: CAIRO OVERDAY
B13: COMBINE SHOP GROUP- SOUTH | F13: CAIRO/ALEX 2 Night | H13: 1001 SHOW | I13: CAIRO/ALEX 2 Night
B14: COMBINE SHOP GROUP - NORTH | F14: EL GOUNA TRIP | H14: ASWAN OVER DAY -PACKAGE 1 | I14: EL GOUNA TRIP
B15: COMBINE, MODA SHOW& COTTON FLOWER SHOP | F15: INDIVIDUAL CAIRO ALEX | H15: CITY TOUR+SAND CITY | I15: INDIVIDUAL CAIRO ALEX
B16: DANDARA-PACKAGE 2 | F16: INDIVIDUAL CAIRO OVER DAY | H16: DANDARA-PACKAGE 2 | I16: INDIVIDUAL CAIRO OVER DAY
B17: DOLPHIN WORLD SHOW - PACKAGE 3 | F17: INDIVIDUAL EL GOUNA | H17: DIVING- PACKAGE 25 | I17: INDIVIDUAL EL GOUNA
B18: LUXOR DANDARA BY CRUISE ON NILE | F18: INDIVIDUAL ST.POUL& ANTOY | H18: DIVING- PACKAGE 26 | I18: INDIVIDUAL ST.POUL& ANTOY
B19: MODA SHOW | F19: RUSALKA -PACKAGE 3 | H19: DIVING-PACKAGE 20 | I19: RUSALKA -PACKAGE 3
B20: ROMANCE UTOPIA | F20: RUSALKA -PACKAGE 13 | H20: DOLPHIN HOUSE- PACKAGE 29 | I20: RUSALKA -PACKAGE 13
B21: RUSALKA -PACKAGE 3 | F21: RUSALKA -PACKAGE 16 | H21: DOLPHIN HOUSE | I21: RUSALKA -PACKAGE 16
B22: TEXTILE ,AUTEX & COTTON FLOWER& BIO SHOP | F22: RUSALKA -PACKAGE 6 | H22: DOLPHIN SWIMMING ( DOLPHINA ) | I22: RUSALKA -PACKAGE 6
B23: UTOPIA ISLAND- PACKAGE 22 | F23: RUSALKA -PACKAGE 9 | H23: DOLPHIN WORLD SHOW - PACKAGE 3 | I23: RUSALKA -PACKAGE 9
B24: UTOPIA ISLAND- PACKAGE 27 | F24: RUSALKA ( MERMAID ) | H24: DREAM ISLAND | I24: RUSALKA ( MERMAID )
B25: UTOPIA ISLAND- PACKAGE 30 | F25: ST. POUL&ST.ANTONY | H25: ELITE VIP SEA TRIP | I25: ST. POUL&ST.ANTONY
B26: UTOPIA ISLAND - PACKAGE 35 | F26: ST. POUL&ST.ANTONY PKG 8 | H26: GRAND AQUARIUM | I26: ST. POUL&ST.ANTONY PKG 8
B27: LUXORQUEEN VALLY - PACKAGE 12 | F27: ST. POUL&ST.ANTONY PKG 9 | H27: GRAND AQUARIUM+DOLPHIN SHOW | I27: ST. POUL&ST.ANTONY PKG 9
B28: LUXORQUEEN VALLY - PACKAGE 7 | F28: CAIRO WITHOUT MUSEUM | H28: GRAND AQUARIUM+JUNGLE AQUA PARK
B29: ASWAN - ABU SIMPLE O/N 3*** | H29: GRAND AQUARIUM+SAND MUSEUM+DOLPHIN SHOW
B30: DOLPHIN SWIMMING ( DOLPHINA ) | H30: GRAND AQUARIUM+SAND MUSEUM+JUNGLE AQUAPARK
B31: COTTON FLOWER SHOP | H31: INDIVIDUAL SUPER SCUBA
B32: DANDARA-ABYDOS | H32: JUNGLE AQUAPARK
B33: DANDARA-PACKAGE 10 | H33: LUXOR DANDARA BY CRUISE ON NILE
B34: DANDARA-PACKAGE 15 | H34: MOTO 1 HOUR - PACKAGE 36
B35: DANDARA-PACKAGE 6 | H35: MOTO 1 HOUR
B36: DANDARA | H36: MOTO 2- PACKAGE 21
B37: DANDARA DELUXE | H37: MOTO 2- PACKAGE 23
B38: DOLPHIN SWIMMING | H38: MOTO 2- PACKAGE 25
B39: DOLPHIN THERAPY | H39: MOTO 2- PACKAGE 26
B40: DOLPHIN WORLD SHOW | H40: MOTO 2- PACKAGE 27
B41: EXTRA MASSAGE | H41: MOTO 2- PACKAGE 28
B42: OVER DAY LUXORQUEEN VALLY | H42: MOTO 2- PACKAGE 29
B43: ROYAL UTOPIA | H43: MOTO 2 - PACKAGE 31
B44: RUSALKA -PACKAGE 13 | H44: MOTO 2 - PACKAGE 34
B45: RUSALKA -PACKAGE 16 | H45: MOTO SUN RISE
B46: RUSALKA -PACKAGE 6 | H46: MYSTERY ROYAL OASIS+SAND CITY
B47: RUSALKA -PACKAGE 9 | H47: QUAD SAFARI
B48: RUSALKA ( MERMAID ) | H48: ROMANCE UTOPIA
B49: UTOPIA ISLAND | H49: SCUBA TRIP
B50: VIP LUXOR | H50: SEA TRIP- PACKAGE 1
B51: ASWAN - ABU SIMPLE O/N 4**** | H51: SEA TRIP- PACKAGE 2
H52: SEA TRIP- PACKAGE 4
H53: SEA TRIP- PACKAGE 5
H54: SEA TRIP - PACKAGE 32
H55: SUBMARINE+TITANIC AQUA PARK
H56: SUPER BADAWIA-PACKAGE 4
H57: SUPER BADAWIA -PACKAGE 1
H58: SUPER BADAWIA -PACKAGE 2
H59: UTOPIA ISLAND- PACKAGE 22
H60: UTOPIA ISLAND- PACKAGE 27
H61: UTOPIA ISLAND- PACKAGE 30
H62: UTOPIA ISLAND - PACKAGE 35
H63: LUXORQUEEN VALLY - PACKAGE 12
H64: LUXORQUEEN VALLY - PACKAGE 2
H65: LUXORQUEEN VALLY - PACKAGE 3
H66: LUXORQUEEN VALLY - PACKAGE 7
H67: 1001 SHOW PKG 12
H68: 1001 SHOW PKG 14
H69: 1001 SHOW PKG 6
H70: 1001 SHOW PKG 8
H71: ADVANCED COURSE
H72: ASPENDOS TURKISH BATH
H73: ASWAN - ABU SIMPLE O/N 3***
H74: ASWAN OVER DAY
H75: ASWAN ABU SIMBLE- PACKAGE 6
H76: BADAWIA
H77: BLUE AQUARIUM
H78: CAIRO BY PLANE
H79: CITY TOUR
H80: CITY TOUR WITH AQUARIUM
H81: DANDARA- PACKAGE 7
H82: DANDARA- PACKAGE 8
H83: DANDARA-ABYDOS
H84: DANDARA-PACKAGE 10
H85: DANDARA-PACKAGE 15
H86: DANDARA-PACKAGE 6
H87: DANDARA
H88: DANDARA DELUXE
H89: DIVING - PACKAGE 9
H90: DIVING FROM THE BEACH
H91: DOLPHIN SHOW+ SAND MUSEUM
H92: DOLPHIN SWIMMING
H93: DOLPHIN THERAPY
H94: DOLPHIN WORLD SHOW
H95: FAST TRACK
H96: INDIVIDUAL CAIRO BY PLANE
H97: INDIVIDUAL ORANGE BAY
H98: INDIVIDUAL ASWAN OVER DAY
H99: INDIVIDUAL BADAWIA
H100: INDIVIDUAL CITY TOUR
H101: INDIVIDUAL DANDARA
H102: INDIVIDUAL LUXOR
H103: INDIVIDUAL MOTO 2
H104: INDIVIDUAL MOTO2 DBL
H105: INDIVIDUAL MOTO2 SGL
H106: INDIVIDUAL PARADISE
H107: INDIVIDUAL SUPER BADAWIA
H108: INDIVIDUAL SUPER SAFARI
H109: INDIVIDUAL TRANSFER
H110: INDIVIDUAL UTOPIA
H111: INTRO DIVING
H112: JERUSALEM
H113: M2.SUNSET
H114: MOTO 2 - PACKAGE 10
H115: MOTO 2 - PACKAGE 11
H116: MOTO 2 - PACKAGE 13
H117: MOTO 2 - PACKAGE 15
H118: MOTO 2 - PACKAGE 2
H119: MOTO 2 - PACKAGE 7
H120: MOTO 2 - PACKAGE 8
H121: MOTO2-MARSAALAM
H122: MOTO2 + SAND CITY
H123: MOTO5 +SAND CITY
H124: MYSTERY ROYAL OASIS
H125: NATULIUS
H126: NATULIUS + SAND MUSEUM
H127: NILE CRUISE
H128: OPEN WATER COURSE
H129: OPENAIR SAND MUSEUM
H130: OVER DAY LUXORQUEEN VALLY
H131: PARADISE
H132: PARASAILING TRIP
H133: PRIVATE ASWAN -SIMBLE O.N
H134: PRIVATE BOAT DIVING
H135: PRIVATE BOAT FISHING
H136: PRIVATE SULTAN SELECT
H137: PROFESSIONAL FISHING
H138: ROMANTIC SUNSET SEA TRIP
H139: ROYAL DOLPHIN SEA TRIP
H140: ROYAL UTOPIA
H141: RUSSIAN FISHING
H142: SALING BOAT
H143: SEA SCOPE- PACKAGE 4
H144: SEA SCOPE
H145: SEA TRIP
H146: SEA TRIP+SAND MUSEUM
H147: SINDBAD AQUA PARK
H148: SNORKELING ON DIVING BOAT
H149: SUBMARINE
H150: SUBMARINE+ SINDBAD AQUA PARK
H151: SULTAN 1 TURKISH PKG 7
H152: SULTAN TURKISH BATH
H153: SULTAN1 TURKISH PKG 10
H154: SULTAN1 TURKISH PKG 11
H155: SULTAN1 TURKISH PKG 14
H156: SULTAN1 TURKISH PKG 9
H157: SUNNY ORANGE BAY
H158: SUPER BADAWIA
H159: SUPER SAFARI
H160: SUPER SCUBA
H161: TITANIC AQUA PARK
H162: TITANIC AQUA PARK PKG 16
H163: UTOPIA ISLAND
H164: UTOPIA ISLAND+SAND MUSEUM
H165: VIP LUXOR
H166: VIP SEA TRIP
H167: ASWAN - ABU SIMPLE O/N
H168: ASWAN - ABU SIMPLE O/N 4****
